Workbook

Sheet Main
B10: 2020-01-22
B12: Sheet No. | C12: Template Name | D12: Summary
B13: 1 | C13: Future Intra | D13: For Intraday trading in F&O segment
B14: 2 | C14: Cash Intra | D14: For Intraday trading in cash market segment
B15: 3 | C15: Mid-cap Intra | D15: For Intraday trading in Mid-cap stocks
B16: 4 | C16: Bulk Deals | D16: Reveals Bulk Deals carried on NSE & BSE
B17: 5 | C17: Call Tracker
K27: `

Sheet Future Intra
M5: Back to Main Page
A6: FOR INTRA DAY TRADING | L6: =Main!B10 -> 2020-01-22
A9: Sr.no | B9: Sector | C9: Scrip | D9: CLOSE RATE | E9: Pivot Point | F9: Supports | I9: Resistances
B10: Sector | D10: Point | E10: Point | F10: S1 | G10: S2 | H10: S3 | I10: R1 | J10: R2 | K10: R3 | L10: HIGH | M10: LOW | N10: OI | O10: % Change in OI
A11: 1 | B11: Index | C11: BANKNIFTY | D11: 31042.80 | E11: 31054.58 | F11: 30909.17 | G11: 30775.53 | H11: 30630.12 | I11: 31188.22 | J11: 31333.63 | K11: 31467.27 | L11: 31200 | M11: 30920.95 | N11: 1594040 | O11: 2.97%
A12: 2 | B12: Index | C12: NIFTY | D12: 12203.10 | E12: 12209.45 | F12: 12174.90 | G12: 12146.70 | H12: 12112.15 | I12: 12237.65 | J12: 12272.20 | K12: 12300.40 | L12: 12244 | M12: 12181.25 | N12: 14739225 | O12: -0.44%
A13: 3 | B13: Index | C13: NIFTYIT | D13: 16128.00 | E13: 16127.67 | F13: 16105.33 | G13: 16082.67 | H13: 16060.33 | I13: 16150.33 | J13: 16172.67 | K13: 16195.33 | L13: 16150 | M13: 16105 | N13: 6050 | O13: -3.20%
A14: 4 | B14: Cement | C14: ACC | D14: 1501.10 | E14: 1500.97 | F14: 1490.08 | G14: 1479.07 | H14: 1468.18 | I14: 1511.98 | J14: 1522.87 | K14: 1533.88 | L14: 1511.85 | M14: 1489.95 | N14: 3934000 | O14: 0.22%
A15: 5 | B15: Others | C15: ADANIENT | D15: 225.00 | E15: 224.38 | F15: 221.37 | G15: 217.73 | H15: 214.72 | I15: 228.02 | J15: 231.03 | K15: 234.67 | L15: 227.4 | M15: 220.75 | N15: 29708000 | O15: -2.30%
A16: 6 | B16: Others | C16: ADANIPORTS | D16: 380.20 | E16: 379.82 | F16: 376.48 | G16: 372.77 | H16: 369.43 | I16: 383.53 | J16: 386.87 | K16: 390.58 | L16: 383.15 | M16: 376.1 | N16: 29650000 | O16: -2.82%
A17: 7 | B17: Power | C17: ADANIPOWER | D17: 62.90 | E17: 63.05 | F17: 62.40 | G17: 61.90 | H17: 61.25 | I17: 63.55 | J17: 64.20 | K17: 64.70 | L17: 63.7 | M17: 62.55 | N17: 76590000 | O17: 0.20%
A18: 8 | B18: Automobile | C18: AMARAJABAT | D18: 778.20 | E18: 776.08 | F18: 769.37 | G18: 760.53 | H18: 753.82 | I18: 784.92 | J18: 791.63 | K18: 800.47 | L18: 782.8 | M18: 767.25 | N18: 1541600 | O18: 2.01%
A19: 9 | B19: Cement | C19: AMBUJACEM | D19: 208.35 | E19: 208.37 | F19: 206.13 | G19: 203.92 | H19: 201.68 | I19: 210.58 | J19: 212.82 | K19: 215.03 | L19: 210.6 | M19: 206.15 | N19: 19210000 | O19: 0.83%
A20: 10 | B20: Others | C20: APOLLOHOSP | D20: 1632.15 | E20: 1631.70 | F20: 1620.45 | G20: 1608.75 | H20: 1597.50 | I20: 1643.40 | J20: 1654.65 | K20: 1666.35 | L20: 1642.95 | M20: 1620 | N20: 1752000 | O20: 1.68%
A21: 11 | B21: Automobile | C21: APOLLOTYRE | D21: 175.35 | E21: 174.63 | F21: 173.12 | G21: 170.88 | H21: 169.37 | I21: 176.87 | J21: 178.38 | K21: 180.62 | L21: 176.15 | M21: 172.4 | N21: 10272000 | O21: 0.03%
A22: 12 | B22: Automobile | C22: ASHOKLEY | D22: 86.30 | E22: 85.57 | F22: 84.43 | G22: 82.57 | H22: 81.43 | I22: 87.43 | J22: 88.57 | K22: 90.43 | L22: 86.7 | M22: 83.7 | N22: 66744000 | O22: -2.49%
A23: 13 | B23: FMCG | C23: ASIANPAINT | D23: 1812.40 | E23: 1817.75 | F23: 1789.85 | G23: 1767.30 | H23: 1739.40 | I23: 1840.30 | J23: 1868.20 | K23: 1890.75 | L23: 1845.65 | M23: 1795.2 | N23: 8059200 | O23: -5.23%
A24: 14 | B24: Pharma | C24: AUROPHARMA | D24: 493.85 | E24: 488.38 | F24: 480.97 | G24: 468.08 | H24: 460.67 | I24: 501.27 | J24: 508.68 | K24: 521.57 | L24: 495.8 | M24: 475.5 | N24: 16668000 | O24: -0.12%
A25: 15 | B25: Banking | C25: AXISBANK | D25: 719.90 | E25: 723.07 | F25: 715.43 | G25: 710.97 | H25: 703.33 | I25: 727.53 | J25: 735.17 | K25: 739.63 | L25: 730.7 | M25: 718.6 | N25: 54835200 | O25: -0.85%
A26: 16 | B26: Automobile | C26: BAJAJ-AUTO | D26: 3107.25 | E26: 3108.92 | F26: 3090.23 | G26: 3073.22 | H26: 3054.53 | I26: 3125.93 | J26: 3144.62 | K26: 3161.63 | L26: 3127.6 | M26: 3091.9 | N26: 2164000 | O26: -1.68%
A27: 17 | B27: Finance | C27: BAJAJFINSV | D27: 9566.20 | E27: 9578.03 | F27: 9517.17 | G27: 9468.13 | H27: 9407.27 | I27: 9627.07 | J27: 9687.93 | K27: 9736.97 | L27: 9638.9 | M27: 9529 | N27: 1301250 | O27: -1.13%
A28: 18 | B28: Finance | C28: BAJFINANCE | D28: 4151.95 | E28: 4156.98 | F28: 4119.97 | G28: 4087.98 | H28: 4050.97 | I28: 4188.97 | J28: 4225.98 | K28: 4257.97 | L28: 4194 | M28: 4125 | N28: 7395500 | O28: 0.69%
A29: 19 | B29: Automobile | C29: BALKRISIND | D29: 1092.95 | E29: 1097.48 | F29: 1086.62 | G29: 1080.28 | H29: 1069.42 | I29: 1103.82 | J29: 1114.68 | K29: 1121.02 | L29: 1108.35 | M29: 1091.15 | N29: 2163200 | O29: -3.94%
A30: 20 | B30: Banking | C30: BANKBARODA | D30: 95.00 | E30: 95.03 | F30: 94.17 | G30: 93.33 | H30: 92.47 | I30: 95.87 | J30: 96.73 | K30: 97.57 | L30: 95.9 | M30: 94.2 | N30: 86788800 | O30: 1.39%
A31: 21 | B31: FMCG | C31: BATAINDIA | D31: 1790.30 | E31: 1782.05 | F31: 1764.35 | G31: 1738.40 | H31: 1720.70 | I31: 1808.00 | J31: 1825.70 | K31: 1851.65 | L31: 1799.75 | M31: 1756.1 | N31: 2137300 | O31: -4.54%
A32: 22 | B32: Capital_Goods | C32: BEL | D32: 105.30 | E32: 104.90 | F32: 103.65 | G32: 102.00 | H32: 100.75 | I32: 106.55 | J32: 107.80 | K32: 109.45 | L32: 106.15 | M32: 103.25 | N32: 33624000 | O32: 9.90%
A33: 23 | B33: FMCG | C33: BERGEPAINT | D33: 551.20 | E33: 555.13 | F33: 544.72 | G33: 538.23 | H33: 527.82 | I33: 561.62 | J33: 572.03 | K33: 578.52 | L33: 565.55 | M33: 548.65 | N33: 9033200 | O33: -1.89%
A34: 24 | B34: Automobile | C34: BHARATFORG | D34: 511.65 | E34: 512.58 | F34: 505.72 | G34: 499.78 | H34: 492.92 | I34: 518.52 | J34: 525.38 | K34: 531.32 | L34: 519.45 | M34: 506.65 | N34: 8448700 | O34: 3.01%
A35: 25 | B35: Telecom | C35: BHARTIARTL | D35: 512.00 | E35: 511.72 | F35: 506.38 | G35: 500.77 | H35: 495.43 | I35: 517.33 | J35: 522.67 | K35: 528.28 | L35: 517.05 | M35: 506.1 | N35: 57082989 | O35: 8.34%
A36: 26 | B36: Capital_Goods | C36: BHEL | D36: 43.60 | E36: 44.15 | F36: 42.85 | G36: 42.10 | H36: 40.80 | I36: 44.90 | J36: 46.20 | K36: 46.95 | L36: 45.45 | M36: 43.4 | N36: 83803200 | O36: 8.42%
A37: 27 | B37: Pharma | C37: BIOCON | D37: 295.05 | E37: 293.85 | F37: 291.70 | G37: 288.35 | H37: 286.20 | I37: 297.20 | J37: 299.35 | K37: 302.70 | L37: 296 | M37: 290.5 | N37: 13735600 | O37: 4.55%
A38: 28 | B38: Automobile | C38: BOSCHLTD | D38: 14957.45 | E38: 15009.40 | F38: 14868.80 | G38: 14780.15 | H38: 14639.55 | I38: 15098.05 | J38: 15238.65 | K38: 15327.30 | L38: 15150 | M38: 14920.75 | N38: 135040 | O38: 1.05%
A39: 29 | B39: Oil_Gas | C39: BPCL | D39: 465.20 | E39: 462.98 | F39: 458.57 | G39: 451.93 | H39: 447.52 | I39: 469.62 | J39: 474.03 | K39: 480.67 | L39: 467.4 | M39: 456.35 | N39: 32185800 | O39: 0.87%
A40: 30 | B40: FMCG | C40: BRITANNIA | D40: 3117.40 | E40: 3112.17 | F40: 3087.33 | G40: 3057.27 | H40: 3032.43 | I40: 3142.23 | J40: 3167.07 | K40: 3197.13 | L40: 3137 | M40: 3082.1 | N40: 2256600 | O40: -0.53%
A41: 31 | B41: Pharma | C41: CADILAHC | D41: 269.35 | E41: 269.15 | F41: 267.35 | G41: 265.35 | H41: 263.55 | I41: 271.15 | J41: 272.95 | K41: 274.95 | L41: 270.95 | M41: 267.15 | N41: 7834200 | O41: -1.85%
A42: 32 | B42: Banking | C42: CANBK | D42: 219.80 | E42: 219.43 | F42: 216.87 | G42: 213.93 | H42: 211.37 | I42: 222.37 | J42: 224.93 | K42: 227.87 | L42: 222 | M42: 216.5 | N42: 15061800 | O42: 3.13%
A43: 33 | B43: Oil_Gas | C43: CASTROLIND | D43: 132.45 | E43: 133.12 | F43: 131.23 | G43: 130.02 | H43: 128.13 | I43: 134.33 | J43: 136.22 | K43: 137.43 | L43: 135 | M43: 131.9 | N43: 7056100 | O43: 1.24%
A44: 34 | B44: Textile | C44: CENTURYTEX | D44: 560.00 | E44: 553.43 | F44: 542.47 | G44: 524.93 | H44: 513.97 | I44: 570.97 | J44: 581.93 | K44: 599.47 | L44: 564.4 | M44: 535.9 | N44: 3529200 | O44: -5.48%
A45: 35 | B45: Power | C45: CESC | D45: 748.30 | E45: 753.93 | F45: 737.97 | G45: 727.63 | H45: 711.67 | I45: 764.27 | J45: 780.23 | K45: 790.57 | L45: 769.9 | M45: 743.6 | N45: 1497600 | O45: -0.48%
A46: 36 | B46: Finance | C46: CHOLAFIN | D46: 316.30 | E46: 315.45 | F46: 311.25 | G46: 306.20 | H46: 302.00 | I46: 320.50 | J46: 324.70 | K46: 329.75 | L46: 319.65 | M46: 310.4 | N46: 4137500 | O46: 14.93%
A47: 37 | B47: Pharma | C47: CIPLA | D47: 474.90 | E47: 476.55 | F47: 472.10 | G47: 469.30 | H47: 464.85 | I47: 479.35 | J47: 483.80 | K47: 486.60 | L47: 481 | M47: 473.75 | N47: 14590050 | O47: -0.95%
A48: 38 | B48: Others | C48: COALINDIA | D48: 201.85 | E48: 202.60 | F48: 200.35 | G48: 198.85 | H48: 196.60 | I48: 204.10 | J48: 206.35 | K48: 207.85 | L48: 204.85 | M48: 201.1 | N48: 21848400 | O48: -1.09%
A49: 39 | B49: FMCG | C49: COLPAL | D49: 1491.30 | E49: 1494.40 | F49: 1485.00 | G49: 1478.70 | H49: 1469.30 | I49: 1500.70 | J49: 1510.10 | K49: 1516.40 | L49: 1503.8 | M49: 1488.1 | N49: 3404100 | O49: -1.14%
A50: 40 | B50: Others | C50: CONCOR | D50: 553.70 | E50: 553.55 | F50: 551.20 | G50: 548.70 | H50: 546.35 | I50: 556.05 | J50: 558.40 | K50: 560.90 | L50: 555.9 | M50: 551.05 | N50: 6472383 | O50: 3.01%
A51: 41 | B51: Capital_Goods | C51: CUMMINSIND | D51: 582.40 | E51: 585.70 | F51: 577.60 | G51: 572.80 | H51: 564.70 | I51: 590.50 | J51: 598.60 | K51: 603.40 | L51: 593.8 | M51: 580.9 | N51: 1731600 | O51: 2.34%
A52: 42 | B52: FMCG | C52: DABUR | D52: 487.50 | E52: 485.92 | F52: 482.93 | G52: 478.37 | H52: 475.38 | I52: 490.48 | J52: 493.47 | K52: 498.03 | L52: 488.9 | M52: 481.35 | N52: 12402500 | O52: -1.23%
A53: 43 | B53: Media | C53: DISHTV | D53: 13.50 | E53: 13.33 | F53: 13.02 | G53: 12.53 | H53: 12.22 | I53: 13.82 | J53: 14.13 | K53: 14.62 | L53: 13.65 | M53: 12.85 | N53: 85560300 | O53: -7.59%
A54: 44 | B54: Pharma | C54: DIVISLAB | D54: 1877.20 | E54: 1885.77 | F54: 1865.28 | G54: 1853.37 | H54: 1832.88 | I54: 1897.68 | J54: 1918.17 | K54: 1930.08 | L54: 1906.25 | M54: 1873.85 | N54: 2291200 | O54: -2.45%
A55: 45 | B55: Realty | C55: DLF | D55: 258.00 | E55: 257.80 | F55: 255.95 | G55: 253.90 | H55: 252.05 | I55: 259.85 | J55: 261.70 | K55: 263.75 | L55: 259.65 | M55: 255.75 | N55: 34283700 | O55: -4.79%
A56: 46 | B56: Pharma | C56: DRREDDY | D56: 3061.65 | E56: 3060.85 | F56: 3039.45 | G56: 3017.25 | H56: 2995.85 | I56: 3083.05 | J56: 3104.45 | K56: 3126.65 | L56: 3082.25 | M56: 3038.65 | N56: 3305500 | O56: -0.82%
A57: 47 | B57: Automobile | C57: EICHERMOT | D57: 21103.60 | E57: 21196.73 | F57: 20908.97 | G57: 20714.33 | H57: 20426.57 | I57: 21391.37 | J57: 21679.13 | K57: 21873.77 | L57: 21484.5 | M57: 21002.1 | N57: 336450 | O57: 0.04%
A58: 48 | B58: Finance | C58: EQUITAS | D58: 104.20 | E58: 103.98 | F58: 103.32 | G58: 102.43 | H58: 101.77 | I58: 104.87 | J58: 105.53 | K58: 106.42 | L58: 104.65 | M58: 103.1 | N58: 19306000 | O58: -0.66%
A59: 49 | B59: Automobile | C59: ESCORTS | D59: 705.15 | E59: 706.43 | F59: 700.22 | G59: 695.28 | H59: 689.07 | I59: 711.37 | J59: 717.58 | K59: 722.52 | L59: 712.65 | M59: 701.5 | N59: 4827900 | O59: -1.28%
A60: 50 | B60: Automobile | C60: EXIDEIND | D60: 194.70 | E60: 194.55 | F60: 193.45 | G60: 192.20 | H60: 191.10 | I60: 195.80 | J60: 196.90 | K60: 198.15 | L60: 195.65 | M60: 193.3 | N60: 12159700 | O60: 1.65%
A61: 51 | B61: Banking | C61: FEDERALBNK | D61: 94.75 | E61: 94.95 | F61: 93.40 | G61: 92.05 | H61: 90.50 | I61: 96.30 | J61: 97.85 | K61: 99.20 | L61: 96.5 | M61: 93.6 | N61: 65037000 | O61: -0.19%
A62: 52 | B62: Oil_Gas | C62: GAIL | D62: 127.30 | E62: 127.90 | F62: 126.05 | G62: 124.80 | H62: 122.95 | I62: 129.15 | J62: 131.00 | K62: 132.25 | L62: 129.75 | M62: 126.65 | N62: 49115472 | O62: 2.28%
A63: 53 | B63: Pharma | C63: GLENMARK | D63: 352.35 | E63: 351.95 | F63: 347.20 | G63: 342.05 | H63: 337.30 | I63: 357.10 | J63: 361.85 | K63: 367.00 | L63: 356.7 | M63: 346.8 | N63: 8636600 | O63: 0.19%
A64: 54 | B64: Infrastructure | C64: GMRINFRA | D64: 23.20 | E64: 23.18 | F64: 22.92 | G64: 22.63 | H64: 22.37 | I64: 23.47 | J64: 23.73 | K64: 24.02 | L64: 23.45 | M64: 22.9 | N64: 199530000 | O64: -1.20%
A65: 55 | B65: FMCG | C65: GODREJCP | D65: 734.35 | E65: 738.68 | F65: 728.72 | G65: 723.08 | H65: 713.12 | I65: 744.32 | J65: 754.28 | K65: 759.92 | L65: 748.65 | M65: 733.05 | N65: 4282400 | O65: -1.02%
A66: 56 | B66: Cement | C66: GRASIM | D66: 773.00 | E66: 773.67 | F66: 764.03 | G66: 755.07 | H66: 745.43 | I66: 782.63 | J66: 792.27 | K66: 801.23 | L66: 783.3 | M66: 764.7 | N66: 23400750 | O66: -1.26%
A67: 57 | B67: Others | C67: HAVELLS | D67: 618.25 | E67: 621.75 | F67: 610.10 | G67: 601.95 | H67: 590.30 | I67: 629.90 | J67: 641.55 | K67: 649.70 | L67: 633.4 | M67: 613.6 | N67: 7935000 | O67: 4.11%
A68: 58 | B68: Technology | C68: HCLTECH | D68: 583.90 | E68: 586.18 | F68: 580.27 | G68: 576.63 | H68: 570.72 | I68: 589.82 | J68: 595.73 | K68: 599.37 | L68: 592.1 | M68: 582.55 | N68: 27055000 | O68: -1.01%
A69: 59 | B69: Finance | C69: HDFC | D69: 2471.45 | E69: 2466.35 | F69: 2442.80 | G69: 2414.15 | H69: 2390.60 | I69: 2495.00 | J69: 2518.55 | K69: 2547.20 | L69: 2489.9 | M69: 2437.7 | N69: 31174750 | O69: -0.09%
A70: 60 | B70: Banking | C70: HDFCBANK | D70: 1248.20 | E70: 1248.15 | F70: 1241.65 | G70: 1235.10 | H70: 1228.60 | I70: 1254.70 | J70: 1261.20 | K70: 1267.75 | L70: 1254.65 | M70: 1241.6 | N70: 33850000 | O70: 1.32%
A71: 61 | B71: Automobile | C71: HEROMOTOCO | D71: 2405.15 | E71: 2400.17 | F71: 2387.38 | G71: 2369.62 | H71: 2356.83 | I71: 2417.93 | J71: 2430.72 | K71: 2448.48 | L71: 2412.95 | M71: 2382.4 | N71: 4147600 | O71: 0.63%
A72: 62 | B72: Metals | C72: HINDALCO | D72: 205.80 | E72: 206.57 | F72: 204.33 | G72: 202.87 | H72: 200.63 | I72: 208.03 | J72: 210.27 | K72: 211.73 | L72: 208.8 | M72: 205.1 | N72: 46473000 | O72: 0.34%
A73: 63 | B73: Oil_Gas | C73: HINDPETRO | D73: 249.85 | E73: 250.35 | F73: 248.00 | G73: 246.15 | H73: 243.80 | I73: 252.20 | J73: 254.55 | K73: 256.40 | L73: 252.7 | M73: 248.5 | N73: 18975600 | O73: 0.46%
A74: 64 | B74: FMCG | C74: HINDUNILVR | D74: 2059.00 | E74: 2062.93 | F74: 2050.27 | G74: 2041.53 | H74: 2028.87 | I74: 2071.67 | J74: 2084.33 | K74: 2093.07 | L74: 2075.6 | M74: 2054.2 | N74: 9431400 | O74: -2.48%
A75: 65 | B75: Finance | C75: IBULHSGFIN | D75: 301.35 | E75: 299.48 | F75: 292.72 | G75: 284.08 | H75: 277.32 | I75: 308.12 | J75: 314.88 | K75: 323.52 | L75: 306.25 | M75: 290.85 | N75: 25038000 | O75: 1.65%
A76: 66 | B76: Banking | C76: ICICIBANK | D76: 532.95 | E76: 535.30 | F76: 529.65 | G76: 526.35 | H76: 520.70 | I76: 538.60 | J76: 544.25 | K76: 547.55 | L76: 540.95 | M76: 532 | N76: 104285500 | O76: -0.20%
A77: 67 | B77: Finance | C77: ICICIPRULI | D77: 490.20 | E77: 489.27 | F77: 480.13 | G77: 470.07 | H77: 460.93 | I77: 499.33 | J77: 508.47 | K77: 518.53 | L77: 498.4 | M77: 479.2 | N77: 10801500 | O77: 1.90%
A78: 68 | B78: Telecom | C78: IDEA | D78: 5.95 | E78: 5.78 | F78: 5.52 | G78: 5.08 | H78: 4.82 | I78: 6.22 | J78: 6.48 | K78: 6.92 | L78: 6.05 | M78: 5.35 | N78: 506562000 | O78: 0.35%
A79: 69 | B79: Banking | C79: IDFCFIRSTB | D79: 43.35 | E79: 43.35 | F79: 42.90 | G79: 42.45 | H79: 42.00 | I79: 43.80 | J79: 44.25 | K79: 44.70 | L79: 43.8 | M79: 42.9 | N79: 240624000 | O79: 0.07%
A80: 70 | B80: Oil_Gas | C80: IGL | D80: 473.30 | E80: 472.30 | F80: 468.65 | G80: 464.00 | H80: 460.35 | I80: 476.95 | J80: 480.60 | K80: 485.25 | L80: 475.95 | M80: 467.65 | N80: 9471000 | O80: -2.52%
A81: 71 | B81: Others | C81: INDIGO | D81: 1443.45 | E81: 1445.98 | F81: 1428.57 | G81: 1413.68 | H81: 1396.27 | I81: 1460.87 | J81: 1478.28 | K81: 1493.17 | L81: 1463.4 | M81: 1431.1 | N81: 3951900 | O81: 5.23%
A82: 72 | B82: Banking | C82: INDUSINDBK | D82: 1341.30 | E82: 1339.47 | F82: 1324.03 | G82: 1306.77 | H82: 1291.33 | I82: 1356.73 | J82: 1372.17 | K82: 1389.43 | L82: 1354.9 | M82: 1322.2 | N82: 17630400 | O82: 1.05%
A83: 73 | B83: Telecom | C83: INFRATEL | D83: 241.40 | E83: 236.88 | F83: 229.77 | G83: 218.13 | H83: 211.02 | I83: 248.52 | J83: 255.63 | K83: 267.27 | L83: 244 | M83: 225.25 | N83: 14508000 | O83: -0.17%
A84: 74 | B84: Technology | C84: INFY | D84: 763.95 | E84: 766.45 | F84: 760.70 | G84: 757.45 | H84: 751.70 | I84: 769.70 | J84: 775.45 | K84: 778.70 | L84: 772.2 | M84: 763.2 | N84: 28784400 | O84: -3.84%
A85: 75 | B85: Oil_Gas | C85: IOC | D85: 113.25 | E85: 114.58 | F85: 111.32 | G85: 109.38 | H85: 106.12 | I85: 116.52 | J85: 119.78 | K85: 121.72 | L85: 117.85 | M85: 112.65 | N85: 91860000 | O85: 67.76%
A86: 76 | B86: FMCG | C86: ITC | D86: 239.10 | E86: 239.87 | F86: 237.88 | G86: 236.67 | H86: 234.68 | I86: 241.08 | J86: 243.07 | K86: 244.28 | L86: 241.85 | M86: 238.65 | N86: 129580800 | O86: 0.75%
A87: 77 | B87: Metals | C87: JINDALSTEL | D87: 185.90 | E87: 183.23 | F87: 179.32 | G87: 172.73 | H87: 168.82 | I87: 189.82 | J87: 193.73 | K87: 200.32 | L87: 187.15 | M87: 176.65 | N87: 31770000 | O87: 1.18%
A88: 78 | B88: Metals | C88: JSWSTEEL | D88: 267.65 | E88: 268.10 | F88: 264.45 | G88: 261.25 | H88: 257.60 | I88: 271.30 | J88: 274.95 | K88: 278.15 | L88: 271.75 | M88: 264.9 | N88: 54636500 | O88: 1.03%
A89: 79 | B89: Others | C89: JUBLFOOD | D89: 1768.35 | E89: 1765.05 | F89: 1754.30 | G89: 1740.25 | H89: 1729.50 | I89: 1779.10 | J89: 1789.85 | K89: 1803.90 | L89: 1775.8 | M89: 1751 | N89: 2709000 | O89: -0.79%
A90: 80 | B90: Others | C90: JUSTDIAL | D90: 570.70 | E90: 570.17 | F90: 555.53 | G90: 540.37 | H90: 525.73 | I90: 585.33 | J90: 599.97 | K90: 615.13 | L90: 584.8 | M90: 555 | N90: 2632000 | O90: 5.92%
A91: 81 | B91: Banking | C91: KOTAKBANK | D91: 1626.80 | E91: 1615.37 | F91: 1600.13 | G91: 1573.47 | H91: 1558.23 | I91: 1642.03 | J91: 1657.27 | K91: 1683.93 | L91: 1630.6 | M91: 1588.7 | N91: 8628800 | O91: -5.40%
A92: 82 | B92: Finance | C92: L&TFH | D92: 118.40 | E92: 117.97 | F92: 116.53 | G92: 114.67 | H92: 113.23 | I92: 119.83 | J92: 121.27 | K92: 123.13 | L92: 119.4 | M92: 116.1 | N92: 42072800 | O92: 1.97%
A93: 83 | B93: Finance | C93: LICHSGFIN | D93: 479.70 | E93: 476.17 | F93: 464.33 | G93: 448.97 | H93: 437.13 | I93: 491.53 | J93: 503.37 | K93: 518.73 | L93: 488 | M93: 460.8 | N93: 10558600 | O93: 2.80%
A94: 84 | B94: Capital_Goods | C94: LT | D94: 1306.45 | E94: 1308.73 | F94: 1301.37 | G94: 1296.28 | H94: 1288.92 | I94: 1313.82 | J94: 1321.18 | K94: 1326.27 | L94: 1316.1 | M94: 1303.65 | N94: 21095625 | O94: 0.29%
A95: 85 | B95: Pharma | C95: LUPIN | D95: 742.55 | E95: 738.80 | F95: 732.60 | G95: 722.65 | H95: 716.45 | I95: 748.75 | J95: 754.95 | K95: 764.90 | L95: 745 | M95: 728.85 | N95: 8953700 | O95: -2.19%
A96: 86 | B96: Automobile | C96: M&M | D96: 554.65 | E96: 557.75 | F96: 549.25 | G96: 543.85 | H96: 535.35 | I96: 563.15 | J96: 571.65 | K96: 577.05 | L96: 566.25 | M96: 552.35 | N96: 21740000 | O96: -2.31%
A97: 87 | B97: Finance | C97: M&MFIN | D97: 353.75 | E97: 351.60 | F97: 346.90 | G97: 340.05 | H97: 335.35 | I97: 358.45 | J97: 363.15 | K97: 370.00 | L97: 356.3 | M97: 344.75 | N97: 16857600 | O97: 0.36%
A98: 88 | B98: Finance | C98: MANAPPURAM | D98: 179.85 | E98: 180.17 | F98: 178.33 | G98: 176.82 | H98: 174.98 | I98: 181.68 | J98: 183.52 | K98: 185.03 | L98: 182 | M98: 178.65 | N98: 18546000 | O98: 0.49%
A99: 89 | B99: FMCG | C99: MARICO | D99: 338.05 | E99: 340.38 | F99: 335.12 | G99: 332.18 | H99: 326.92 | I99: 343.32 | J99: 348.58 | K99: 351.52 | L99: 345.65 | M99: 337.45 | N99: 13517400 | O99: 2.15%
A100: 90 | B100: Automobile | C100: MARUTI | D100: 7327.50 | E100: 7364.07 | F100: 7278.53 | G100: 7229.57 | H100: 7144.03 | I100: 7413.03 | J100: 7498.57 | K100: 7547.53 | L100: 7449.6 | M100: 7315.1 | N100: 2937800 | O100: -1.50%
A101: 91 | B101: FMCG | C101: MCDOWELL-N | D101: 577.80 | E101: 576.52 | F101: 572.23 | G101: 566.67 | H101: 562.38 | I101: 582.08 | J101: 586.37 | K101: 591.93 | L101: 580.8 | M101: 570.95 | N101: 13100000 | O101: -3.44%
A102: 92 | B102: Finance | C102: MFSL | D102: 526.65 | E102: 522.25 | F102: 515.75 | G102: 504.85 | H102: 498.35 | I102: 533.15 | J102: 539.65 | K102: 550.55 | L102: 528.75 | M102: 511.35 | N102: 10125700 | O102: 5.48%
A103: 93 | B103: Oil_Gas | C103: MGL | D103: 1150.35 | E103: 1148.08 | F103: 1132.87 | G103: 1115.38 | H103: 1100.17 | I103: 1165.57 | J103: 1180.78 | K103: 1198.27 | L103: 1163.3 | M103: 1130.6 | N103: 2388600 | O103: 0.50%
A104: 94 | B104: Technology | C104: MINDTREE | D104: 899.80 | E104: 898.43 | F104: 889.17 | G104: 878.53 | H104: 869.27 | I104: 909.07 | J104: 918.33 | K104: 928.97 | L104: 907.7 | M104: 887.8 | N104: 1587200 | O104: -1.88%
A105: 95 | B105: Automobile | C105: MOTHERSUMI | D105: 138.55 | E105: 137.47 | F105: 135.33 | G105: 132.12 | H105: 129.98 | I105: 140.68 | J105: 142.82 | K105: 146.03 | L105: 139.6 | M105: 134.25 | N105: 31315000 | O105: -3.91%
A106: 96 | B106: Automobile | C106: MRF | D106: 67989.75 | E106: 68102.77 | F106: 67555.58 | G106: 67121.42 | H106: 66574.23 | I106: 68536.93 | J106: 69084.12 | K106: 69518.28 | L106: 68649.95 | M106: 67668.6 | N106: 20770 | O106: -2.58%
A107: 97 | B107: Finance | C107: MUTHOOTFIN | D107: 772.00 | E107: 772.17 | F107: 765.03 | G107: 758.07 | H107: 750.93 | I107: 779.13 | J107: 786.27 | K107: 793.23 | L107: 779.3 | M107: 765.2 | N107: 4408500 | O107: 2.55%
A108: 98 | B108: Metals | C108: NATIONALUM | D108: 45.30 | E108: 45.60 | F108: 44.70 | G108: 44.10 | H108: 43.20 | I108: 46.20 | J108: 47.10 | K108: 47.70 | L108: 46.5 | M108: 45 | N108: 50169600 | O108: -0.81%
A109: 99 | B109: Infrastructure | C109: NBCC | D109: 37.10 | E109: 37.38 | F109: 36.42 | G109: 35.73 | H109: 34.77 | I109: 38.07 | J109: 39.03 | K109: 39.72 | L109: 38.35 | M109: 36.7 | N109: 30730700 | O109: 1.08%
A110: 100 | B110: Infrastructure | C110: NCC | D110: 57.50 | E110: 57.77 | F110: 56.63 | G110: 55.77 | H110: 54.63 | I110: 58.63 | J110: 59.77 | K110: 60.63 | L110: 58.9 | M110: 56.9 | N110: 47394000 | O110: 0.73%
A111: 101 | B111: FMCG | C111: NESTLEIND | D111: 15335.10 | E111: 15383.28 | F111: 15226.92 | G111: 15118.73 | H111: 14962.37 | I111: 15491.47 | J111: 15647.83 | K111: 15756.02 | L111: 15539.65 | M111: 15275.1 | N111: 464200 | O111: -1.82%
A112: 102 | B112: Technology | C112: NIITTECH | D112: 1799.80 | E112: 1794.98 | F112: 1778.32 | G112: 1756.83 | H112: 1740.17 | I112: 1816.47 | J112: 1833.13 | K112: 1854.62 | L112: 1811.65 | M112: 1773.5 | N112: 899625 | O112: 2.26%
A113: 103 | B113: Metals | C113: NMDC | D113: 134.75 | E113: 135.57 | F113: 133.33 | G113: 131.92 | H113: 129.68 | I113: 136.98 | J113: 139.22 | K113: 140.63 | L113: 137.8 | M113: 134.15 | N113: 22734000 | O113: 2.02%
A114: 104 | B114: Power | C114: NTPC | D114: 117.60 | E114: 118.25 | F114: 116.75 | G114: 115.90 | H114: 114.40 | I114: 119.10 | J114: 120.60 | K114: 121.45 | L114: 119.75 | M114: 117.4 | N114: 59448000 | O114: 3.05%
A115: 105 | B115: Oil_Gas | C115: OIL | D115: 144.70 | E115: 145.67 | F115: 143.18 | G115: 141.67 | H115: 139.18 | I115: 147.18 | J115: 149.67 | K115: 151.18 | L115: 148.15 | M115: 144.15 | N115: 6206574 | O115: 4.34%
A116: 106 | B116: Oil_Gas | C116: ONGC | D116: 122.80 | E116: 123.07 | F116: 121.93 | G116: 121.07 | H116: 119.93 | I116: 123.93 | J116: 125.07 | K116: 125.93 | L116: 124.2 | M116: 122.2 | N116: 41602700 | O116: -0.75%
A117: 107 | B117: Textile | C117: PAGEIND | D117: 25343.90 | E117: 25432.17 | F117: 25164.98 | G117: 24986.07 | H117: 24718.88 | I117: 25611.08 | J117: 25878.27 | K117: 26057.18 | L117: 25699.35 | M117: 25253.25 | N117: 147500 | O117: 2.64%
A118: 108 | B118: Pharma | C118: PEL | D118: 1618.20 | E118: 1602.63 | F118: 1581.32 | G118: 1544.43 | H118: 1523.12 | I118: 1639.52 | J118: 1660.83 | K118: 1697.72 | L118: 1623.95 | M118: 1565.75 | N118: 5415534 | O118: 1.22%
A119: 109 | B119: Oil_Gas | C119: PETRONET | D119: 274.30 | E119: 273.18 | F119: 271.12 | G119: 267.93 | H119: 265.87 | I119: 276.37 | J119: 278.43 | K119: 281.62 | L119: 275.25 | M119: 270 | N119: 18666000 | O119: -0.78%
A120: 110 | B120: Finance | C120: PFC | D120: 106.55 | E120: 108.42 | F120: 104.28 | G120: 102.02 | H120: 97.88 | I120: 110.68 | J120: 114.82 | K120: 117.08 | L120: 112.55 | M120: 106.15 | N120: 41657800 | O120: 36.59%
A121: 111 | B121: FMCG | C121: PIDILITIND | D121: 1419.00 | E121: 1425.87 | F121: 1409.18 | G121: 1399.37 | H121: 1382.68 | I121: 1435.68 | J121: 1452.37 | K121: 1462.18 | L121: 1442.55 | M121: 1416.05 | N121: 3104000 | O121: -2.11%
A122: 112 | B122: Banking | C122: PNB | D122: 61.55 | E122: 61.75 | F122: 61.10 | G122: 60.65 | H122: 60.00 | I122: 62.20 | J122: 62.85 | K122: 63.30 | L122: 62.4 | M122: 61.3 | N122: 125603900 | O122: 0.50%
A123: 113 | B123: Power | C123: POWERGRID | D123: 201.30 | E123: 201.85 | F123: 198.95 | G123: 196.60 | H123: 193.70 | I123: 204.20 | J123: 207.10 | K123: 209.45 | L123: 204.75 | M123: 199.5 | N123: 22668000 | O123: 0.50%
A124: 114 | B124: Media | C124: PVR | D124: 1938.50 | E124: 1941.17 | F124: 1921.33 | G124: 1904.17 | H124: 1884.33 | I124: 1958.33 | J124: 1978.17 | K124: 1995.33 | L124: 1961 | M124: 1924 | N124: 1345600 | O124: 4.12%
A125: 115 | B125: Cement | C125: RAMCOCEM | D125: 822.60 | E125: 824.37 | F125: 815.08 | G125: 807.57 | H125: 798.28 | I125: 831.88 | J125: 841.17 | K125: 848.68 | L125: 833.65 | M125: 816.85 | N125: 1759200 | O125: 4.42%
A126: 116 | B126: Banking | C126: RBLBANK | D126: 342.45 | E126: 336.05 | F126: 328.40 | G126: 314.35 | H126: 306.70 | I126: 350.10 | J126: 357.75 | K126: 371.80 | L126: 343.7 | M126: 322 | N126: 19821000 | O126: 0.71%
A127: 117 | B127: Power | C127: RECLTD | D127: 134.50 | E127: 135.65 | F127: 133.10 | G127: 131.70 | H127: 129.15 | I127: 137.05 | J127: 139.60 | K127: 141.00 | L127: 138.2 | M127: 134.25 | N127: 24018000 | O127: 9.73%
A128: 118 | B128: Oil_Gas | C128: RELIANCE | D128: 1536.80 | E128: 1536.20 | F128: 1525.55 | G128: 1514.30 | H128: 1503.65 | I128: 1547.45 | J128: 1558.10 | K128: 1569.35 | L128: 1546.85 | M128: 1524.95 | N128: 54562000 | O128: -1.35%
A129: 119 | B129: Metals | C129: SAIL | D129: 49.90 | E129: 50.33 | F129: 49.27 | G129: 48.63 | H129: 47.57 | I129: 50.97 | J129: 52.03 | K129: 52.67 | L129: 51.4 | M129: 49.7 | N129: 100040400 | O129: 2.71%
A130: 120 | B130: Banking | C130: SBIN | D130: 314.80 | E130: 315.20 | F130: 312.70 | G130: 310.60 | H130: 308.10 | I130: 317.30 | J130: 319.80 | K130: 321.90 | L130: 317.7 | M130: 313.1 | N130: 126699000 | O130: 0.71%
A131: 121 | B131: Cement | C131: SHREECEM | D131: 23060.15 | E131: 23164.07 | F131: 22826.08 | G131: 22592.02 | H131: 22254.03 | I131: 23398.13 | J131: 23736.12 | K131: 23970.18 | L131: 23502.05 | M131: 22930 | N131: 151200 | O131: 1.85%
A132: 122 | B132: Capital_Goods | C132: SIEMENS | D132: 1586.95 | E132: 1594.10 | F132: 1572.85 | G132: 1558.75 | H132: 1537.50 | I132: 1608.20 | J132: 1629.45 | K132: 1643.55 | L132: 1615.35 | M132: 1580 | N132: 2336950 | O132: -0.49%
A133: 123 | B133: Textile | C133: SRF | D133: 3622.10 | E133: 3630.37 | F133: 3606.73 | G133: 3591.37 | H133: 3567.73 | I133: 3645.73 | J133: 3669.37 | K133: 3684.73 | L133: 3654 | M133: 3615 | N133: 824500 | O133: 0.15%
A134: 124 | B134: Finance | C134: SRTRANSFIN | D134: 1089.60 | E134: 1085.52 | F134: 1068.08 | G134: 1046.57 | H134: 1029.13 | I134: 1107.03 | J134: 1124.47 | K134: 1145.98 | L134: 1102.95 | M134: 1064 | N134: 4239600 | O134: -4.84%
A135: 125 | B135: Pharma | C135: SUNPHARMA | D135: 448.70 | E135: 449.68 | F135: 446.42 | G135: 444.13 | H135: 440.87 | I135: 451.97 | J135: 455.23 | K135: 457.52 | L135: 452.95 | M135: 447.4 | N135: 64567500 | O135: 0.18%
A136: 126 | B136: Media | C136: SUNTV | D136: 482.70 | E136: 480.98 | F136: 476.97 | G136: 471.23 | H136: 467.22 | I136: 486.72 | J136: 490.73 | K136: 496.47 | L136: 485 | M136: 475.25 | N136: 7092000 | O136: -0.64%
A137: 127 | B137: Fertilisers | C137: TATACHEM | D137: 751.80 | E137: 750.87 | F137: 743.83 | G137: 735.87 | H137: 728.83 | I137: 758.83 | J137: 765.87 | K137: 773.83 | L137: 757.9 | M137: 742.9 | N137: 3154500 | O137: -0.11%
A138: 128 | B138: FMCG | C138: TATAGLOBAL | D138: 387.20 | E138: 385.98 | F138: 381.62 | G138: 376.03 | H138: 371.67 | I138: 391.57 | J138: 395.93 | K138: 401.52 | L138: 390.35 | M138: 380.4 | N138: 13786200 | O138: 2.45%
A139: 129 | B139: Automobile | C139: TATAMOTORS | D139: 191.70 | E139: 193.00 | F139: 189.20 | G139: 186.70 | H139: 182.90 | I139: 195.50 | J139: 199.30 | K139: 201.80 | L139: 196.8 | M139: 190.5 | N139: 72691500 | O139: 1.12%
A140: 130 | B140: Automobile | C140: TATAMTRDVR | D140: 78.75 | E140: 79.58 | F140: 77.72 | G140: 76.68 | H140: 74.82 | I140: 80.62 | J140: 82.48 | K140: 83.52 | L140: 81.45 | M140: 78.55 | N140: 31390400 | O140: 0.83%
A141: 131 | B141: Power | C141: TATAPOWER | D141: 59.75 | E141: 59.85 | F141: 59.35 | G141: 58.95 | H141: 58.45 | I141: 60.25 | J141: 60.75 | K141: 61.15 | L141: 60.35 | M141: 59.45 | N141: 74421000 | O141: -0.08%
A142: 132 | B142: Metals | C142: TATASTEEL | D142: 477.65 | E142: 480.77 | F142: 472.43 | G142: 467.22 | H142: 458.88 | I142: 485.98 | J142: 494.32 | K142: 499.53 | L142: 489.1 | M142: 475.55 | N142: 23920500 | O142: -2.20%
A143: 133 | B143: Technology | C143: TCS | D143: 2174.20 | E143: 2174.70 | F143: 2161.60 | G143: 2149.00 | H143: 2135.90 | I143: 2187.30 | J143: 2200.40 | K143: 2213.00 | L143: 2187.8 | M143: 2162.1 | N143: 16180250 | O143: -0.67%
A144: 134 | B144: Technology | C144: TECHM | D144: 780.55 | E144: 781.05 | F144: 776.55 | G144: 772.55 | H144: 768.05 | I144: 785.05 | J144: 789.55 | K144: 793.55 | L144: 785.55 | M144: 777.05 | N144: 16004400 | O144: -0.11%
A145: 135 | B145: FMCG | C145: TITAN | D145: 1178.45 | E145: 1176.15 | F145: 1165.35 | G145: 1152.25 | H145: 1141.45 | I145: 1189.25 | J145: 1200.05 | K145: 1213.15 | L145: 1186.95 | M145: 1163.05 | N145: 11804250 | O145: -0.20%
A146: 136 | B146: Pharma | C146: TORNTPHARM | D146: 2028.75 | E146: 2032.12 | F146: 2002.63 | G146: 1976.52 | H146: 1947.03 | I146: 2058.23 | J146: 2087.72 | K146: 2113.83 | L146: 2061.6 | M146: 2006 | N146: 424000 | O146: 12.32%
A147: 137 | B147: Power | C147: TORNTPOWER | D147: 315.55 | E147: 316.10 | F147: 312.45 | G147: 309.35 | H147: 305.70 | I147: 319.20 | J147: 322.85 | K147: 325.95 | L147: 319.75 | M147: 313 | N147: 3345000 | O147: 4.40%
A148: 138 | B148: Automobile | C148: TVSMOTOR | D148: 462.15 | E148: 463.83 | F148: 456.97 | G148: 451.78 | H148: 444.92 | I148: 469.02 | J148: 475.88 | K148: 481.07 | L148: 470.7 | M148: 458.65 | N148: 7379100 | O148: 4.02%
A149: 139 | B149: FMCG | C149: UBL | D149: 1271.85 | E149: 1279.47 | F149: 1251.28 | G149: 1230.72 | H149: 1202.53 | I149: 1300.03 | J149: 1328.22 | K149: 1348.78 | L149: 1307.65 | M149: 1258.9 | N149: 1683500 | O149: 0.97%
A150: 140 | B150: Finance | C150: UJJIVAN | D150: 335.40 | E150: 333.15 | F150: 329.40 | G150: 323.40 | H150: 319.65 | I150: 339.15 | J150: 342.90 | K150: 348.90 | L150: 336.9 | M150: 327.15 | N150: 7491900 | O150: 0.11%
A151: 141 | B151: Cement | C151: ULTRACEMCO | D151: 4501.05 | E151: 4496.72 | F151: 4456.43 | G151: 4411.82 | H151: 4371.53 | I151: 4541.33 | J151: 4581.62 | K151: 4626.23 | L151: 4537 | M151: 4452.1 | N151: 2563000 | O151: 1.13%
A152: 142 | B152: Fertilisers | C152: UPL | D152: 579.40 | E152: 578.85 | F152: 573.90 | G152: 568.40 | H152: 563.45 | I152: 584.35 | J152: 589.30 | K152: 594.80 | L152: 583.8 | M152: 573.35 | N152: 14058900 | O152: -0.81%
A153: 143 | B153: Metals | C153: VEDL | D153: 154.35 | E153: 155.57 | F153: 152.58 | G153: 150.82 | H153: 147.83 | I153: 157.33 | J153: 160.32 | K153: 162.08 | L153: 158.55 | M153: 153.8 | N153: 76692000 | O153: 0.38%
A154: 144 | B154: Capital_Goods | C154: VOLTAS | D154: 704.25 | E154: 703.12 | F154: 698.58 | G154: 692.92 | H154: 688.38 | I154: 708.78 | J154: 713.32 | K154: 718.98 | L154: 707.65 | M154: 697.45 | N154: 3965000 | O154: 3.12%
A155: 145 | B155: Technology | C155: WIPRO | D155: 246.45 | E155: 246.67 | F155: 245.68 | G155: 244.92 | H155: 243.93 | I155: 247.43 | J155: 248.42 | K155: 249.18 | L155: 247.65 | M155: 245.9 | N155: 23209600 | O155: 1.13%
A156: 146 | B156: Banking | C156: YESBANK | D156: 37.45 | E156: 37.27 | F156: 36.73 | G156: 36.02 | H156: 35.48 | I156: 37.98 | J156: 38.52 | K156: 39.23 | L156: 37.8 | M156: 36.55 | N156: 301232800 | O156: -0.28%
A157: 147 | B157: Media | C157: ZEEL | D157: 284.15 | E157: 279.60 | F157: 272.90 | G157: 261.65 | H157: 254.95 | I157: 290.85 | J157: 297.55 | K157: 308.80 | L157: 286.3 | M157: 268.35 | N157: 30729200 | O157: -4.20%
A175: Pivot Point: This is trigger point for intra day buy/sell based on the price range of the previous day
A176: As per the tool,the trader should take BUY position just above Pivot and keep the stop loss of pivot point and the first target would be Resistance 1(R1)
A177: If R1 is crossed then R2 becomes the next target with stop loss of at R1
A178: Similarly if price goes below pivot point then the trader should sell and keep a stop loss of pivot point and the first target would be S1
A179: If S1 is crossed then S2 becomes the next target with stop loss of at S1
A181: Disclaimer:
A182: This document has been prepared by the Retail Research Desk of Asit C Mehta
A183: Investment Intermediates Ltd. and is meant for use of the recipient only
A184: and is not for circulation. This document is not to be reported or
A185: copied or made available to others. It should not be considered to be
A186: taken as an offer to sell or a solicitation to buy any security. The
A187: information contained herein is from sources believed reliable. We do
A188: not represent that it is accurate or complete and it should not be
A189: relied upon as such. We may from time to time have positions in and buy
A190: and sell securities referred to herein

Sheet Cash Intra
M5: Back to Main Page
A6: FOR INTRA DAY TRADING | K6: =Main!B10 -> 2020-01-22
A8: Sr.no | B8: Scrip | C8: CLOSE RATE | D8: Pivot Point | E8: Supports | H8: Resistances
C9: Point | E9: S1 | F9: S2 | G9: S3 | H9: R1 | I9: R2 | J9: R3 | K9: HIGH | L9: LOW | M9: Total Trade Quanity in Lakhs
A10: 1 | B10: Nifty 50 | C10: 12169.85 | D10: 12187.40 | E10: 12144.75 | F10: 12119.65 | G10: 12077.00 | H10: 12212.50 | I10: 12255.15 | J10: 12280.25 | K10: 12230.05 | L10: 12162.3
A11: 2 | B11: Nifty Bank | C11: 30947.55 | D11: 30992.47 | E11: 30813.68 | F11: 30679.82 | G11: 30501.03 | H11: 31126.33 | I11: 31305.12 | J11: 31438.98 | K11: 31171.25 | L11: 30858.6
A12: 3 | B12: Nifty CPSE | C12: 1854.45 | D12: 1862.77 | E12: 1842.58 | F12: 1830.72 | G12: 1810.53 | H12: 1874.63 | I12: 1894.82 | J12: 1906.68 | K12: 1882.95 | L12: 1850.9
A13: 4 | B13: Nifty Infra | C13: 3335.5 | D13: 3338.50 | E13: 3327.75 | F13: 3320.00 | G13: 3309.25 | H13: 3346.25 | I13: 3357.00 | J13: 3364.75 | K13: 3349.25 | L13: 3330.75
A14: 5 | B14: Nifty IT | C14: 16175.2 | D14: 16176.77 | E14: 16132.03 | F14: 16088.87 | G14: 16044.13 | H14: 16219.93 | I14: 16264.67 | J14: 16307.83 | K14: 16221.5 | L14: 16133.6
A15: 6 | B15: Nifty PSE | C15: 3173 | D15: 3185.73 | E15: 3156.97 | F15: 3140.93 | G15: 3112.17 | H15: 3201.77 | I15: 3230.53 | J15: 3246.57 | K15: 3214.5 | L15: 3169.7
A16: 7 | B16: Nifty Midcap 50 | C16: 4940.6 | D16: 4943.00 | E16: 4916.00 | F16: 4891.40 | G16: 4864.40 | H16: 4967.60 | I16: 4994.60 | J16: 5019.20 | K16: 4970 | L16: 4918.4
A17: 8 | B17: ACC | C17: 1496.1 | D17: 1497.50 | E17: 1485.60 | F17: 1475.10 | G17: 1463.20 | H17: 1508.00 | I17: 1519.90 | J17: 1530.40 | K17: 1509.4 | L17: 1487 | M17: 3.5932
A18: 9 | B18: AUBANK | C18: 888.35 | D18: 885.28 | E18: 878.57 | F18: 868.78 | G18: 862.07 | H18: 895.07 | I18: 901.78 | J18: 911.57 | K18: 892 | L18: 875.5 | M18: 2.5552
A19: 10 | B19: ADANIPORTS | C19: 379.95 | D19: 379.08 | E19: 376.17 | F19: 372.38 | G19: 369.47 | H19: 382.87 | I19: 385.78 | J19: 389.57 | K19: 382 | L19: 375.3 | M19: 20.05178
A20: 11 | B20: ADANIPOWER | C20: 62.75 | D20: 62.90 | E20: 62.25 | F20: 61.75 | G20: 61.10 | H20: 63.40 | I20: 64.05 | J20: 64.55 | K20: 63.55 | L20: 62.4 | M20: 46.51073
A21: 12 | B21: ABCAPITAL | C21: 106.2 | D21: 106.93 | E21: 105.07 | F21: 103.93 | G21: 102.07 | H21: 108.07 | I21: 109.93 | J21: 111.07 | K21: 108.8 | L21: 105.8 | M21: 13.72187
A22: 13 | B22: ABFRL | C22: 229.4 | D22: 230.72 | E22: 227.68 | F22: 225.97 | G22: 222.93 | H22: 232.43 | I22: 235.47 | J22: 237.18 | K22: 233.75 | L22: 229 | M22: 1.86185
A23: 14 | B23: AJANTPHARM | C23: 1179.85 | D23: 1186.78 | E23: 1163.07 | F23: 1146.28 | G23: 1122.57 | H23: 1203.57 | I23: 1227.28 | J23: 1244.07 | K23: 1210.5 | L23: 1170 | M23: 2.01808
A24: 15 | B24: ALKEM | C24: 2356.85 | D24: 2350.82 | E24: 2327.58 | F24: 2298.32 | G24: 2275.08 | H24: 2380.08 | I24: 2403.32 | J24: 2432.58 | K24: 2374.05 | L24: 2321.55 | M24: 1.27081
A25: 16 | B25: AMARAJABAT | C25: 775.1 | D25: 773.78 | E25: 768.07 | F25: 761.03 | G25: 755.32 | H25: 780.82 | I25: 786.53 | J25: 793.57 | K25: 779.5 | L25: 766.75 | M25: 4.34317
A26: 17 | B26: AMBUJACEM | C26: 207.6 | D26: 207.73 | E26: 205.57 | F26: 203.53 | G26: 201.37 | H26: 209.77 | I26: 211.93 | J26: 213.97 | K26: 209.9 | L26: 205.7 | M26: 31.42796
A27: 18 | B27: APOLLOHOSP | C27: 1626.2 | D27: 1629.90 | E27: 1617.30 | F27: 1608.40 | G27: 1595.80 | H27: 1638.80 | I27: 1651.40 | J27: 1660.30 | K27: 1642.5 | L27: 1621 | M27: 3.17357
A28: 19 | B28: APOLLOTYRE | C28: 174.85 | D28: 174.20 | E28: 172.60 | F28: 170.35 | G28: 168.75 | H28: 176.45 | I28: 178.05 | J28: 180.30 | K28: 175.8 | L28: 171.95 | M28: 15.15394
A29: 20 | B29: ASHOKLEY | C29: 86.3 | D29: 85.52 | E29: 84.38 | F29: 82.47 | G29: 81.33 | H29: 87.43 | I29: 88.57 | J29: 90.48 | K29: 86.65 | L29: 83.6 | M29: 225.62935
A30: 21 | B30: ASIANPAINT | C30: 1810.75 | D30: 1815.72 | E30: 1788.88 | F30: 1767.02 | G30: 1740.18 | H30: 1837.58 | I30: 1864.42 | J30: 1886.28 | K30: 1842.55 | L30: 1793.85 | M30: 21.01561
A31: 22 | B31: AUROPHARMA | C31: 493.2 | D31: 486.87 | E31: 478.33 | F31: 463.47 | G31: 454.93 | H31: 501.73 | I31: 510.27 | J31: 525.13 | K31: 495.4 | L31: 472 | M31: 33.71672
A32: 23 | B32: DMART | C32: 1912.35 | D32: 1924.60 | E32: 1889.65 | F32: 1866.95 | G32: 1832.00 | H32: 1947.30 | I32: 1982.25 | J32: 2004.95 | K32: 1959.55 | L32: 1901.9 | M32: 3.21554
A33: 24 | B33: AXISBANK | C33: 717.6 | D33: 721.08 | E33: 712.57 | F33: 707.53 | G33: 699.02 | H33: 726.12 | I33: 734.63 | J33: 739.67 | K33: 729.6 | L33: 716.05 | M33: 82.42803
A34: 25 | B34: BAJAJ-AUTO | C34: 3097.05 | D34: 3100.52 | E34: 3082.03 | F34: 3067.02 | G34: 3048.53 | H34: 3115.53 | I34: 3134.02 | J34: 3149.03 | K34: 3119 | L34: 3085.5 | M34: 2.15722
A35: 26 | B35: BAJFINANCE | C35: 4138.6 | D35: 4147.25 | E35: 4108.40 | F35: 4078.20 | G35: 4039.35 | H35: 4177.45 | I35: 4216.30 | J35: 4246.50 | K35: 4186.1 | L35: 4117.05 | M35: 8.97922
A36: 27 | B36: BAJAJFINSV | C36: 9534.3 | D36: 9555.83 | E36: 9486.67 | F36: 9439.03 | G36: 9369.87 | H36: 9603.47 | I36: 9672.63 | J36: 9720.27 | K36: 9625 | L36: 9508.2 | M36: 1.74507
A37: 28 | B37: BAJAJHLDNG | C37: 3370.25 | D37: 3371.75 | E37: 3360.50 | F37: 3350.75 | G37: 3339.50 | H37: 3381.50 | I37: 3392.75 | J37: 3402.50 | K37: 3383 | L37: 3362 | M37: 0.44703
A38: 29 | B38: BALKRISIND | C38: 1089.95 | D38: 1095.08 | E38: 1082.17 | F38: 1074.38 | G38: 1061.47 | H38: 1102.87 | I38: 1115.78 | J38: 1123.57 | K38: 1108 | L38: 1087.3 | M38: 3.55584
A39: 30 | B39: BANDHANBNK | C39: 476.75 | D39: 478.88 | E39: 473.87 | F39: 470.98 | G39: 465.97 | H39: 481.77 | I39: 486.78 | J39: 489.67 | K39: 483.9 | L39: 476 | M39: 12.53858
A40: 31 | B40: BANKBARODA | C40: 94.75 | D40: 94.85 | E40: 94.00 | F40: 93.25 | G40: 92.40 | H40: 95.60 | I40: 96.45 | J40: 97.20 | K40: 95.7 | L40: 94.1 | M40: 164.40135
A41: 32 | B41: BANKINDIA | C41: 67.35 | D41: 67.27 | E41: 66.78 | F41: 66.22 | G41: 65.73 | H41: 67.83 | I41: 68.32 | J41: 68.88 | K41: 67.75 | L41: 66.7 | M41: 12.39835
A42: 33 | B42: BATAINDIA | C42: 1788.35 | D42: 1781.67 | E42: 1764.33 | F42: 1740.32 | G42: 1722.98 | H42: 1805.68 | I42: 1823.02 | J42: 1847.03 | K42: 1799 | L42: 1757.65 | M42: 4.91307
A43: 34 | B43: BERGEPAINT | C43: 549.45 | D43: 553.82 | E43: 542.63 | F43: 535.82 | G43: 524.63 | H43: 560.63 | I43: 571.82 | J43: 578.63 | K43: 565 | L43: 547 | M43: 22.84062
A44: 35 | B44: BEL | C44: 105.05 | D44: 104.97 | E44: 103.93 | F44: 102.82 | G44: 101.78 | H44: 106.08 | I44: 107.12 | J44: 108.23 | K44: 106 | L44: 103.85 | M44: 57.08875
A45: 36 | B45: BHARATFORG | C45: 510.95 | D45: 512.20 | E45: 505.40 | F45: 499.85 | G45: 493.05 | H45: 517.75 | I45: 524.55 | J45: 530.10 | K45: 519 | L45: 506.65 | M45: 14.30656
A46: 37 | B46: BHEL | C46: 43.4 | D46: 44.02 | E46: 42.58 | F46: 41.77 | G46: 40.33 | H46: 44.83 | I46: 46.27 | J46: 47.08 | K46: 45.45 | L46: 43.2 | M46: 243.23645
A47: 38 | B47: BPCL | C47: 463.85 | D47: 461.80 | E47: 457.10 | F47: 450.35 | G47: 445.65 | H47: 468.55 | I47: 473.25 | J47: 480.00 | K47: 466.5 | L47: 455.05 | M47: 41.9942
A48: 39 | B48: BHARTIARTL | C48: 511.75 | D48: 510.38 | E48: 505.77 | F48: 499.78 | G48: 495.17 | H48: 516.37 | I48: 520.98 | J48: 526.97 | K48: 515 | L48: 504.4 | M48: 640.01338
A49: 40 | B49: INFRATEL | C49: 240.5 | D49: 236.15 | E49: 228.75 | F49: 217.00 | G49: 209.60 | H49: 247.90 | I49: 255.30 | J49: 267.05 | K49: 243.55 | L49: 224.4 | M49: 246.34362
A50: 41 | B50: BIOCON | C50: 294.65 | D50: 293.55 | E50: 291.20 | F50: 287.75 | G50: 285.40 | H50: 297.00 | I50: 299.35 | J50: 302.80 | K50: 295.9 | L50: 290.1 | M50: 18.76487
A51: 42 | B51: BBTC | C51: 1134.55 | D51: 1131.70 | E51: 1119.40 | F51: 1104.25 | G51: 1091.95 | H51: 1146.85 | I51: 1159.15 | J51: 1174.30 | K51: 1144 | L51: 1116.55 | M51: 0.75686
A52: 43 | B52: BOSCHLTD | C52: 14935.5 | D52: 14985.17 | E52: 14840.33 | F52: 14745.17 | G52: 14600.33 | H52: 15080.33 | I52: 15225.17 | J52: 15320.33 | K52: 15130 | L52: 14890 | M52: 0.14888
A53: 44 | B53: BRITANNIA | C53: 3111.25 | D53: 3106.17 | E53: 3082.33 | F53: 3053.42 | G53: 3029.58 | H53: 3135.08 | I53: 3158.92 | J53: 3187.83 | K53: 3130 | L53: 3077.25 | M53: 2.20943
A54: 45 | B54: CESC | C54: 747.05 | D54: 752.23 | E54: 737.97 | F54: 728.88 | G54: 714.62 | H54: 761.32 | I54: 775.58 | J54: 784.67 | K54: 766.5 | L54: 743.15 | M54: 4.55047
A55: 46 | B55: CADILAHC | C55: 268.35 | D55: 268.28 | E55: 266.07 | F55: 263.78 | G55: 261.57 | H55: 270.57 | I55: 272.78 | J55: 275.07 | K55: 270.5 | L55: 266 | M55: 9.75832
A56: 47 | B56: CANBK | C56: 219.15 | D56: 218.82 | E56: 216.33 | F56: 213.52 | G56: 211.03 | H56: 221.63 | I56: 224.12 | J56: 226.93 | K56: 221.3 | L56: 216 | M56: 60.67583
A57: 48 | B57: CASTROLIND | C57: 132.2 | D57: 133.23 | E57: 130.57 | F57: 128.93 | G57: 126.27 | H57: 134.87 | I57: 137.53 | J57: 139.17 | K57: 135.9 | L57: 131.6 | M57: 18.81947
A58: 49 | B58: CHOLAFIN | C58: 314.95 | D58: 314.25 | E58: 309.65 | F58: 304.35 | G58: 299.75 | H58: 319.55 | I58: 324.15 | J58: 329.45 | K58: 318.85 | L58: 308.95 | M58: 28.245
A59: 50 | B59: CIPLA | C59: 473.4 | D59: 475.05 | E59: 470.55 | F59: 467.70 | G59: 463.20 | H59: 477.90 | I59: 482.40 | J59: 485.25 | K59: 479.55 | L59: 472.2 | M59: 14.48808
A60: 51 | B60: CUB | C60: 238.2 | D60: 238.43 | E60: 236.87 | F60: 235.53 | G60: 233.97 | H60: 239.77 | I60: 241.33 | J60: 242.67 | K60: 240 | L60: 237.1 | M60: 6.53824
A61: 52 | B61: COALINDIA | C61: 202.15 | D61: 202.85 | E61: 200.45 | F61: 198.75 | G61: 196.35 | H61: 204.55 | I61: 206.95 | J61: 208.65 | K61: 205.25 | L61: 201.15 | M61: 63.47967
A62: 53 | B62: COLPAL | C62: 1487.15 | D62: 1489.93 | E62: 1480.42 | F62: 1473.68 | G62: 1464.17 | H62: 1496.67 | I62: 1506.18 | J62: 1512.92 | K62: 1499.45 | L62: 1483.2 | M62: 2.20146
A63: 54 | B63: CONCOR | C63: 551.55 | D63: 551.93 | E63: 549.62 | F63: 547.68 | G63: 545.37 | H63: 553.87 | I63: 556.18 | J63: 558.12 | K63: 554.25 | L63: 550 | M63: 3.27726
A64: 55 | B64: COROMANDEL | C64: 592.8 | D64: 591.27 | E64: 582.63 | F64: 572.47 | G64: 563.83 | H64: 601.43 | I64: 610.07 | J64: 620.23 | K64: 599.9 | L64: 581.1 | M64: 4.41459
A65: 56 | B65: CROMPTON | C65: 255.1 | D65: 255.40 | E65: 252.80 | F65: 250.50 | G65: 247.90 | H65: 257.70 | I65: 260.30 | J65: 262.60 | K65: 258 | L65: 253.1 | M65: 2.7456
A66: 57 | B66: CUMMINSIND | C66: 580.4 | D66: 583.70 | E66: 575.40 | F66: 570.40 | G66: 562.10 | H66: 588.70 | I66: 597.00 | J66: 602.00 | K66: 592 | L66: 578.7 | M66: 3.61234
A67: 58 | B67: DLF | C67: 257.1 | D67: 256.98 | E67: 255.12 | F67: 253.13 | G67: 251.27 | H67: 258.97 | I67: 260.83 | J67: 262.82 | K67: 258.85 | L67: 255 | M67: 53.87621
A68: 59 | B68: DABUR | C68: 487 | D68: 485.27 | E68: 482.18 | F68: 477.37 | G68: 474.28 | H68: 490.08 | I68: 493.17 | J68: 497.98 | K68: 488.35 | L68: 480.45 | M68: 7.88507
A69: 60 | B69: DALBHARAT | C69: 852 | D69: 849.20 | E69: 838.05 | F69: 824.10 | G69: 812.95 | H69: 863.15 | I69: 874.30 | J69: 888.25 | K69: 860.35 | L69: 835.25 | M69: 2.37195
A70: 61 | B70: DIVISLAB | C70: 1870.8 | D70: 1879.90 | E70: 1858.90 | F70: 1847.00 | G70: 1826.00 | H70: 1891.80 | I70: 1912.80 | J70: 1924.70 | K70: 1900.9 | L70: 1868 | M70: 3.9341
A71: 62 | B71: DRREDDY | C71: 3060.45 | D71: 3058.70 | E71: 3037.60 | F71: 3014.75 | G71: 2993.65 | H71: 3081.55 | I71: 3102.65 | J71: 3125.50 | K71: 3079.8 | L71: 3035.85 | M71: 5.70786
A72: 63 | B72: EDELWEISS | C72: 102.65 | D72: 103.42 | E72: 101.53 | F72: 100.42 | G72: 98.53 | H72: 104.53 | I72: 106.42 | J72: 107.53 | K72: 105.3 | L72: 102.3 | M72: 14.02413
A73: 64 | B73: EICHERMOT | C73: 21056.55 | D73: 21167.28 | E73: 20859.57 | F73: 20662.58 | G73: 20354.87 | H73: 21364.27 | I73: 21671.98 | J73: 21868.97 | K73: 21475 | L73: 20970.3 | M73: 1.03236
A74: 65 | B74: EMAMILTD | C74: 335.15 | D74: 335.08 | E74: 328.87 | F74: 322.58 | G74: 316.37 | H74: 341.37 | I74: 347.58 | J74: 353.87 | K74: 341.3 | L74: 328.8 | M74: 4.21981
A75: 66 | B75: ENDURANCE | C75: 1065.25 | D75: 1060.27 | E75: 1050.63 | F75: 1036.02 | G75: 1026.38 | H75: 1074.88 | I75: 1084.52 | J75: 1099.13 | K75: 1069.9 | L75: 1045.65 | M75: 0.09825
A76: 67 | B76: ENGINERSIN | C76: 100 | D76: 100.38 | E76: 99.22 | F76: 98.43 | G76: 97.27 | H76: 101.17 | I76: 102.33 | J76: 103.12 | K76: 101.55 | L76: 99.6 | M76: 5.13578
A77: 68 | B77: ESCORTS | C77: 704 | D77: 705.93 | E77: 699.37 | F77: 694.73 | G77: 688.17 | H77: 710.57 | I77: 717.13 | J77: 721.77 | K77: 712.5 | L77: 701.3 | M77: 12.97448
A78: 69 | B78: EXIDEIND | C78: 194.05 | D78: 194.07 | E78: 192.53 | F78: 191.02 | G78: 189.48 | H78: 195.58 | I78: 197.12 | J78: 198.63 | K78: 195.6 | L78: 192.55 | M78: 11.22375
A79: 70 | B79: FEDERALBNK | C79: 94.6 | D79: 94.83 | E79: 93.27 | F79: 91.93 | G79: 90.37 | H79: 96.17 | I79: 97.73 | J79: 99.07 | K79: 96.4 | L79: 93.5 | M79: 304.51633
A80: 71 | B80: FORTIS | C80: 146.15 | D80: 144.98 | E80: 143.17 | F80: 140.18 | G80: 138.37 | H80: 147.97 | I80: 149.78 | J80: 152.77 | K80: 146.8 | L80: 142 | M80: 44.56421
A81: 72 | B81: FCONSUMER | C81: 24.65 | D81: 24.77 | E81: 24.33 | F81: 24.02 | G81: 23.58 | H81: 25.08 | I81: 25.52 | J81: 25.83 | K81: 25.2 | L81: 24.45 | M81: 10.88341
A82: 73 | B82: FRETAIL | C82: 342.55 | D82: 343.72 | E82: 338.83 | F82: 335.12 | G82: 330.23 | H82: 347.43 | I82: 352.32 | J82: 356.03 | K82: 348.6 | L82: 340 | M82: 14.27538
A83: 74 | B83: GAIL | C83: 126.75 | D83: 127.53 | E83: 125.52 | F83: 124.28 | G83: 122.27 | H83: 128.77 | I83: 130.78 | J83: 132.02 | K83: 129.55 | L83: 126.3 | M83: 100.9235
A84: 75 | B84: GMRINFRA | C84: 23.1 | D84: 23.12 | E84: 22.88 | F84: 22.67 | G84: 22.43 | H84: 23.33 | I84: 23.57 | J84: 23.78 | K84: 23.35 | L84: 22.9 | M84: 86.61412
A85: 76 | B85: GICRE | C85: 255.7 | D85: 255.27 | E85: 251.93 | F85: 248.17 | G85: 244.83 | H85: 259.03 | I85: 262.37 | J85: 266.13 | K85: 258.6 | L85: 251.5 | M85: 2.09951
A86: 77 | B86: GLENMARK | C86: 351 | D86: 350.75 | E86: 345.85 | F86: 340.70 | G86: 335.80 | H86: 355.90 | I86: 360.80 | J86: 365.95 | K86: 355.65 | L86: 345.6 | M86: 13.1318
A87: 78 | B87: GODREJAGRO | C87: 559.55 | D87: 555.87 | E87: 545.73 | F87: 531.92 | G87: 521.78 | H87: 569.68 | I87: 579.82 | J87: 593.63 | K87: 566 | L87: 542.05 | M87: 0.66317
A88: 79 | B88: GODREJCP | C88: 731.55 | D88: 737.08 | E88: 724.27 | F88: 716.98 | G88: 704.17 | H88: 744.37 | I88: 757.18 | J88: 764.47 | K88: 749.9 | L88: 729.8 | M88: 6.11181
A89: 80 | B89: GODREJIND | C89: 437.45 | D89: 435.93 | E89: 432.87 | F89: 428.28 | G89: 425.22 | H89: 440.52 | I89: 443.58 | J89: 448.17 | K89: 439 | L89: 431.35 | M89: 0.35746
A90: 81 | B90: GODREJPROP | C90: 953.5 | D90: 961.83 | E90: 941.67 | F90: 929.83 | G90: 909.67 | H90: 973.67 | I90: 993.83 | J90: 1005.67 | K90: 982 | L90: 950 | M90: 1.08496
A91: 82 | B91: GRAPHITE | C91: 305.45 | D91: 306.33 | E91: 303.12 | F91: 300.78 | G91: 297.57 | H91: 308.67 | I91: 311.88 | J91: 314.22 | K91: 309.55 | L91: 304 | M91: 11.30712
A92: 83 | B92: GRASIM | C92: 771.65 | D92: 772.07 | E92: 763.03 | F92: 754.42 | G92: 745.38 | H92: 780.68 | I92: 789.72 | J92: 798.33 | K92: 781.1 | L92: 763.45 | M92: 16.61273
A93: 84 | B93: GSPL | C93: 250.05 | D93: 250.07 | E93: 246.73 | F93: 243.42 | G93: 240.08 | H93: 253.38 | I93: 256.72 | J93: 260.03 | K93: 253.4 | L93: 246.75 | M93: 2.94655
A94: 85 | B94: HEG | C94: 1096.9 | D94: 1102.28 | E94: 1079.62 | F94: 1062.33 | G94: 1039.67 | H94: 1119.57 | I94: 1142.23 | J94: 1159.52 | K94: 1124.95 | L94: 1085 | M94: 3.17498
A95: 86 | B95: HCLTECH | C95: 584.05 | D95: 586.55 | E95: 579.85 | F95: 575.65 | G95: 568.95 | H95: 590.75 | I95: 597.45 | J95: 601.65 | K95: 593.25 | L95: 582.35 | M95: 26.40668
A96: 87 | B96: HDFCAMC | C96: 3179.45 | D96: 3197.15 | E96: 3154.30 | F96: 3129.15 | G96: 3086.30 | H96: 3222.30 | I96: 3265.15 | J96: 3290.30 | K96: 3240 | L96: 3172 | M96: 3.62236
A97: 88 | B97: HDFCBANK | C97: 1244.35 | D97: 1244.25 | E97: 1238.50 | F97: 1232.65 | G97: 1226.90 | H97: 1250.10 | I97: 1255.85 | J97: 1261.70 | K97: 1250 | L97: 1238.4 | M97: 74.92402
A98: 89 | B98: HDFCLIFE | C98: 602 | D98: 601.95 | E98: 594.20 | F98: 586.40 | G98: 578.65 | H98: 609.75 | I98: 617.50 | J98: 625.30 | K98: 609.7 | L98: 594.15 | M98: 15.97879
A99: 90 | B99: HAVELLS | C99: 616.95 | D99: 620.82 | E99: 608.98 | F99: 601.02 | G99: 589.18 | H99: 628.78 | I99: 640.62 | J99: 648.58 | K99: 632.65 | L99: 612.85 | M99: 53.30031
A100: 91 | B100: HEROMOTOCO | C100: 2398.7 | D100: 2395.45 | E100: 2378.25 | F100: 2357.80 | G100: 2340.60 | H100: 2415.90 | I100: 2433.10 | J100: 2453.55 | K100: 2412.65 | L100: 2375 | M100: 5.68473
A101: 92 | B101: HEXAWARE | C101: 341.45 | D101: 341.17 | E101: 337.38 | F101: 333.32 | G101: 329.53 | H101: 345.23 | I101: 349.02 | J101: 353.08 | K101: 344.95 | L101: 337.1 | M101: 2.98218
A102: 93 | B102: HINDALCO | C102: 205.15 | D102: 206.10 | E102: 203.70 | F102: 202.25 | G102: 199.85 | H102: 207.55 | I102: 209.95 | J102: 211.40 | K102: 208.5 | L102: 204.65 | M102: 44.79791
A103: 94 | B103: HINDPETRO | C103: 249.45 | D103: 249.77 | E103: 247.68 | F103: 245.92 | G103: 243.83 | H103: 251.53 | I103: 253.62 | J103: 255.38 | K103: 251.85 | L103: 248 | M103: 22.62648
A104: 95 | B104: HINDUNILVR | C104: 2055.4 | D104: 2060.85 | E104: 2046.70 | F104: 2038.00 | G104: 2023.85 | H104: 2069.55 | I104: 2083.70 | J104: 2092.40 | K104: 2075 | L104: 2052.15 | M104: 7.5
A105: 96 | B105: HINDZINC | C105: 212.4 | D105: 213.62 | E105: 210.43 | F105: 208.47 | G105: 205.28 | H105: 215.58 | I105: 218.77 | J105: 220.73 | K105: 216.8 | L105: 211.65 | M105: 5.4928
A106: 97 | B106: HUDCO | C106: 42.65 | D106: 42.07 | E106: 40.78 | F106: 38.92 | G106: 37.63 | H106: 43.93 | I106: 45.22 | J106: 47.08 | K106: 43.35 | L106: 40.2 | M106: 52.51731
A107: 98 | B107: HDFC | C107: 2465.45 | D107: 2461.12 | E107: 2436.33 | F107: 2407.22 | G107: 2382.43 | H107: 2490.23 | I107: 2515.02 | J107: 2544.13 | K107: 2485.9 | L107: 2432 | M107: 24.04025
A108: 99 | B108: ICICIBANK | C108: 531.05 | D108: 533.83 | E108: 527.42 | F108: 523.78 | G108: 517.37 | H108: 537.47 | I108: 543.88 | J108: 547.52 | K108: 540.25 | L108: 530.2 | M108: 134.77994
A109: 100 | B109: ICICIGI | C109: 1329.95 | D109: 1340.65 | E109: 1312.30 | F109: 1294.65 | G109: 1266.30 | H109: 1358.30 | I109: 1386.65 | J109: 1404.30 | K109: 1369 | L109: 1323 | M109: 4.84563
A110: 101 | B110: ICICIPRULI | C110: 489.05 | D110: 488.08 | E110: 479.17 | F110: 469.28 | G110: 460.37 | H110: 497.97 | I110: 506.88 | J110: 516.77 | K110: 497 | L110: 478.2 | M110: 55.75263
A111: 102 | B111: IDBI | C111: 35.7 | D111: 35.65 | E111: 35.35 | F111: 35.00 | G111: 34.70 | H111: 36.00 | I111: 36.30 | J111: 36.65 | K111: 35.95 | L111: 35.3 | M111: 21.62296
A112: 103 | B112: IDFCFIRSTB | C112: 43.2 | D112: 43.33 | E112: 42.82 | F112: 42.43 | G112: 41.92 | H112: 43.72 | I112: 44.23 | J112: 44.62 | K112: 43.85 | L112: 42.95 | M112: 139.2425
A113: 104 | B113: ITC | C113: 238.45 | D113: 239.30 | E113: 237.15 | F113: 235.85 | G113: 233.70 | H113: 240.60 | I113: 242.75 | J113: 244.05 | K113: 241.45 | L113: 238 | M113: 95.7107
A114: 105 | B114: IBULHSGFIN | C114: 301.15 | D114: 299.50 | E114: 293.20 | F114: 285.25 | G114: 278.95 | H114: 307.45 | I114: 313.75 | J114: 321.70 | K114: 305.8 | L114: 291.55 | M114: 161.04115
A115: 106 | B115: IBVENTURES | C115: 177.7 | D115: 177.08 | E115: 174.17 | F115: 170.63 | G115: 167.72 | H115: 180.62 | I115: 183.53 | J115: 187.07 | K115: 180 | L115: 173.55 | M115: 4.08431
A116: 107 | B116: INDIANB | C116: 104.7 | D116: 104.63 | E116: 103.07 | F116: 101.43 | G116: 99.87 | H116: 106.27 | I116: 107.83 | J116: 109.47 | K116: 106.2 | L116: 103 | M116: 43.7247
A117: 108 | B117: INDHOTEL | C117: 144.1 | D117: 143.38 | E117: 142.27 | F117: 140.43 | G117: 139.32 | H117: 145.22 | I117: 146.33 | J117: 148.17 | K117: 144.5 | L117: 141.55 | M117: 12.50565
A118: 109 | B118: IOC | C118: 114.8 | D118: 115.83 | E118: 113.22 | F118: 111.63 | G118: 109.02 | H118: 117.42 | I118: 120.03 | J118: 121.62 | K118: 118.45 | L118: 114.25 | M118: 465.11802
A119: 110 | B119: IGL | C119: 472.1 | D119: 470.42 | E119: 465.93 | F119: 459.77 | G119: 455.28 | H119: 476.58 | I119: 481.07 | J119: 487.23 | K119: 474.9 | L119: 464.25 | M119: 18.20857
A120: 111 | B120: INDUSINDBK | C120: 1336.35 | D120: 1335.45 | E120: 1320.90 | F120: 1305.45 | G120: 1290.90 | H120: 1350.90 | I120: 1365.45 | J120: 1380.90 | K120: 1350 | L120: 1320 | M120: 45.01887
A121: 112 | B121: NAUKRI | C121: 2567.9 | D121: 2589.32 | E121: 2503.63 | F121: 2439.37 | G121: 2353.68 | H121: 2653.58 | I121: 2739.27 | J121: 2803.53 | K121: 2675 | L121: 2525.05 | M121: 2.72694
A122: 113 | B122: INFY | C122: 762.5 | D122: 764.58 | E122: 758.67 | F122: 754.83 | G122: 748.92 | H122: 768.42 | I122: 774.33 | J122: 778.17 | K122: 770.5 | L122: 760.75 | M122: 44.48374
A123: 114 | B123: INDIGO | C123: 1438.8 | D123: 1442.57 | E123: 1422.33 | F123: 1405.87 | G123: 1385.63 | H123: 1459.03 | I123: 1479.27 | J123: 1495.73 | K123: 1462.8 | L123: 1426.1 | M123: 12.9469
A124: 115 | B124: IPCALAB | C124: 1225.85 | D124: 1218.95 | E124: 1207.90 | F124: 1189.95 | G124: 1178.90 | H124: 1236.90 | I124: 1247.95 | J124: 1265.90 | K124: 1230 | L124: 1201 | M124: 0.8617
A125: 116 | B125: JSWENERGY | C125: 66.3 | D125: 66.52 | E125: 65.83 | F125: 65.37 | G125: 64.68 | H125: 66.98 | I125: 67.67 | J125: 68.13 | K125: 67.2 | L125: 66.05 | M125: 3.40244
A126: 117 | B126: JSWSTEEL | C126: 267.25 | D126: 267.50 | E126: 264.10 | F126: 260.95 | G126: 257.55 | H126: 270.65 | I126: 274.05 | J126: 277.20 | K126: 270.9 | L126: 264.35 | M126: 47.99667
A127: 118 | B127: JINDALSTEL | C127: 185.8 | D127: 183.05 | E127: 179.15 | F127: 172.50 | G127: 168.60 | H127: 189.70 | I127: 193.60 | J127: 200.25 | K127: 186.95 | L127: 176.4 | M127: 304.8975
A128: 119 | B128: JUBLFOOD | C128: 1764.25 | D128: 1760.32 | E128: 1749.18 | F128: 1734.12 | G128: 1722.98 | H128: 1775.38 | I128: 1786.52 | J128: 1801.58 | K128: 1771.45 | L128: 1745.25 | M128: 3.4147
A129: 120 | B129: JUBILANT | C129: 622.5 | D129: 621.22 | E129: 605.43 | F129: 588.37 | G129: 572.58 | H129: 638.28 | I129: 654.07 | J129: 671.13 | K129: 637 | L129: 604.15 | M129: 12.90001
A130: 121 | B130: KOTAKBANK | C130: 1625.1 | D130: 1613.63 | E130: 1596.67 | F130: 1568.23 | G130: 1551.27 | H130: 1642.07 | I130: 1659.03 | J130: 1687.47 | K130: 1630.6 | L130: 1585.2 | M130: 57.45469
A131: 122 | B131: L&TFH | C131: 119.1 | D131: 118.23 | E131: 116.97 | F131: 114.83 | G131: 113.57 | H131: 120.37 | I131: 121.63 | J131: 123.77 | K131: 119.5 | L131: 116.1 | M131: 110.74692
A132: 123 | B132: LTTS | C132: 1626.1 | D132: 1620.98 | E132: 1611.97 | F132: 1597.83 | G132: 1588.82 | H132: 1635.12 | I132: 1644.13 | J132: 1658.27 | K132: 1630 | L132: 1606.85 | M132: 1.23496
A133: 124 | B133: LICHSGFIN | C133: 478.4 | D133: 474.93 | E133: 463.12 | F133: 447.83 | G133: 436.02 | H133: 490.22 | I133: 502.03 | J133: 517.32 | K133: 486.75 | L133: 459.65 | M133: 69.05432
A134: 125 | B134: LTI | C134: 1908.75 | D134: 1907.95 | E134: 1895.90 | F134: 1883.05 | G134: 1871.00 | H134: 1920.80 | I134: 1932.85 | J134: 1945.70 | K134: 1920 | L134: 1895.1 | M134: 1.04946
A135: 126 | B135: LT | C135: 1302.35 | D135: 1305.57 | E135: 1297.23 | F135: 1292.12 | G135: 1283.78 | H135: 1310.68 | I135: 1319.02 | J135: 1324.13 | K135: 1313.9 | L135: 1300.45 | M135: 13.61576
A136: 127 | B136: LUPIN | C136: 741.15 | D136: 737.55 | E136: 730.85 | F136: 720.55 | G136: 713.85 | H136: 747.85 | I136: 754.55 | J136: 764.85 | K136: 744.25 | L136: 727.25 | M136: 16.19921
A137: 128 | B137: MRF | C137: 67930.15 | D137: 68022.35 | E137: 67494.70 | F137: 67059.25 | G137: 66531.60 | H137: 68457.80 | I137: 68985.45 | J137: 69420.90 | K137: 68550 | L137: 67586.9 | M137: 0.03847
A138: 129 | B138: MGL | C138: 1146.3 | D138: 1144.10 | E138: 1127.20 | F138: 1108.10 | G138: 1091.20 | H138: 1163.20 | I138: 1180.10 | J138: 1199.20 | K138: 1161 | L138: 1125 | M138: 10.18999
A139: 130 | B139: M&MFIN | C139: 352.8 | D139: 350.95 | E139: 346.05 | F139: 339.30 | G139: 334.40 | H139: 357.70 | I139: 362.60 | J139: 369.35 | K139: 355.85 | L139: 344.2 | M139: 14.15647
A140: 131 | B140: M&M | C140: 552.8 | D140: 555.93 | E140: 546.97 | F140: 541.13 | G140: 532.17 | H140: 561.77 | I140: 570.73 | J140: 576.57 | K140: 564.9 | L140: 550.1 | M140: 31.01684
A141: 132 | B141: MANAPPURAM | C141: 179.15 | D141: 179.67 | E141: 177.68 | F141: 176.22 | G141: 174.23 | H141: 181.13 | I141: 183.12 | J141: 184.58 | K141: 181.65 | L141: 178.2 | M141: 20.38351
A142: 133 | B142: MRPL | C142: 45.5 | D142: 45.73 | E142: 44.82 | F142: 44.13 | G142: 43.22 | H142: 46.42 | I142: 47.33 | J142: 48.02 | K142: 46.65 | L142: 45.05 | M142: 8.90009
A143: 134 | B143: MARICO | C143: 336.75 | D143: 339.25 | E143: 333.50 | F143: 330.25 | G143: 324.50 | H143: 342.50 | I143: 348.25 | J143: 351.50 | K143: 345 | L143: 336 | M143: 17.86886
A144: 135 | B144: MARUTI | C144: 7302.65 | D144: 7341.70 | E144: 7248.75 | F144: 7194.85 | G144: 7101.90 | H144: 7395.60 | I144: 7488.55 | J144: 7542.45 | K144: 7434.65 | L144: 7287.8 | M144: 4.42561
A145: 136 | B145: MFSL | C145: 524.35 | D145: 520.57 | E145: 513.78 | F145: 503.22 | G145: 496.43 | H145: 531.13 | I145: 537.92 | J145: 548.48 | K145: 527.35 | L145: 510 | M145: 15.59439
A146: 137 | B146: MINDTREE | C146: 897.75 | D146: 896.73 | E146: 886.22 | F146: 874.68 | G146: 864.17 | H146: 908.27 | I146: 918.78 | J146: 930.32 | K146: 907.25 | L146: 885.2 | M146: 7.25781
A147: 138 | B147: MOTHERSUMI | C147: 138.45 | D147: 137.30 | E147: 135.15 | F147: 131.85 | G147: 129.70 | H147: 140.60 | I147: 142.75 | J147: 146.05 | K147: 139.45 | L147: 134 | M147: 75.41631
A148: 139 | B148: MPHASIS | C148: 880 | D148: 881.60 | E148: 876.40 | F148: 872.80 | G148: 867.60 | H148: 885.20 | I148: 890.40 | J148: 894.00 | K148: 886.8 | L148: 878 | M148: 7.31989
A149: 140 | B149: MUTHOOTFIN | C149: 769 | D149: 768.82 | E149: 761.83 | F149: 754.67 | G149: 747.68 | H149: 775.98 | I149: 782.97 | J149: 790.13 | K149: 775.8 | L149: 761.65 | M149: 5.74086
A150: 141 | B150: NATCOPHARM | C150: 645.35 | D150: 643.17 | E150: 636.93 | F150: 628.52 | G150: 622.28 | H150: 651.58 | I150: 657.82 | J150: 666.23 | K150: 649.4 | L150: 634.75 | M150: 3.08012
A151: 142 | B151: NBCC | C151: 37.1 | D151: 37.35 | E151: 36.35 | F151: 35.60 | G151: 34.60 | H151: 38.10 | I151: 39.10 | J151: 39.85 | K151: 38.35 | L151: 36.6 | M151: 183.3574
A152: 143 | B152: NHPC | C152: 25.85 | D152: 26.10 | E152: 25.40 | F152: 24.95 | G152: 24.25 | H152: 26.55 | I152: 27.25 | J152: 27.70 | K152: 26.8 | L152: 25.65 | M152: 105.49907
A153: 144 | B153: NMDC | C153: 134.2 | D153: 135.47 | E153: 132.53 | F153: 130.87 | G153: 127.93 | H153: 137.13 | I153: 140.07 | J153: 141.73 | K153: 138.4 | L153: 133.8 | M153: 58.49307
A154: 145 | B154: NTPC | C154: 117.15 | D154: 117.88 | E154: 116.22 | F154: 115.28 | G154: 113.62 | H154: 118.82 | I154: 120.48 | J154: 121.42 | K154: 119.55 | L154: 116.95 | M154: 51.5083
A155: 146 | B155: NATIONALUM | C155: 45.35 | D155: 45.63 | E155: 44.77 | F155: 44.18 | G155: 43.32 | H155: 46.22 | I155: 47.08 | J155: 47.67 | K155: 46.5 | L155: 45.05 | M155: 77.64564
A156: 147 | B156: NESTLEIND | C156: 15280.75 | D156: 15327.45 | E156: 15153.30 | F156: 15025.85 | G156: 14851.70 | H156: 15454.90 | I156: 15629.05 | J156: 15756.50 | K156: 15501.6 | L156: 15200 | M156: 0.63258
A157: 148 | B157: OBEROIRLTY | C157: 549.75 | D157: 546.48 | E157: 540.27 | F157: 530.78 | G157: 524.57 | H157: 555.97 | I157: 562.18 | J157: 571.67 | K157: 552.7 | L157: 537 | M157: 3.84251
A158: 149 | B158: ONGC | C158: 122.75 | D158: 123.22 | E158: 121.93 | F158: 121.12 | G158: 119.83 | H158: 124.03 | I158: 125.32 | J158: 126.13 | K158: 124.5 | L158: 122.4 | M158: 64.97799
A159: 150 | B159: OIL | C159: 145.9 | D159: 146.85 | E159: 144.15 | F159: 142.40 | G159: 139.70 | H159: 148.60 | I159: 151.30 | J159: 153.05 | K159: 149.55 | L159: 145.1 | M159: 14.89991
A160: 151 | B160: OFSS | C160: 2949.6 | D160: 2945.50 | E160: 2916.10 | F160: 2882.60 | G160: 2853.20 | H160: 2979.00 | I160: 3008.40 | J160: 3041.90 | K160: 2974.9 | L160: 2912 | M160: 0.12687
A161: 152 | B161: PIIND | C161: 1443.45 | D161: 1438.12 | E161: 1423.23 | F161: 1403.02 | G161: 1388.13 | H161: 1458.33 | I161: 1473.22 | J161: 1493.43 | K161: 1453 | L161: 1417.9 | M161: 2.45541
A162: 153 | B162: PNBHOUSING | C162: 551.25 | D162: 546.43 | E162: 530.07 | F162: 508.88 | G162: 492.52 | H162: 567.62 | I162: 583.98 | J162: 605.17 | K162: 562.8 | L162: 525.25 | M162: 21.55343
A163: 154 | B163: PAGEIND | C163: 25299.95 | D163: 25353.52 | E163: 25107.03 | F163: 24914.12 | G163: 24667.63 | H163: 25546.43 | I163: 25792.92 | J163: 25985.83 | K163: 25600 | L163: 25160.6 | M163: 0.79781
A164: 155 | B164: PETRONET | C164: 274.1 | D164: 272.68 | E164: 270.42 | F164: 266.73 | G164: 264.47 | H164: 276.37 | I164: 278.63 | J164: 282.32 | K164: 274.95 | L164: 269 | M164: 14.01384
A165: 156 | B165: PFIZER | C165: 4010.5 | D165: 4007.30 | E165: 3989.60 | F165: 3968.70 | G165: 3951.00 | H165: 4028.20 | I165: 4045.90 | J165: 4066.80 | K165: 4025 | L165: 3986.4 | M165: 0.08818
A166: 157 | B166: PIDILITIND | C166: 1414.75 | D166: 1422.42 | E166: 1404.83 | F166: 1394.92 | G166: 1377.33 | H166: 1432.33 | I166: 1449.92 | J166: 1459.83 | K166: 1440 | L166: 1412.5 | M166: 2.35201
A167: 158 | B167: PEL | C167: 1611.25 | D167: 1596.08 | E167: 1575.17 | F167: 1539.08 | G167: 1518.17 | H167: 1632.17 | I167: 1653.08 | J167: 1689.17 | K167: 1617 | L167: 1560 | M167: 15.04542
A168: 159 | B168: PFC | C168: 106.65 | D168: 108.50 | E168: 104.35 | F168: 102.05 | G168: 97.90 | H168: 110.80 | I168: 114.95 | J168: 117.25 | K168: 112.65 | L168: 106.2 | M168: 138.25454
A169: 160 | B169: POWERGRID | C169: 200.6 | D169: 201.30 | E169: 198.30 | F169: 196.00 | G169: 193.00 | H169: 203.60 | I169: 206.60 | J169: 208.90 | K169: 204.3 | L169: 199 | M169: 97.22202
A170: 161 | B170: PRESTIGE | C170: 381.85 | D170: 393.12 | E170: 368.73 | F170: 355.62 | G170: 331.23 | H170: 406.23 | I170: 430.62 | J170: 443.73 | K170: 417.5 | L170: 380 | M170: 16.99457
A171: 162 | B171: PGHH | C171: 11250.1 | D171: 11250.03 | E171: 11200.07 | F171: 11150.03 | G171: 11100.07 | H171: 11300.07 | I171: 11350.03 | J171: 11400.07 | K171: 11300 | L171: 11200 | M171: 0.0745
A172: 163 | B172: PNB | C172: 61.45 | D172: 61.67 | E172: 61.03 | F172: 60.62 | G172: 59.98 | H172: 62.08 | I172: 62.72 | J172: 63.13 | K172: 62.3 | L172: 61.25 | M172: 136.78963
A173: 164 | B173: QUESS | C173: 574.45 | D173: 570.60 | E173: 561.20 | F173: 547.95 | G173: 538.55 | H173: 583.85 | I173: 593.25 | J173: 606.50 | K173: 580 | L173: 557.35 | M173: 9.6946
A174: 165 | B174: RBLBANK | C174: 341.3 | D174: 335.12 | E174: 327.53 | F174: 313.77 | G174: 306.18 | H174: 348.88 | I174: 356.47 | J174: 370.23 | K174: 342.7 | L174: 321.35 | M174: 157.17772
A175: 166 | B175: RECLTD | C175: 134.4 | D175: 135.48 | E175: 132.97 | F175: 131.53 | G175: 129.02 | H175: 136.92 | I175: 139.43 | J175: 140.87 | K175: 138 | L175: 134.05 | M175: 30.93908
A176: 167 | B176: RAJESHEXPO | C176: 713.6 | D176: 713.18 | E176: 707.47 | F176: 701.33 | G176: 695.62 | H176: 719.32 | I176: 725.03 | J176: 731.17 | K176: 718.9 | L176: 707.05 | M176: 1.79698
A177: 168 | B177: RELIANCE | C177: 1533.9 | D177: 1533.92 | E177: 1521.98 | F177: 1510.07 | G177: 1498.13 | H177: 1545.83 | I177: 1557.77 | J177: 1569.68 | K177: 1545.85 | L177: 1522 | M177: 86.50831
A178: 169 | B178: RNAM | C178: 338.85 | D178: 340.22 | E178: 336.48 | F178: 334.12 | G178: 330.38 | H178: 342.58 | I178: 346.32 | J178: 348.68 | K178: 343.95 | L178: 337.85 | M178: 6.30169
A179: 170 | B179: SBILIFE | C179: 972.75 | D179: 976.65 | E179: 966.30 | F179: 959.85 | G179: 949.50 | H179: 983.10 | I179: 993.45 | J179: 999.90 | K179: 987 | L179: 970.2 | M179: 3.5555
A180: 171 | B180: SRF | C180: 3609.6 | D180: 3619.57 | E180: 3592.13 | F180: 3574.67 | G180: 3547.23 | H180: 3637.03 | I180: 3664.47 | J180: 3681.93 | K180: 3647 | L180: 3602.1 | M180: 0.94049
A181: 172 | B181: SHREECEM | C181: 22953.5 | D181: 23061.25 | E181: 22723.80 | F181: 22494.10 | G181: 22156.65 | H181: 23290.95 | I181: 23628.40 | J181: 23858.10 | K181: 23398.7 | L181: 22831.55 | M181: 0.29652
A182: 173 | B182: SRTRANSFIN | C182: 1089.4 | D182: 1085.35 | E182: 1066.90 | F182: 1044.40 | G182: 1025.95 | H182: 1107.85 | I182: 1126.30 | J182: 1148.80 | K182: 1103.8 | L182: 1062.85 | M182: 11.10266
A183: 174 | B183: SIEMENS | C183: 1583.1 | D183: 1589.73 | E183: 1568.47 | F183: 1553.83 | G183: 1532.57 | H183: 1604.37 | I183: 1625.63 | J183: 1640.27 | K183: 1611 | L183: 1575.1 | M183: 5.81928
A184: 175 | B184: SBIN | C184: 313.7 | D184: 314.22 | E184: 311.48 | F184: 309.27 | G184: 306.53 | H184: 316.43 | I184: 319.17 | J184: 321.38 | K184: 316.95 | L184: 312 | M184: 305.91772
A185: 176 | B185: SAIL | C185: 49.8 | D185: 50.22 | E185: 49.23 | F185: 48.67 | G185: 47.68 | H185: 50.78 | I185: 51.77 | J185: 52.33 | K185: 51.2 | L185: 49.65 | M185: 241.73709
A186: 177 | B186: STRTECH | C186: 131.25 | D186: 133.03 | E186: 128.47 | F186: 125.68 | G186: 121.12 | H186: 135.82 | I186: 140.38 | J186: 143.17 | K186: 137.6 | L186: 130.25 | M186: 16.54732
A187: 178 | B187: SUNPHARMA | C187: 447.4 | D187: 448.38 | E187: 445.02 | F187: 442.63 | G187: 439.27 | H187: 450.77 | I187: 454.13 | J187: 456.52 | K187: 451.75 | L187: 446 | M187: 25.73651
A188: 179 | B188: SUNTV | C188: 480.8 | D188: 479.25 | E188: 475.00 | F188: 469.20 | G188: 464.95 | H188: 485.05 | I188: 489.30 | J188: 495.10 | K188: 483.5 | L188: 473.45 | M188: 15.20871
A189: 180 | B189: SYNGENE | C189: 306.45 | D189: 307.67 | E189: 304.78 | F189: 303.12 | G189: 300.23 | H189: 309.33 | I189: 312.22 | J189: 313.88 | K189: 310.55 | L189: 306 | M189: 1.66581
A190: 181 | B190: TVSMOTOR | C190: 461.4 | D190: 463.50 | E190: 456.65 | F190: 451.90 | G190: 445.05 | H190: 468.25 | I190: 475.10 | J190: 479.85 | K190: 470.35 | L190: 458.75 | M190: 11.3983
A191: 182 | B191: TCS | C191: 2171.05 | D191: 2171.88 | E191: 2157.22 | F191: 2143.38 | G191: 2128.72 | H191: 2185.72 | I191: 2200.38 | J191: 2214.22 | K191: 2186.55 | L191: 2158.05 | M191: 19.0298
A192: 183 | B192: TATAGLOBAL | C192: 385.8 | D192: 384.75 | E192: 380.10 | F192: 374.40 | G192: 369.75 | H192: 390.45 | I192: 395.10 | J192: 400.80 | K192: 389.4 | L192: 379.05 | M192: 59.81471
A193: 184 | B193: TATAMTRDVR | C193: 78.6 | D193: 79.38 | E193: 77.47 | F193: 76.33 | G193: 74.42 | H193: 80.52 | I193: 82.43 | J193: 83.57 | K193: 81.3 | L193: 78.25 | M193: 40.6019
A194: 185 | B194: TATAMOTORS | C194: 191.4 | D194: 192.67 | E194: 188.93 | F194: 186.47 | G194: 182.73 | H194: 195.13 | I194: 198.87 | J194: 201.33 | K194: 196.4 | L194: 190.2 | M194: 208.594
A195: 186 | B195: TATAPOWER | C195: 59.55 | D195: 59.73 | E195: 59.17 | F195: 58.78 | G195: 58.22 | H195: 60.12 | I195: 60.68 | J195: 61.07 | K195: 60.3 | L195: 59.35 | M195: 62.50007
A196: 187 | B196: TATASTEEL | C196: 476.15 | D196: 479.15 | E196: 470.50 | F196: 464.85 | G196: 456.20 | H196: 484.80 | I196: 493.45 | J196: 499.10 | K196: 487.8 | L196: 473.5 | M196: 113.15803
A197: 188 | B197: TECHM | C197: 778.9 | D197: 779.10 | E197: 774.80 | F197: 770.70 | G197: 766.40 | H197: 783.20 | I197: 787.50 | J197: 791.60 | K197: 783.4 | L197: 775 | M197: 9.76954
A198: 189 | B198: NIACL | C198: 160.5 | D198: 161.65 | E198: 154.95 | F198: 149.40 | G198: 142.70 | H198: 167.20 | I198: 173.90 | J198: 179.45 | K198: 168.35 | L198: 156.1 | M198: 4.45828
A199: 190 | B199: RAMCOCEM | C199: 819.6 | D199: 821.57 | E199: 812.28 | F199: 804.97 | G199: 795.68 | H199: 828.88 | I199: 838.17 | J199: 845.48 | K199: 830.85 | L199: 814.25 | M199: 3.35449
A200: 191 | B200: TITAN | C200: 1176.2 | D200: 1173.70 | E200: 1163.50 | F200: 1150.80 | G200: 1140.60 | H200: 1186.40 | I200: 1196.60 | J200: 1209.30 | K200: 1183.9 | L200: 1161 | M200: 9.25998
A201: 192 | B201: TORNTPHARM | C201: 2020.15 | D201: 2023.00 | E201: 1989.15 | F201: 1958.15 | G201: 1924.30 | H201: 2054.00 | I201: 2087.85 | J201: 2118.85 | K201: 2056.85 | L201: 1992 | M201: 5.20403
A202: 193 | B202: TORNTPOWER | C202: 314.3 | D202: 315.18 | E202: 310.97 | F202: 307.63 | G202: 303.42 | H202: 318.52 | I202: 322.73 | J202: 326.07 | K202: 319.4 | L202: 311.85 | M202: 11.84498
A203: 194 | B203: UPL | C203: 577.7 | D203: 577.57 | E203: 572.33 | F203: 566.97 | G203: 561.73 | H203: 582.93 | I203: 588.17 | J203: 593.53 | K203: 582.8 | L203: 572.2 | M203: 47.89489
A204: 195 | B204: ULTRACEMCO | C204: 4483.55 | D204: 4481.18 | E204: 4442.37 | F204: 4401.18 | G204: 4362.37 | H204: 4522.37 | I204: 4561.18 | J204: 4602.37 | K204: 4520 | L204: 4440 | M204: 2.83173
A205: 196 | B205: UNIONBANK | C205: 51.75 | D205: 51.85 | E205: 51.40 | F205: 51.05 | G205: 50.60 | H205: 52.20 | I205: 52.65 | J205: 53.00 | K205: 52.3 | L205: 51.5 | M205: 23.08022
... 30 more rows

Sheet MidCap Intra
L5: Back To Main Page
A6: FOR INTRA DAY TRADING | K6: =Main!B10 -> 2020-01-22
A9: Sr.no | B9: Scrip | C9: CLOSE RATE | D9: Pivot Point | E9: Supports | H9: Resistances
C10: Point | E10: S1 | F10: S2 | G10: S3 | H10: R1 | I10: R2 | J10: R3 | K10: HIGH | L10: LOW | M10: Total Trade Quanity in Lakhs
A11: 1 | B11: 3MINDIA | C11: 22119.65 | D11: 22140.63 | E11: 21978.97 | F11: 21838.28 | G11: 21676.62 | H11: 22281.32 | I11: 22442.98 | J11: 22583.67 | K11: 22302.3 | L11: 21999.95 | M11: 0.04571
A12: 2 | B12: ACC | C12: 1496.1 | D12: 1497.50 | E12: 1485.60 | F12: 1475.10 | G12: 1463.20 | H12: 1508.00 | I12: 1519.90 | J12: 1530.40 | K12: 1509.4 | L12: 1487 | M12: 3.5932
A13: 3 | B13: AIAENG | C13: 1789.85 | D13: 1750.95 | E13: 1701.90 | F13: 1613.95 | G13: 1564.90 | H13: 1838.90 | I13: 1887.95 | J13: 1975.90 | K13: 1800 | L13: 1663 | M13: 1.9031
A14: 4 | B14: APLAPOLLO | C14: 1994.8 | D14: 1979.97 | E14: 1937.83 | F14: 1880.87 | G14: 1838.73 | H14: 2036.93 | I14: 2079.07 | J14: 2136.03 | K14: 2022.1 | L14: 1923 | M14: 0.52625
A15: 5 | B15: AUBANK | C15: 888.35 | D15: 885.28 | E15: 878.57 | F15: 868.78 | G15: 862.07 | H15: 895.07 | I15: 901.78 | J15: 911.57 | K15: 892 | L15: 875.5 | M15: 2.5552
A16: 6 | B16: AARTIIND | C16: 864.7 | D16: 863.25 | E16: 856.70 | F16: 848.70 | G16: 842.15 | H16: 871.25 | I16: 877.80 | J16: 885.80 | K16: 869.8 | L16: 855.25 | M16: 0.77697
A17: 7 | B17: AAVAS | C17: 1957.65 | D17: 1975.83 | E17: 1932.82 | F17: 1907.98 | G17: 1864.97 | H17: 2000.67 | I17: 2043.68 | J17: 2068.52 | K17: 2018.85 | L17: 1951 | M17: 0.37482
A18: 8 | B18: ABBOTINDIA | C18: 12713.15 | D18: 12681.05 | E18: 12612.10 | F18: 12511.05 | G18: 12442.10 | H18: 12782.10 | I18: 12851.05 | J18: 12952.10 | K18: 12750 | L18: 12580 | M18: 0.06644
A19: 9 | B19: ADANIGAS | C19: 169.8 | D19: 170.52 | E19: 168.48 | F19: 167.17 | G19: 165.13 | H19: 171.83 | I19: 173.87 | J19: 175.18 | K19: 172.55 | L19: 169.2 | M19: 6.46295
A20: 10 | B20: ADANIGREEN | C20: 202.25 | D20: 200.42 | E20: 193.83 | F20: 185.42 | G20: 178.83 | H20: 208.83 | I20: 215.42 | J20: 223.83 | K20: 207 | L20: 192 | M20: 35.06909
A21: 11 | B21: ADANIPORTS | C21: 379.95 | D21: 379.08 | E21: 376.17 | F21: 372.38 | G21: 369.47 | H21: 382.87 | I21: 385.78 | J21: 389.57 | K21: 382 | L21: 375.3 | M21: 20.05178
A22: 12 | B22: ADANIPOWER | C22: 62.75 | D22: 62.90 | E22: 62.25 | F22: 61.75 | G22: 61.10 | H22: 63.40 | I22: 64.05 | J22: 64.55 | K22: 63.55 | L22: 62.4 | M22: 46.51073
A23: 13 | B23: ADANITRANS | C23: 332.7 | D23: 336.03 | E23: 326.67 | F23: 320.63 | G23: 311.27 | H23: 342.07 | I23: 351.43 | J23: 357.47 | K23: 345.4 | L23: 330 | M23: 1.08524
A24: 14 | B24: ABCAPITAL | C24: 106.2 | D24: 106.93 | E24: 105.07 | F24: 103.93 | G24: 102.07 | H24: 108.07 | I24: 109.93 | J24: 111.07 | K24: 108.8 | L24: 105.8 | M24: 13.72187
A25: 15 | B25: ABFRL | C25: 229.4 | D25: 230.72 | E25: 227.68 | F25: 225.97 | G25: 222.93 | H25: 232.43 | I25: 235.47 | J25: 237.18 | K25: 233.75 | L25: 229 | M25: 1.86185
A26: 16 | B26: ADVENZYMES | C26: 183.15 | D26: 181.20 | E26: 177.40 | F26: 171.65 | G26: 167.85 | H26: 186.95 | I26: 190.75 | J26: 196.50 | K26: 185 | L26: 175.45 | M26: 1.00591
A27: 17 | B27: AEGISCHEM | C27: 208.2 | D27: 207.75 | E27: 204.00 | F27: 199.80 | G27: 196.05 | H27: 211.95 | I27: 215.70 | J27: 219.90 | K27: 211.5 | L27: 203.55 | M27: 2.0383
A28: 18 | B28: AFFLE | C28: 1513.7 | D28: 1527.87 | E28: 1490.83 | F28: 1467.97 | G28: 1430.93 | H28: 1550.73 | I28: 1587.77 | J28: 1610.63 | K28: 1564.9 | L28: 1505 | M28: 1.04373
A29: 19 | B29: AJANTPHARM | C29: 1179.85 | D29: 1186.78 | E29: 1163.07 | F29: 1146.28 | G29: 1122.57 | H29: 1203.57 | I29: 1227.28 | J29: 1244.07 | K29: 1210.5 | L29: 1170 | M29: 2.01808
A30: 20 | B30: AKZOINDIA | C30: 2019.05 | D30: 2024.68 | E30: 2004.37 | F30: 1989.68 | G30: 1969.37 | H30: 2039.37 | I30: 2059.68 | J30: 2074.37 | K30: 2045 | L30: 2010 | M30: 0.05632
A31: 21 | B31: APLLTD | C31: 599.6 | D31: 595.23 | E31: 589.47 | F31: 579.33 | G31: 573.57 | H31: 605.37 | I31: 611.13 | J31: 621.27 | K31: 601 | L31: 585.1 | M31: 6.68657
A32: 22 | B32: ALKEM | C32: 2356.85 | D32: 2350.82 | E32: 2327.58 | F32: 2298.32 | G32: 2275.08 | H32: 2380.08 | I32: 2403.32 | J32: 2432.58 | K32: 2374.05 | L32: 2321.55 | M32: 1.27081
A33: 23 | B33: ALLCARGO | C33: 102.1 | D33: 102.60 | E33: 101.25 | F33: 100.40 | G33: 99.05 | H33: 103.45 | I33: 104.80 | J33: 105.65 | K33: 103.95 | L33: 101.75 | M33: 0.64741
A34: 24 | B34: AMARAJABAT | C34: 775.1 | D34: 773.78 | E34: 768.07 | F34: 761.03 | G34: 755.32 | H34: 780.82 | I34: 786.53 | J34: 793.57 | K34: 779.5 | L34: 766.75 | M34: 4.34317
A35: 25 | B35: AMBER | C35: 1320.55 | D35: 1313.85 | E35: 1281.70 | F35: 1242.85 | G35: 1210.70 | H35: 1352.70 | I35: 1384.85 | J35: 1423.70 | K35: 1346 | L35: 1275 | M35: 0.80658
A36: 26 | B36: AMBUJACEM | C36: 207.6 | D36: 207.73 | E36: 205.57 | F36: 203.53 | G36: 201.37 | H36: 209.77 | I36: 211.93 | J36: 213.97 | K36: 209.9 | L36: 205.7 | M36: 31.42796
A37: 27 | B37: APOLLOHOSP | C37: 1626.2 | D37: 1629.90 | E37: 1617.30 | F37: 1608.40 | G37: 1595.80 | H37: 1638.80 | I37: 1651.40 | J37: 1660.30 | K37: 1642.5 | L37: 1621 | M37: 3.17357
A38: 28 | B38: APOLLOTYRE | C38: 174.85 | D38: 174.20 | E38: 172.60 | F38: 170.35 | G38: 168.75 | H38: 176.45 | I38: 178.05 | J38: 180.30 | K38: 175.8 | L38: 171.95 | M38: 15.15394
A39: 29 | B39: ARVINDFASN | C39: 417.2 | D39: 410.42 | E39: 398.78 | F39: 380.37 | G39: 368.73 | H39: 428.83 | I39: 440.47 | J39: 458.88 | K39: 422.05 | L39: 392 | M39: 0.32298
A40: 30 | B40: ASAHIINDIA | C40: 239.85 | D40: 241.27 | E40: 236.58 | F40: 233.32 | G40: 228.63 | H40: 244.53 | I40: 249.22 | J40: 252.48 | K40: 245.95 | L40: 238 | M40: 0.09866
A41: 31 | B41: ASHOKLEY | C41: 86.3 | D41: 85.52 | E41: 84.38 | F41: 82.47 | G41: 81.33 | H41: 87.43 | I41: 88.57 | J41: 90.48 | K41: 86.65 | L41: 83.6 | M41: 225.62935
A42: 32 | B42: ASHOKA | C42: 119 | D42: 118.03 | E42: 115.07 | F42: 111.13 | G42: 108.17 | H42: 121.97 | I42: 124.93 | J42: 128.87 | K42: 121 | L42: 114.1 | M42: 21.08894
A43: 33 | B43: ASIANPAINT | C43: 1810.75 | D43: 1815.72 | E43: 1788.88 | F43: 1767.02 | G43: 1740.18 | H43: 1837.58 | I43: 1864.42 | J43: 1886.28 | K43: 1842.55 | L43: 1793.85 | M43: 21.01561
A44: 34 | B44: ASTERDM | C44: 163.65 | D44: 163.80 | E44: 162.05 | F44: 160.45 | G44: 158.70 | H44: 165.40 | I44: 167.15 | J44: 168.75 | K44: 165.55 | L44: 162.2 | M44: 2.58075
A45: 35 | B45: ASTRAZEN | C45: 2548.45 | D45: 2534.62 | E45: 2499.23 | F45: 2450.02 | G45: 2414.63 | H45: 2583.83 | I45: 2619.22 | J45: 2668.43 | K45: 2570 | L45: 2485.4 | M45: 0.11564
A46: 36 | B46: ASTRAL | C46: 1094.3 | D46: 1095.40 | E46: 1081.50 | F46: 1068.70 | G46: 1054.80 | H46: 1108.20 | I46: 1122.10 | J46: 1134.90 | K46: 1109.3 | L46: 1082.6 | M46: 1.1553
A47: 37 | B47: ATUL | C47: 4362.2 | D47: 4349.13 | E47: 4318.32 | F47: 4274.43 | G47: 4243.62 | H47: 4393.02 | I47: 4423.83 | J47: 4467.72 | K47: 4379.95 | L47: 4305.25 | M47: 0.04871
A48: 38 | B48: AUROPHARMA | C48: 493.2 | D48: 486.87 | E48: 478.33 | F48: 463.47 | G48: 454.93 | H48: 501.73 | I48: 510.27 | J48: 525.13 | K48: 495.4 | L48: 472 | M48: 33.71672
A49: 39 | B49: AVANTIFEED | C49: 699.15 | D49: 689.85 | E49: 668.30 | F49: 637.45 | G49: 615.90 | H49: 720.70 | I49: 742.25 | J49: 773.10 | K49: 711.4 | L49: 659 | M49: 21.7951
A50: 40 | B50: DMART | C50: 1912.35 | D50: 1924.60 | E50: 1889.65 | F50: 1866.95 | G50: 1832.00 | H50: 1947.30 | I50: 1982.25 | J50: 2004.95 | K50: 1959.55 | L50: 1901.9 | M50: 3.21554
A51: 41 | B51: AXISBANK | C51: 717.6 | D51: 721.08 | E51: 712.57 | F51: 707.53 | G51: 699.02 | H51: 726.12 | I51: 734.63 | J51: 739.67 | K51: 729.6 | L51: 716.05 | M51: 82.42803
A52: 42 | B52: BASF | C52: 1011.3 | D52: 1022.95 | E52: 993.90 | F52: 976.50 | G52: 947.45 | H52: 1040.35 | I52: 1069.40 | J52: 1086.80 | K52: 1052 | L52: 1005.55 | M52: 0.37876
A53: 43 | B53: BEML | C53: 999.6 | D53: 998.62 | E53: 977.98 | F53: 956.37 | G53: 935.73 | H53: 1020.23 | I53: 1040.87 | J53: 1062.48 | K53: 1019.25 | L53: 977 | M53: 5.94417
A54: 44 | B54: BSE | C54: 542.85 | D54: 543.58 | E54: 539.27 | F54: 535.68 | G54: 531.37 | H54: 547.17 | I54: 551.48 | J54: 555.07 | K54: 547.9 | L54: 540 | M54: 1.07036
A55: 45 | B55: BAJAJ-AUTO | C55: 3097.05 | D55: 3100.52 | E55: 3082.03 | F55: 3067.02 | G55: 3048.53 | H55: 3115.53 | I55: 3134.02 | J55: 3149.03 | K55: 3119 | L55: 3085.5 | M55: 2.15722
A56: 46 | B56: BAJAJCON | C56: 232.55 | D56: 233.95 | E56: 229.95 | F56: 227.35 | G56: 223.35 | H56: 236.55 | I56: 240.55 | J56: 243.15 | K56: 237.95 | L56: 231.35 | M56: 1.20681
A57: 47 | B57: BAJAJELEC | C57: 388.05 | D57: 390.32 | E57: 382.73 | F57: 377.42 | G57: 369.83 | H57: 395.63 | I57: 403.22 | J57: 408.53 | K57: 397.9 | L57: 385 | M57: 1.01319
A58: 48 | B58: BAJFINANCE | C58: 4138.6 | D58: 4147.25 | E58: 4108.40 | F58: 4078.20 | G58: 4039.35 | H58: 4177.45 | I58: 4216.30 | J58: 4246.50 | K58: 4186.1 | L58: 4117.05 | M58: 8.97922
A59: 49 | B59: BAJAJFINSV | C59: 9534.3 | D59: 9555.83 | E59: 9486.67 | F59: 9439.03 | G59: 9369.87 | H59: 9603.47 | I59: 9672.63 | J59: 9720.27 | K59: 9625 | L59: 9508.2 | M59: 1.74507
A60: 50 | B60: BAJAJHLDNG | C60: 3370.25 | D60: 3371.75 | E60: 3360.50 | F60: 3350.75 | G60: 3339.50 | H60: 3381.50 | I60: 3392.75 | J60: 3402.50 | K60: 3383 | L60: 3362 | M60: 0.44703
A61: 51 | B61: BALKRISIND | C61: 1089.95 | D61: 1095.08 | E61: 1082.17 | F61: 1074.38 | G61: 1061.47 | H61: 1102.87 | I61: 1115.78 | J61: 1123.57 | K61: 1108 | L61: 1087.3 | M61: 3.55584
A62: 52 | B62: BALMLAWRIE | C62: 124.35 | D62: 124.88 | E62: 123.47 | F62: 122.58 | G62: 121.17 | H62: 125.77 | I62: 127.18 | J62: 128.07 | K62: 126.3 | L62: 124 | M62: 0.50836
A63: 53 | B63: BALRAMCHIN | C63: 183.5 | D63: 184.63 | E63: 181.87 | F63: 180.23 | G63: 177.47 | H63: 186.27 | I63: 189.03 | J63: 190.67 | K63: 187.4 | L63: 183 | M63: 6.25559
A64: 54 | B64: BANDHANBNK | C64: 476.75 | D64: 478.88 | E64: 473.87 | F64: 470.98 | G64: 465.97 | H64: 481.77 | I64: 486.78 | J64: 489.67 | K64: 483.9 | L64: 476 | M64: 12.53858
A65: 55 | B65: BANKBARODA | C65: 94.75 | D65: 94.85 | E65: 94.00 | F65: 93.25 | G65: 92.40 | H65: 95.60 | I65: 96.45 | J65: 97.20 | K65: 95.7 | L65: 94.1 | M65: 164.40135
A66: 56 | B66: BANKINDIA | C66: 67.35 | D66: 67.27 | E66: 66.78 | F66: 66.22 | G66: 65.73 | H66: 67.83 | I66: 68.32 | J66: 68.88 | K66: 67.75 | L66: 66.7 | M66: 12.39835
A67: 57 | B67: MAHABANK | C67: 13.85 | D67: 13.92 | E67: 12.98 | F67: 12.12 | G67: 11.18 | H67: 14.78 | I67: 15.72 | J67: 16.58 | K67: 14.85 | L67: 13.05 | M67: 21.88868
A68: 58 | B68: BATAINDIA | C68: 1788.35 | D68: 1781.67 | E68: 1764.33 | F68: 1740.32 | G68: 1722.98 | H68: 1805.68 | I68: 1823.02 | J68: 1847.03 | K68: 1799 | L68: 1757.65 | M68: 4.91307
A69: 59 | B69: BAYERCROP | C69: 4174.5 | D69: 4173.48 | E69: 4134.02 | F69: 4093.53 | G69: 4054.07 | H69: 4213.97 | I69: 4253.43 | J69: 4293.92 | K69: 4212.95 | L69: 4133 | M69: 0.07758
A70: 60 | B70: BERGEPAINT | C70: 549.45 | D70: 553.82 | E70: 542.63 | F70: 535.82 | G70: 524.63 | H70: 560.63 | I70: 571.82 | J70: 578.63 | K70: 565 | L70: 547 | M70: 22.84062
A71: 61 | B71: BDL | C71: 305.6 | D71: 305.87 | E71: 300.73 | F71: 295.87 | G71: 290.73 | H71: 310.73 | I71: 315.87 | J71: 320.73 | K71: 311 | L71: 301 | M71: 1.0486
A72: 62 | B72: BEL | C72: 105.05 | D72: 104.97 | E72: 103.93 | F72: 102.82 | G72: 101.78 | H72: 106.08 | I72: 107.12 | J72: 108.23 | K72: 106 | L72: 103.85 | M72: 57.08875
A73: 63 | B73: BHARATFORG | C73: 510.95 | D73: 512.20 | E73: 505.40 | F73: 499.85 | G73: 493.05 | H73: 517.75 | I73: 524.55 | J73: 530.10 | K73: 519 | L73: 506.65 | M73: 14.30656
A74: 64 | B74: BHEL | C74: 43.4 | D74: 44.02 | E74: 42.58 | F74: 41.77 | G74: 40.33 | H74: 44.83 | I74: 46.27 | J74: 47.08 | K74: 45.45 | L74: 43.2 | M74: 243.23645
A75: 65 | B75: BPCL | C75: 463.85 | D75: 461.80 | E75: 457.10 | F75: 450.35 | G75: 445.65 | H75: 468.55 | I75: 473.25 | J75: 480.00 | K75: 466.5 | L75: 455.05 | M75: 41.9942
A76: 66 | B76: BHARTIARTL | C76: 511.75 | D76: 510.38 | E76: 505.77 | F76: 499.78 | G76: 495.17 | H76: 516.37 | I76: 520.98 | J76: 526.97 | K76: 515 | L76: 504.4 | M76: 640.01338
A77: 67 | B77: INFRATEL | C77: 240.5 | D77: 236.15 | E77: 228.75 | F77: 217.00 | G77: 209.60 | H77: 247.90 | I77: 255.30 | J77: 267.05 | K77: 243.55 | L77: 224.4 | M77: 246.34362
A78: 68 | B78: BIOCON | C78: 294.65 | D78: 293.55 | E78: 291.20 | F78: 287.75 | G78: 285.40 | H78: 297.00 | I78: 299.35 | J78: 302.80 | K78: 295.9 | L78: 290.1 | M78: 18.76487
A79: 69 | B79: BIRLACORPN | C79: 753.55 | D79: 757.03 | E79: 739.07 | F79: 724.58 | G79: 706.62 | H79: 771.52 | I79: 789.48 | J79: 803.97 | K79: 775 | L79: 742.55 | M79: 2.71817
A80: 70 | B80: BSOFT | C80: 71.9 | D80: 72.00 | E80: 71.20 | F80: 70.50 | G80: 69.70 | H80: 72.70 | I80: 73.50 | J80: 74.20 | K80: 72.8 | L80: 71.3 | M80: 3.79486
A81: 71 | B81: BLISSGVS | C81: 145.7 | D81: 146.02 | E81: 144.78 | F81: 143.87 | G81: 142.63 | H81: 146.93 | I81: 148.17 | J81: 149.08 | K81: 147.25 | L81: 145.1 | M81: 2.06204
A82: 72 | B82: BLUEDART | C82: 2647.55 | D82: 2628.85 | E82: 2582.70 | F82: 2517.85 | G82: 2471.70 | H82: 2693.70 | I82: 2739.85 | J82: 2804.70 | K82: 2675 | L82: 2564 | M82: 0.08499
A83: 73 | B83: BLUESTARCO | C83: 840.25 | D83: 848.07 | E83: 827.18 | F83: 814.12 | G83: 793.23 | H83: 861.13 | I83: 882.02 | J83: 895.08 | K83: 868.95 | L83: 835 | M83: 0.28434
A84: 74 | B84: BBTC | C84: 1134.55 | D84: 1131.70 | E84: 1119.40 | F84: 1104.25 | G84: 1091.95 | H84: 1146.85 | I84: 1159.15 | J84: 1174.30 | K84: 1144 | L84: 1116.55 | M84: 0.75686
A85: 75 | B85: BOMDYEING | C85: 86 | D85: 86.38 | E85: 85.12 | F85: 84.23 | G85: 82.97 | H85: 87.27 | I85: 88.53 | J85: 89.42 | K85: 87.65 | L85: 85.5 | M85: 15.86131
A86: 76 | B86: BOSCHLTD | C86: 14935.5 | D86: 14985.17 | E86: 14840.33 | F86: 14745.17 | G86: 14600.33 | H86: 15080.33 | I86: 15225.17 | J86: 15320.33 | K86: 15130 | L86: 14890 | M86: 0.14888
A87: 77 | B87: BRIGADE | C87: 226.25 | D87: 226.48 | E87: 223.77 | F87: 221.28 | G87: 218.57 | H87: 228.97 | I87: 231.68 | J87: 234.17 | K87: 229.2 | L87: 224 | M87: 0.23981
A88: 78 | B88: BRITANNIA | C88: 3111.25 | D88: 3106.17 | E88: 3082.33 | F88: 3053.42 | G88: 3029.58 | H88: 3135.08 | I88: 3158.92 | J88: 3187.83 | K88: 3130 | L88: 3077.25 | M88: 2.20943
A89: 79 | B89: CARERATING | C89: 644.6 | D89: 642.52 | E89: 633.38 | F89: 622.17 | G89: 613.03 | H89: 653.73 | I89: 662.87 | J89: 674.08 | K89: 651.65 | L89: 631.3 | M89: 5.56403
A90: 80 | B90: CCL | C90: 199.55 | D90: 199.17 | E90: 194.38 | F90: 189.22 | G90: 184.43 | H90: 204.33 | I90: 209.12 | J90: 214.28 | K90: 203.95 | L90: 194 | M90: 0.22347
A91: 81 | B91: CESC | C91: 747.05 | D91: 752.23 | E91: 737.97 | F91: 728.88 | G91: 714.62 | H91: 761.32 | I91: 775.58 | J91: 784.67 | K91: 766.5 | L91: 743.15 | M91: 4.55047
A92: 82 | B92: CRISIL | C92: 1787.85 | D92: 1799.27 | E92: 1771.58 | F92: 1755.32 | G92: 1727.63 | H92: 1815.53 | I92: 1843.22 | J92: 1859.48 | K92: 1826.95 | L92: 1783 | M92: 0.13874
A93: 83 | B93: CADILAHC | C93: 268.35 | D93: 268.28 | E93: 266.07 | F93: 263.78 | G93: 261.57 | H93: 270.57 | I93: 272.78 | J93: 275.07 | K93: 270.5 | L93: 266 | M93: 9.75832
A94: 84 | B94: CANFINHOME | C94: 463.6 | D94: 442.92 | E94: 418.68 | F94: 373.77 | G94: 349.53 | H94: 487.83 | I94: 512.07 | J94: 556.98 | K94: 467.15 | L94: 398 | M94: 84.14117
A95: 85 | B95: CANBK | C95: 219.15 | D95: 218.82 | E95: 216.33 | F95: 213.52 | G95: 211.03 | H95: 221.63 | I95: 224.12 | J95: 226.93 | K95: 221.3 | L95: 216 | M95: 60.67583
A96: 86 | B96: CAPLIPOINT | C96: 294.9 | D96: 294.93 | E96: 291.12 | F96: 287.33 | G96: 283.52 | H96: 298.72 | I96: 302.53 | J96: 306.32 | K96: 298.75 | L96: 291.15 | M96: 0.36436
A97: 87 | B97: CGCL | C97: 196.95 | D97: 196.63 | E97: 194.62 | F97: 192.28 | G97: 190.27 | H97: 198.97 | I97: 200.98 | J97: 203.32 | K97: 198.65 | L97: 194.3 | M97: 3.88784
A98: 88 | B98: CARBORUNIV | C98: 336.25 | D98: 337.02 | E98: 334.03 | F98: 331.82 | G98: 328.83 | H98: 339.23 | I98: 342.22 | J98: 344.43 | K98: 340 | L98: 334.8 | M98: 0.60718
A99: 89 | B99: CASTROLIND | C99: 132.2 | D99: 133.23 | E99: 130.57 | F99: 128.93 | G99: 126.27 | H99: 134.87 | I99: 137.53 | J99: 139.17 | K99: 135.9 | L99: 131.6 | M99: 18.81947
A100: 90 | B100: CEATLTD | C100: 1005.5 | D100: 1006.18 | E100: 994.37 | F100: 983.23 | G100: 971.42 | H100: 1017.32 | I100: 1029.13 | J100: 1040.27 | K100: 1018 | L100: 995.05 | M100: 0.41668
A101: 91 | B101: CENTRALBK | C101: 18.1 | D101: 18.07 | E101: 17.93 | F101: 17.77 | G101: 17.63 | H101: 18.23 | I101: 18.37 | J101: 18.53 | K101: 18.2 | L101: 17.9 | M101: 3.77087
A102: 92 | B102: CDSL | C102: 281.5 | D102: 277.40 | E102: 271.20 | F102: 260.90 | G102: 254.70 | H102: 287.70 | I102: 293.90 | J102: 304.20 | K102: 283.6 | L102: 267.1 | M102: 13.84127
A103: 93 | B103: CENTURYPLY | C103: 169.8 | D103: 169.07 | E103: 166.63 | F103: 163.47 | G103: 161.03 | H103: 172.23 | I103: 174.67 | J103: 177.83 | K103: 171.5 | L103: 165.9 | M103: 2.39387
A104: 94 | B104: CERA | C104: 2651.2 | D104: 2661.73 | E104: 2639.47 | F104: 2627.73 | G104: 2605.47 | H104: 2673.47 | I104: 2695.73 | J104: 2707.47 | K104: 2684 | L104: 2650 | M104: 0.01788
A105: 95 | B105: CHALET | C105: 353.1 | D105: 353.20 | E105: 342.40 | F105: 331.70 | G105: 320.90 | H105: 363.90 | I105: 374.70 | J105: 385.40 | K105: 364 | L105: 342.5 | M105: 5.10684
A106: 96 | B106: CHAMBLFERT | C106: 171.35 | D106: 169.98 | E106: 165.57 | F106: 159.78 | G106: 155.37 | H106: 175.77 | I106: 180.18 | J106: 185.97 | K106: 174.4 | L106: 164.2 | M106: 5.89619
A107: 97 | B107: CHENNPETRO | C107: 148.1 | D107: 149.18 | E107: 146.12 | F107: 144.13 | G107: 141.07 | H107: 151.17 | I107: 154.23 | J107: 156.22 | K107: 152.25 | L107: 147.2 | M107: 4.20255
A108: 98 | B108: CHOLAHLDNG | C108: 541 | D108: 541.15 | E108: 536.85 | F108: 532.70 | G108: 528.40 | H108: 545.30 | I108: 549.60 | J108: 553.75 | K108: 545.45 | L108: 537 | M108: 0.22863
A109: 99 | B109: CHOLAFIN | C109: 314.95 | D109: 314.25 | E109: 309.65 | F109: 304.35 | G109: 299.75 | H109: 319.55 | I109: 324.15 | J109: 329.45 | K109: 318.85 | L109: 308.95 | M109: 28.245
A110: 100 | B110: CIPLA | C110: 473.4 | D110: 475.05 | E110: 470.55 | F110: 467.70 | G110: 463.20 | H110: 477.90 | I110: 482.40 | J110: 485.25 | K110: 479.55 | L110: 472.2 | M110: 14.48808
A111: 101 | B111: CUB | C111: 238.2 | D111: 238.43 | E111: 236.87 | F111: 235.53 | G111: 233.97 | H111: 239.77 | I111: 241.33 | J111: 242.67 | K111: 240 | L111: 237.1 | M111: 6.53824
A112: 102 | B112: COALINDIA | C112: 202.15 | D112: 202.85 | E112: 200.45 | F112: 198.75 | G112: 196.35 | H112: 204.55 | I112: 206.95 | J112: 208.65 | K112: 205.25 | L112: 201.15 | M112: 63.47967
A113: 103 | B113: COCHINSHIP | C113: 428.2 | D113: 430.75 | E113: 422.70 | F113: 417.20 | G113: 409.15 | H113: 436.25 | I113: 444.30 | J113: 449.80 | K113: 438.8 | L113: 425.25 | M113: 1.66572
A114: 104 | B114: COLPAL | C114: 1487.15 | D114: 1489.93 | E114: 1480.42 | F114: 1473.68 | G114: 1464.17 | H114: 1496.67 | I114: 1506.18 | J114: 1512.92 | K114: 1499.45 | L114: 1483.2 | M114: 2.20146
A115: 105 | B115: CONCOR | C115: 551.55 | D115: 551.93 | E115: 549.62 | F115: 547.68 | G115: 545.37 | H115: 553.87 | I115: 556.18 | J115: 558.12 | K115: 554.25 | L115: 550 | M115: 3.27726
A116: 106 | B116: COROMANDEL | C116: 592.8 | D116: 591.27 | E116: 582.63 | F116: 572.47 | G116: 563.83 | H116: 601.43 | I116: 610.07 | J116: 620.23 | K116: 599.9 | L116: 581.1 | M116: 4.41459
A117: 107 | B117: CREDITACC | C117: 774 | D117: 769.17 | E117: 759.93 | F117: 745.87 | G117: 736.63 | H117: 783.23 | I117: 792.47 | J117: 806.53 | K117: 778.4 | L117: 755.1 | M117: 0.69352
A118: 108 | B118: CROMPTON | C118: 255.1 | D118: 255.40 | E118: 252.80 | F118: 250.50 | G118: 247.90 | H118: 257.70 | I118: 260.30 | J118: 262.60 | K118: 258 | L118: 253.1 | M118: 2.7456
A119: 109 | B119: CUMMINSIND | C119: 580.4 | D119: 583.70 | E119: 575.40 | F119: 570.40 | G119: 562.10 | H119: 588.70 | I119: 597.00 | J119: 602.00 | K119: 592 | L119: 578.7 | M119: 3.61234
A120: 110 | B120: CYIENT | C120: 460.3 | D120: 458.62 | E120: 455.23 | F120: 450.17 | G120: 446.78 | H120: 463.68 | I120: 467.07 | J120: 472.13 | K120: 462 | L120: 453.55 | M120: 1.78309
A121: 111 | B121: DBCORP | C121: 145.5 | D121: 145.40 | E121: 143.35 | F121: 141.20 | G121: 139.15 | H121: 147.55 | I121: 149.60 | J121: 151.75 | K121: 147.45 | L121: 143.25 | M121: 0.60575
A122: 112 | B122: DCBBANK | C122: 182.95 | D122: 188.05 | E122: 176.35 | F122: 169.75 | G122: 158.05 | H122: 194.65 | I122: 206.35 | J122: 212.95 | K122: 199.75 | L122: 181.45 | M122: 13.25665
A123: 113 | B123: DCMSHRIRAM | C123: 407.75 | D123: 408.25 | E123: 401.50 | F123: 395.25 | G123: 388.50 | H123: 414.50 | I123: 421.25 | J123: 427.50 | K123: 415 | L123: 402 | M123: 1.2107
A124: 114 | B124: DLF | C124: 257.1 | D124: 256.98 | E124: 255.12 | F124: 253.13 | G124: 251.27 | H124: 258.97 | I124: 260.83 | J124: 262.82 | K124: 258.85 | L124: 255 | M124: 53.87621
A125: 115 | B125: DABUR | C125: 487 | D125: 485.27 | E125: 482.18 | F125: 477.37 | G125: 474.28 | H125: 490.08 | I125: 493.17 | J125: 497.98 | K125: 488.35 | L125: 480.45 | M125: 7.88507
A126: 116 | B126: DALBHARAT | C126: 852 | D126: 849.20 | E126: 838.05 | F126: 824.10 | G126: 812.95 | H126: 863.15 | I126: 874.30 | J126: 888.25 | K126: 860.35 | L126: 835.25 | M126: 2.37195
A127: 117 | B127: DEEPAKNTR | C127: 389.35 | D127: 390.77 | E127: 385.53 | F127: 381.72 | G127: 376.48 | H127: 394.58 | I127: 399.82 | J127: 403.63 | K127: 396 | L127: 386.95 | M127: 1.59955
A128: 118 | B128: DELTACORP | C128: 196.85 | D128: 196.98 | E128: 195.27 | F128: 193.68 | G128: 191.97 | H128: 198.57 | I128: 200.28 | J128: 201.87 | K128: 198.7 | L128: 195.4 | M128: 4.325
A129: 119 | B129: DHFL | C129: 16 | D129: 16.17 | E129: 15.68 | F129: 15.37 | G129: 14.88 | H129: 16.48 | I129: 16.97 | J129: 17.28 | K129: 16.65 | L129: 15.85 | M129: 16.12566
A130: 120 | B130: DBL | C130: 416.2 | D130: 416.72 | E130: 410.48 | F130: 404.77 | G130: 398.53 | H130: 422.43 | I130: 428.67 | J130: 434.38 | K130: 422.95 | L130: 411 | M130: 1.62954
A131: 121 | B131: DISHTV | C131: 13.45 | D131: 13.25 | E131: 12.95 | F131: 12.45 | G131: 12.15 | H131: 13.75 | I131: 14.05 | J131: 14.55 | K131: 13.55 | L131: 12.75 | M131: 497.73069
A132: 122 | B132: DCAL | C132: 76.05 | D132: 76.70 | E132: 75.40 | F132: 74.75 | G132: 73.45 | H132: 77.35 | I132: 78.65 | J132: 79.30 | K132: 78 | L132: 76.05 | M132: 2.46644
A133: 123 | B133: DIVISLAB | C133: 1870.8 | D133: 1879.90 | E133: 1858.90 | F133: 1847.00 | G133: 1826.00 | H133: 1891.80 | I133: 1912.80 | J133: 1924.70 | K133: 1900.9 | L133: 1868 | M133: 3.9341
A134: 124 | B134: DIXON | C134: 4158.9 | D134: 4173.70 | E134: 4117.40 | F134: 4075.90 | G134: 4019.60 | H134: 4215.20 | I134: 4271.50 | J134: 4313.00 | K134: 4230 | L134: 4132.2 | M134: 0.22413
A135: 125 | B135: LALPATHLAB | C135: 1615.55 | D135: 1625.75 | E135: 1601.05 | F135: 1586.55 | G135: 1561.85 | H135: 1640.25 | I135: 1664.95 | J135: 1679.45 | K135: 1650.45 | L135: 1611.25 | M135: 0.27457
A136: 126 | B136: DRREDDY | C136: 3060.45 | D136: 3058.70 | E136: 3037.60 | F136: 3014.75 | G136: 2993.65 | H136: 3081.55 | I136: 3102.65 | J136: 3125.50 | K136: 3079.8 | L136: 3035.85 | M136: 5.70786
A137: 127 | B137: EIDPARRY | C137: 219.2 | D137: 221.45 | E137: 216.10 | F137: 213.00 | G137: 207.65 | H137: 224.55 | I137: 229.90 | J137: 233.00 | K137: 226.8 | L137: 218.35 | M137: 1.67956
A138: 128 | B138: EIHOTEL | C138: 146.85 | D138: 145.97 | E138: 144.43 | F138: 142.02 | G138: 140.48 | H138: 148.38 | I138: 149.92 | J138: 152.33 | K138: 147.5 | L138: 143.55 | M138: 0.44588
A139: 129 | B139: EDELWEISS | C139: 102.65 | D139: 103.42 | E139: 101.53 | F139: 100.42 | G139: 98.53 | H139: 104.53 | I139: 106.42 | J139: 107.53 | K139: 105.3 | L139: 102.3 | M139: 14.02413
A140: 130 | B140: EICHERMOT | C140: 21056.55 | D140: 21167.28 | E140: 20859.57 | F140: 20662.58 | G140: 20354.87 | H140: 21364.27 | I140: 21671.98 | J140: 21868.97 | K140: 21475 | L140: 20970.3 | M140: 1.03236
A141: 131 | B141: ELGIEQUIP | C141: 255.4 | D141: 257.72 | E141: 250.43 | F141: 245.47 | G141: 238.18 | H141: 262.68 | I141: 269.97 | J141: 274.93 | K141: 265 | L141: 252.75 | M141: 0.13867
A142: 132 | B142: EMAMILTD | C142: 335.15 | D142: 335.08 | E142: 328.87 | F142: 322.58 | G142: 316.37 | H142: 341.37 | I142: 347.58 | J142: 353.87 | K142: 341.3 | L142: 328.8 | M142: 4.21981
A143: 133 | B143: ENDURANCE | C143: 1065.25 | D143: 1060.27 | E143: 1050.63 | F143: 1036.02 | G143: 1026.38 | H143: 1074.88 | I143: 1084.52 | J143: 1099.13 | K143: 1069.9 | L143: 1045.65 | M143: 0.09825
A144: 134 | B144: ENGINERSIN | C144: 100 | D144: 100.38 | E144: 99.22 | F144: 98.43 | G144: 97.27 | H144: 101.17 | I144: 102.33 | J144: 103.12 | K144: 101.55 | L144: 99.6 | M144: 5.13578
A145: 135 | B145: EQUITAS | C145: 103.9 | D145: 103.57 | E145: 102.63 | F145: 101.37 | G145: 100.43 | H145: 104.83 | I145: 105.77 | J145: 107.03 | K145: 104.5 | L145: 102.3 | M145: 23.08638
A146: 136 | B146: ERIS | C146: 503.6 | D146: 500.75 | E146: 491.15 | F146: 478.70 | G146: 469.10 | H146: 513.20 | I146: 522.80 | J146: 535.25 | K146: 510.35 | L146: 488.3 | M146: 0.3296
A147: 137 | B147: ESCORTS | C147: 704 | D147: 705.93 | E147: 699.37 | F147: 694.73 | G147: 688.17 | H147: 710.57 | I147: 717.13 | J147: 721.77 | K147: 712.5 | L147: 701.3 | M147: 12.97448
A148: 138 | B148: ESSELPACK | C148: 173.3 | D148: 172.87 | E148: 170.78 | F148: 168.27 | G148: 166.18 | H148: 175.38 | I148: 177.47 | J148: 179.98 | K148: 174.95 | L148: 170.35 | M148: 3.12236
A149: 139 | B149: EXIDEIND | C149: 194.05 | D149: 194.07 | E149: 192.53 | F149: 191.02 | G149: 189.48 | H149: 195.58 | I149: 197.12 | J149: 198.63 | K149: 195.6 | L149: 192.55 | M149: 11.22375
A150: 140 | B150: FDC | C150: 227.8 | D150: 228.57 | E150: 226.23 | F150: 224.67 | G150: 222.33 | H150: 230.13 | I150: 232.47 | J150: 234.03 | K150: 230.9 | L150: 227 | M150: 0.24761
A151: 141 | B151: FEDERALBNK | C151: 94.6 | D151: 94.83 | E151: 93.27 | F151: 91.93 | G151: 90.37 | H151: 96.17 | I151: 97.73 | J151: 99.07 | K151: 96.4 | L151: 93.5 | M151: 304.51633
A152: 142 | B152: FMGOETZE | C152: 628.3 | D152: 635.45 | E152: 618.00 | F152: 607.70 | G152: 590.25 | H152: 645.75 | I152: 663.20 | J152: 673.50 | K152: 652.9 | L152: 625.15 | M152: 0.03351
A153: 143 | B153: FINEORG | C153: 2207.75 | D153: 2221.25 | E153: 2176.50 | F153: 2145.25 | G153: 2100.50 | H153: 2252.50 | I153: 2297.25 | J153: 2328.50 | K153: 2266 | L153: 2190 | M153: 0.17582
A154: 144 | B154: FINCABLES | C154: 419.3 | D154: 416.02 | E154: 411.03 | F154: 402.77 | G154: 397.78 | H154: 424.28 | I154: 429.27 | J154: 437.53 | K154: 421 | L154: 407.75 | M154: 0.41155
A155: 145 | B155: FINPIPE | C155: 560.4 | D155: 564.55 | E155: 554.20 | F155: 548.00 | G155: 537.65 | H155: 570.75 | I155: 581.10 | J155: 587.30 | K155: 574.9 | L155: 558.35 | M155: 0.1292
A156: 146 | B156: FSL | C156: 42.65 | D156: 42.62 | E156: 42.28 | F156: 41.92 | G156: 41.58 | H156: 42.98 | I156: 43.32 | J156: 43.68 | K156: 42.95 | L156: 42.25 | M156: 8.36983
A157: 147 | B157: FORTIS | C157: 146.15 | D157: 144.98 | E157: 143.17 | F157: 140.18 | G157: 138.37 | H157: 147.97 | I157: 149.78 | J157: 152.77 | K157: 146.8 | L157: 142 | M157: 44.56421
A158: 148 | B158: FCONSUMER | C158: 24.65 | D158: 24.77 | E158: 24.33 | F158: 24.02 | G158: 23.58 | H158: 25.08 | I158: 25.52 | J158: 25.83 | K158: 25.2 | L158: 24.45 | M158: 10.88341
A159: 149 | B159: FLFL | C159: 413.9 | D159: 413.17 | E159: 403.73 | F159: 393.57 | G159: 384.13 | H159: 423.33 | I159: 432.77 | J159: 442.93 | K159: 422.6 | L159: 403 | M159: 0.31888
A160: 150 | B160: FRETAIL | C160: 342.55 | D160: 343.72 | E160: 338.83 | F160: 335.12 | G160: 330.23 | H160: 347.43 | I160: 352.32 | J160: 356.03 | K160: 348.6 | L160: 340 | M160: 14.27538
A161: 151 | B161: GAIL | C161: 126.75 | D161: 127.53 | E161: 125.52 | F161: 124.28 | G161: 122.27 | H161: 128.77 | I161: 130.78 | J161: 132.02 | K161: 129.55 | L161: 126.3 | M161: 100.9235
A162: 152 | B162: GEPIL | C162: 691.75 | D162: 688.12 | E162: 678.73 | F162: 665.72 | G162: 656.33 | H162: 701.13 | I162: 710.52 | J162: 723.53 | K162: 697.5 | L162: 675.1 | M162: 0.11389
A163: 153 | B163: GET&D | C163: 155.3 | D163: 155.95 | E163: 153.45 | F163: 151.60 | G163: 149.10 | H163: 157.80 | I163: 160.30 | J163: 162.15 | K163: 158.45 | L163: 154.1 | M163: 0.19176
A164: 154 | B164: GHCL | C164: 209.6 | D164: 208.48 | E164: 205.67 | F164: 201.73 | G164: 198.92 | H164: 212.42 | I164: 215.23 | J164: 219.17 | K164: 211.3 | L164: 204.55 | M164: 5.18561
A165: 155 | B165: GMRINFRA | C165: 23.1 | D165: 23.12 | E165: 22.88 | F165: 22.67 | G165: 22.43 | H165: 23.33 | I165: 23.57 | J165: 23.78 | K165: 23.35 | L165: 22.9 | M165: 86.61412
A166: 156 | B166: GALAXYSURF | C166: 1500.1 | D166: 1494.02 | E166: 1483.13 | F166: 1466.17 | G166: 1455.28 | H166: 1510.98 | I166: 1521.87 | J166: 1538.83 | K166: 1504.9 | L166: 1477.05 | M166: 0.08326
A167: 157 | B167: GARFIBRES | C167: 1387.35 | D167: 1406.52 | E167: 1353.18 | F167: 1319.02 | G167: 1265.68 | H167: 1440.68 | I167: 1494.02 | J167: 1528.18 | K167: 1459.85 | L167: 1372.35 | M167: 0.04232
A168: 158 | B168: GAYAPROJ | C168: 76.65 | D168: 76.88 | E168: 75.27 | F168: 73.88 | G168: 72.27 | H168: 78.27 | I168: 79.88 | J168: 81.27 | K168: 78.5 | L168: 75.5 | M168: 9.77565
A169: 159 | B169: GICRE | C169: 255.7 | D169: 255.27 | E169: 251.93 | F169: 248.17 | G169: 244.83 | H169: 259.03 | I169: 262.37 | J169: 266.13 | K169: 258.6 | L169: 251.5 | M169: 2.09951
A170: 160 | B170: GILLETTE | C170: 6322.8 | D170: 6346.60 | E170: 6288.20 | F170: 6253.60 | G170: 6195.20 | H170: 6381.20 | I170: 6439.60 | J170: 6474.20 | K170: 6405 | L170: 6312 | M170: 0.06005
A171: 161 | B171: GLAXO | C171: 1623.35 | D171: 1624.03 | E171: 1615.57 | F171: 1607.78 | G171: 1599.32 | H171: 1631.82 | I171: 1640.28 | J171: 1648.07 | K171: 1632.5 | L171: 1616.25 | M171: 0.15763
A172: 162 | B172: GLENMARK | C172: 351 | D172: 350.75 | E172: 345.85 | F172: 340.70 | G172: 335.80 | H172: 355.90 | I172: 360.80 | J172: 365.95 | K172: 355.65 | L172: 345.6 | M172: 13.1318
A173: 163 | B173: GODFRYPHLP | C173: 1417.1 | D173: 1430.98 | E173: 1380.22 | F173: 1343.33 | G173: 1292.57 | H173: 1467.87 | I173: 1518.63 | J173: 1555.52 | K173: 1481.75 | L173: 1394.1 | M173: 1.91568
A174: 164 | B174: GODREJAGRO | C174: 559.55 | D174: 555.87 | E174: 545.73 | F174: 531.92 | G174: 521.78 | H174: 569.68 | I174: 579.82 | J174: 593.63 | K174: 566 | L174: 542.05 | M174: 0.66317
A175: 165 | B175: GODREJCP | C175: 731.55 | D175: 737.08 | E175: 724.27 | F175: 716.98 | G175: 704.17 | H175: 744.37 | I175: 757.18 | J175: 764.47 | K175: 749.9 | L175: 729.8 | M175: 6.11181
A176: 166 | B176: GODREJIND | C176: 437.45 | D176: 435.93 | E176: 432.87 | F176: 428.28 | G176: 425.22 | H176: 440.52 | I176: 443.58 | J176: 448.17 | K176: 439 | L176: 431.35 | M176: 0.35746
A177: 167 | B177: GODREJPROP | C177: 953.5 | D177: 961.83 | E177: 941.67 | F177: 929.83 | G177: 909.67 | H177: 973.67 | I177: 993.83 | J177: 1005.67 | K177: 982 | L177: 950 | M177: 1.08496
A178: 168 | B178: GRANULES | C178: 139.95 | D178: 143.63 | E178: 134.42 | F178: 128.88 | G178: 119.67 | H178: 149.17 | I178: 158.38 | J178: 163.92 | K178: 152.85 | L178: 138.1 | M178: 100.78581
A179: 169 | B179: GRAPHITE | C179: 305.45 | D179: 306.33 | E179: 303.12 | F179: 300.78 | G179: 297.57 | H179: 308.67 | I179: 311.88 | J179: 314.22 | K179: 309.55 | L179: 304 | M179: 11.30712
A180: 170 | B180: GRASIM | C180: 771.65 | D180: 772.07 | E180: 763.03 | F180: 754.42 | G180: 745.38 | H180: 780.68 | I180: 789.72 | J180: 798.33 | K180: 781.1 | L180: 763.45 | M180: 16.61273
A181: 171 | B181: GESHIP | C181: 344.35 | D181: 344.45 | E181: 340.55 | F181: 336.75 | G181: 332.85 | H181: 348.25 | I181: 352.15 | J181: 355.95 | K181: 348.35 | L181: 340.65 | M181: 2.87369
A182: 172 | B182: GREAVESCOT | C182: 142.95 | D182: 143.65 | E182: 140.80 | F182: 138.65 | G182: 135.80 | H182: 145.80 | I182: 148.65 | J182: 150.80 | K182: 146.5 | L182: 141.5 | M182: 1.98793
A183: 173 | B183: GRINDWELL | C183: 627.65 | D183: 632.63 | E183: 619.02 | F183: 610.38 | G183: 596.77 | H183: 641.27 | I183: 654.88 | J183: 663.52 | K183: 646.25 | L183: 624 | M183: 0.18563
A184: 174 | B184: GUJALKALI | C184: 428.75 | D184: 432.15 | E184: 422.30 | F184: 415.85 | G184: 406.00 | H184: 438.60 | I184: 448.45 | J184: 454.90 | K184: 442 | L184: 425.7 | M184: 0.76762
A185: 175 | B185: GUJGASLTD | C185: 276.45 | D185: 274.65 | E185: 271.05 | F185: 265.65 | G185: 262.05 | H185: 280.05 | I185: 283.65 | J185: 289.05 | K185: 278.25 | L185: 269.25 | M185: 9.21565
A186: 176 | B186: GMDCLTD | C186: 66.85 | D186: 67.07 | E186: 64.98 | F186: 63.12 | G186: 61.03 | H186: 68.93 | I186: 71.02 | J186: 72.88 | K186: 69.15 | L186: 65.2 | M186: 1.91839
A187: 177 | B187: GNFC | C187: 194.05 | D187: 194.08 | E187: 191.97 | F187: 189.88 | G187: 187.77 | H187: 196.17 | I187: 198.28 | J187: 200.37 | K187: 196.2 | L187: 192 | M187: 4.42233
A188: 178 | B188: GPPL | C188: 91.95 | D188: 91.05 | E188: 89.50 | F188: 87.05 | G188: 85.50 | H188: 93.50 | I188: 95.05 | J188: 97.50 | K188: 92.6 | L188: 88.6 | M188: 1.6344
A189: 179 | B189: GSFC | C189: 83.75 | D189: 83.62 | E189: 82.73 | F189: 81.72 | G189: 80.83 | H189: 84.63 | I189: 85.52 | J189: 86.53 | K189: 84.5 | L189: 82.6 | M189: 2.84136
A190: 180 | B190: GSPL | C190: 250.05 | D190: 250.07 | E190: 246.73 | F190: 243.42 | G190: 240.08 | H190: 253.38 | I190: 256.72 | J190: 260.03 | K190: 253.4 | L190: 246.75 | M190: 2.94655
A191: 181 | B191: GULFOILLUB | C191: 832.55 | D191: 834.35 | E191: 829.20 | F191: 825.85 | G191: 820.70 | H191: 837.70 | I191: 842.85 | J191: 846.20 | K191: 839.5 | L191: 831 | M191: 0.01401
A192: 182 | B192: HEG | C192: 1096.9 | D192: 1102.28 | E192: 1079.62 | F192: 1062.33 | G192: 1039.67 | H192: 1119.57 | I192: 1142.23 | J192: 1159.52 | K192: 1124.95 | L192: 1085 | M192: 3.17498
A193: 183 | B193: HCLTECH | C193: 584.05 | D193: 586.55 | E193: 579.85 | F193: 575.65 | G193: 568.95 | H193: 590.75 | I193: 597.45 | J193: 601.65 | K193: 593.25 | L193: 582.35 | M193: 26.40668
A194: 184 | B194: HDFCAMC | C194: 3179.45 | D194: 3197.15 | E194: 3154.30 | F194: 3129.15 | G194: 3086.30 | H194: 3222.30 | I194: 3265.15 | J194: 3290.30 | K194: 3240 | L194: 3172 | M194: 3.62236
A195: 185 | B195: HDFCBANK | C195: 1244.35 | D195: 1244.25 | E195: 1238.50 | F195: 1232.65 | G195: 1226.90 | H195: 1250.10 | I195: 1255.85 | J195: 1261.70 | K195: 1250 | L195: 1238.4 | M195: 74.92402
A196: 186 | B196: HDFCLIFE | C196: 602 | D196: 601.95 | E196: 594.20 | F196: 586.40 | G196: 578.65 | H196: 609.75 | I196: 617.50 | J196: 625.30 | K196: 609.7 | L196: 594.15 | M196: 15.97879
A197: 187 | B197: HFCL | C197: 17 | D197: 17.02 | E197: 16.78 | F197: 16.57 | G197: 16.33 | H197: 17.23 | I197: 17.47 | J197: 17.68 | K197: 17.25 | L197: 16.8 | M197: 31.31072
A198: 188 | B198: HATSUN | C198: 621.1 | D198: 616.98 | E198: 604.17 | F198: 587.23 | G198: 574.42 | H198: 633.92 | I198: 646.73 | J198: 663.67 | K198: 629.8 | L198: 600.05 | M198: 0.22012
A199: 189 | B199: HAVELLS | C199: 616.95 | D199: 620.82 | E199: 608.98 | F199: 601.02 | G199: 589.18 | H199: 628.78 | I199: 640.62 | J199: 648.58 | K199: 632.65 | L199: 612.85 | M199: 53.30031
A200: 190 | B200: HEIDELBERG | C200: 194.35 | D200: 194.78 | E200: 193.07 | F200: 191.78 | G200: 190.07 | H200: 196.07 | I200: 197.78 | J200: 199.07 | K200: 196.5 | L200: 193.5 | M200: 1.23768
A201: 191 | B201: HERITGFOOD | C201: 362.55 | D201: 366.18 | E201: 356.37 | F201: 350.18 | G201: 340.37 | H201: 372.37 | I201: 382.18 | J201: 388.37 | K201: 376 | L201: 360 | M201: 0.15815
A202: 192 | B202: HEROMOTOCO | C202: 2398.7 | D202: 2395.45 | E202: 2378.25 | F202: 2357.80 | G202: 2340.60 | H202: 2415.90 | I202: 2433.10 | J202: 2453.55 | K202: 2412.65 | L202: 2375 | M202: 5.68473
A203: 193 | B203: HEXAWARE | C203: 341.45 | D203: 341.17 | E203: 337.38 | F203: 333.32 | G203: 329.53 | H203: 345.23 | I203: 349.02 | J203: 353.08 | K203: 344.95 | L203: 337.1 | M203: 2.98218
A204: 194 | B204: HSCL | C204: 68.15 | D204: 68.32 | E204: 67.08 | F204: 66.02 | G204: 64.78 | H204: 69.38 | I204: 70.62 | J204: 71.68 | K204: 69.55 | L204: 67.25 | M204: 8.79954
A205: 195 | B205: HIMATSEIDE | C205: 138.85 | D205: 139.77 | E205: 136.53 | F205: 134.22 | G205: 130.98 | H205: 142.08 | I205: 145.32 | J205: 147.63 | K205: 143 | L205: 137.45 | M205: 1.88249
A206: 196 | B206: HINDALCO | C206: 205.15 | D206: 206.10 | E206: 203.70 | F206: 202.25 | G206: 199.85 | H206: 207.55 | I206: 209.95 | J206: 211.40 | K206: 208.5 | L206: 204.65 | M206: 44.79791
... 320 more rows

Sheet Bulk Deals
E6: Back To Main Page
A7: Subject : | B7: BULK DEAL | D7: =Main!B10 -> 2020-01-22
A9: Date | B9: Scrip code | C9: Scrip Name | D9: Client Name | E9: Buy / Sell | F9: Quantity Traded | G9: Trade Price / Wt.Avg.trade price | H9: Exchange
A10: 2020-01-21 | B10: 511463 | C10: ALEXANDER | D10: KAHAR NIKLESH KANAIYABHAI | E10: BUY | F10: 46,523 | G10: 17.26 | H10: BSE
A11: 2020-01-21 | B11: 511463 | C11: ALEXANDER | D11: KAHAR NIKLESH KANAIYABHAI | E11: SELL | F11: 24,100 | G11: 16.62 | H11: BSE
A12: 2020-01-21 | B12: 540545 | C12: BGJL | D12: RAGHURAM SHIVRAM THAKKER | E12: BUY | F12: 69,000 | G12: 35.9 | H12: BSE
A13: 2020-01-21 | B13: 530309 | C13: CHANDRAP | D13: RICHA ARNEJA | E13: BUY | F13: 19,893 | G13: 17.38 | H13: BSE
A14: 2020-01-21 | B14: 530309 | C14: CHANDRAP | D14: TANUJ ARNEJA | E14: SELL | F14: 20,094 | G14: 17.38 | H14: BSE
A15: 2020-01-21 | B15: 538521 | C15: CROWNTOURS | D15: MANJULABEN BHAVESHKUMAR RANGEE | E15: SELL | F15: 18,656 | G15: 18.47 | H15: BSE
A16: 2020-01-21 | B16: 538432 | C16: DIVINUS | D16: BRIJESH UMESHBHAI JOSHI | E16: BUY | F16: 26,400 | G16: 32.1 | H16: BSE
A17: 2020-01-21 | B17: 538432 | C17: DIVINUS | D17: JIGAR BHADRESH GANDHI | E17: SELL | F17: 26,400 | G17: 32.00 | H17: BSE
A18: 2020-01-21 | B18: 538432 | C18: DIVINUS | D18: MANOJKUMAR GUNVANTRAI SOMANI | E18: BUY | F18: 26,400 | G18: 32.00 | H18: BSE
A19: 2020-01-21 | B19: 538432 | C19: DIVINUS | D19: MANOJKUMAR GUNVANTRAI SOMANI | E19: SELL | F19: 4,400 | G19: 32.10 | H19: BSE
A20: 2020-01-21 | B20: 532940 | C20: JKIL | D20: NORGES BANK ON ACCOUNT OF THE GOVERNMENT PENSION FUND GLOBAL | E20: BUY | F20: 2,198,182 | G20: 157 | H20: BSE
A21: 2020-01-21 | B21: 532940 | C21: JKIL | D21: AMERICAN FUNDS INSUR SERIES GLOBAL SMALL CAPITALIZATION 75 | E21: SELL | F21: 1,450,288 | G21: 157.00 | H21: BSE
A22: 2020-01-21 | B22: 532940 | C22: JKIL | D22: SMALLCAP WORLD FUND INC | E22: SELL | F22: 869,875 | G22: 157.00 | H22: BSE
A23: 2020-01-21 | B23: 538765 | C23: JSHL | D23: ANURAAG BAJPAI | E23: BUY | F23: 40,000 | G23: 15.46 | H23: BSE
A24: 2020-01-21 | B24: 538765 | C24: JSHL | D24: SANJIV KUMAR MISHRA | E24: SELL | F24: 40,000 | G24: 15.65 | H24: BSE
A25: 2020-01-21 | B25: 524322 | C25: KABRADG | D25: ARTHI | E25: BUY | F25: 43,349 | G25: 1.04 | H25: BSE
A26: 2020-01-21 | B26: 524322 | C26: KABRADG | D26: RAMACHANDRAN MURALIDHARAN | E26: SELL | F26: 43,349 | G26: 1.04 | H26: BSE
A27: 2020-01-21 | B27: 502933 | C27: KATRSPG | D27: RAHUL VIJAY KATARE | E27: SELL | F27: 71,559 | G27: 22.65 | H27: BSE
A28: 2020-01-21 | B28: 542771 | C28: NOVATEOR | D28: DARSHAN ORNA LIMITED | E28: SELL | F28: 96,000 | G28: 16.15 | H28: BSE
A29: 2020-01-21 | B29: 540175 | C29: REGENCY | D29: SONIA ABROL | E29: BUY | F29: 16,531 | G29: 18.4 | H29: BSE
A30: 2020-01-21 | B30: 540175 | C30: REGENCY | D30: SONIA ABROL | E30: SELL | F30: 26,752 | G30: 18.25 | H30: BSE
A31: 2020-01-21 | B31: 540175 | C31: REGENCY | D31: NIDHI PRATIK KOTHARI | E31: BUY | F31: 27,596 | G31: 18.25 | H31: BSE
A32: 2020-01-21 | B32: 500111 | C32: RELCAPITAL | D32: AXIS TRUSTEE SERVICES LIMITED | E32: SELL | F32: 1,335,292 | G32: 9.86 | H32: BSE
A33: 2020-01-21 | B33: 539026 | C33: SSPNFIN | D33: MANSI R KAPADIYA | E33: BUY | F33: 12,000 | G33: 52.8 | H33: BSE
A34: 2020-01-21 | B34: 539026 | C34: SSPNFIN | D34: MANSI R KAPADIYA | E34: SELL | F34: 12,000 | G34: 51.9 | H34: BSE
A35: 2020-01-21 | B35: 539026 | C35: SSPNFIN | D35: RONALD WILSON LOBO | E35: BUY | F35: 12,000 | G35: 54.08 | H35: BSE
A36: 2020-01-21 | B36: CALSOFT | C36: California Soft Ltd. | D36: MAHADEVAN N | E36: BUY | F36: 61,879 | G36: 13.3 | H36: NSE
A37: 2020-01-21 | B37: CONTI | C37: Continental Seed Chem Ltd | D37: MEETHALAPPA MUHAMMED HUSSAIN RAMSEELA | E37: BUY | F37: 40,000 | G37: 56 | H37: NSE
A38: 2020-01-21 | B38: CONTI | C38: Continental Seed Chem Ltd | D38: MANISH KUMAR | E38: BUY | F38: 20,000 | G38: 55.62 | H38: NSE
A39: 2020-01-21 | B39: DSML | C39: Debock Sale Marketing Ltd | D39: CHETANBHAI MAHENDRABHAI DANTANI | E39: BUY | F39: 60,000 | G39: 4.9 | H39: NSE
A40: 2020-01-21 | B40: IDEA | C40: Vodafone Idea Limited | D40: SKYVEIL TRADE SOLUTIONS LLP | E40: BUY | F40: 138,416,439 | G40: 5.62 | H40: NSE
A41: 2020-01-21 | B41: JUSTDIAL | C41: Justdial Ltd. | D41: TOWER RESEARCH CAPITAL MARKETS INDIA PRIVATE LIMITED | E41: BUY | F41: 431,765 | G41: 581.11 | H41: NSE
A42: 2020-01-21 | B42: ORIENTALTL | C42: Oriental Trimex Limited | D42: CAPSTON CAPITAL PARTNERS | E42: BUY | F42: 175,000 | G42: 10.2 | H42: NSE
A43: 2020-01-21 | B43: SPECIALITY | C43: Speciality Rest Ltd | D43: RAJASTHAN GLOBAL SECURITIES PVT LTD | E43: BUY | F43: 322,044 | G43: 66.96 | H43: NSE
A44: 2020-01-21 | B44: VCL | C44: Vaxtex Cotfab Limited | D44: PAUMINI DIMPLE SHAH | E44: BUY | F44: 36,000 | G44: 23.78 | H44: NSE
A45: 2020-01-21 | B45: CALSOFT | C45: California Soft Ltd. | D45: MAHADEVAN N | E45: SELL | F45: 67,300 | G45: 13.09 | H45: NSE
A46: 2020-01-21 | B46: CONTI | C46: Continental Seed Chem Ltd | D46: MANISH KUMAR | E46: SELL | F46: 96,000 | G46: 56 | H46: NSE
A47: 2020-01-21 | B47: CONTI | C47: Continental Seed Chem Ltd | D47: KAUSHALYA GARG | E47: SELL | F47: 32,000 | G47: 56 | H47: NSE
A48: 2020-01-21 | B48: DCI | C48: DC Infotech and Comun Ltd | D48: SMARTNET INFOTECH & SERVICES PVT LTD | E48: SELL | F48: 36,000 | G48: 45.45 | H48: NSE
A49: 2020-01-21 | B49: DSML | C49: Debock Sale Marketing Ltd | D49: IT INDIABULL PRIVATE LIMITED | E49: SELL | F49: 66,000 | G49: 4.9 | H49: NSE
A50: 2020-01-21 | B50: IDEA | C50: Vodafone Idea Limited | D50: SKYVEIL TRADE SOLUTIONS LLP | E50: SELL | F50: 144,424,377 | G50: 5.64 | H50: NSE
A51: 2020-01-21 | B51: JUSTDIAL | C51: Justdial Ltd. | D51: TOWER RESEARCH CAPITAL MARKETS INDIA PRIVATE LIMITED | E51: SELL | F51: 412,085 | G51: 580.34 | H51: NSE
A52: 2020-01-21 | B52: ORIENTALTL | C52: Oriental Trimex Limited | D52: DHANAASHA MARKETING PRIVATE LIMITED | E52: SELL | F52: 175,000 | G52: 10.2 | H52: NSE
A53: 2020-01-21 | B53: SPECIALITY | C53: Speciality Rest Ltd | D53: PARADICE GLOBAL SMALL MID CAP FUND | E53: SELL | F53: 919,917 | G53: 66.88 | H53: NSE

Sheet Call Tracker (Equity & F&O)
M5: Back To Main Page
A6: Retail Research Technical Calls & Fundamental Performance Report for the month of January-2020
M7: =Main!B10 -> 2020-01-22
B8: Positional Call
A9: Sr.no | B9: Date | D9: Company | E9: Rec | F9: Rec Price | G9: Stop Loss*** | H9: Call Closed At | I9: Target | J9: Remark | K9: Profit / Loss per Share | L9: Gain / Loss % | M9: Status | N9: Closed Date | O9: NSE Closed Price
A10: 1 | B10: 2019-10-07 | D10: PIDILITIND | E10: Buy{} | F10: 1367.5 | G10: 1297 | H10: 1399.25 | I10: 1500-1520 | J10: Profit of Rs.31.75/- | K10: =H10-F10 -> 31.75 | L10: =K10/F10 -> 2.32% | M10: Successful | N10: 2020-01-06 | R10: R
A11: 2 | B11: 2019-11-14 | D11: HEIDELBERG | E11: Buy{} | F11: 186.5 | G11: 174 | H11: 193 | I11: 205-210 | J11: Profit of Rs.5/- | K11: =H11-F11 -> 6.5 | L11: =K11/F11 -> 3.49% | M11: Successful | N11: 2020-01-07 | R11: H
A12: 3 | B12: 2019-11-18 | D12: BAJAJ-AUTO | E12: Sell | F12: 3190 | G12: 3356.7 | H12: 3030 | I12: 2900-2850 | J12: Profit of Rs.160/- | K12: =F12-H12 -> 160 | L12: 5.02% | M12: Successful | N12: 2020-01-06 | R12: R
A13: 4 | B13: 2019-11-20 | D13: BRITANNIA | E13: Buy | F13: 3075-3100 | G13: 2930 | I13: 3380-3420 | J13: Open | O13: =VLOOKUP(D13,Sheet2!A76:M1715,6,0) -> 3111.25 | R13: H
A14: 5 | B14: 2019-11-21 | D14: HINDUNILVR | E14: Buy{} | F14: 2020 | G14: 1917 | H14: 1999.75 | I14: 2200-2250 | J14: Loss of Rs.20/- | K14: =H14-F14 -> -20.25 | L14: =K14/F14 -> -1.00% | M14: Successful | N14: 2020-01-06 | R14: H
A15: 6 | B15: 2019-11-27 | D15: LT | E15: Buy | F15: 1330-1340 | G15: 1270 | I15: 1450-1500 | J15: Open | O15: =VLOOKUP(D15,Sheet2!A80:M1719,6,0) -> 1302.35 | R15: H
A16: 7 | B16: 2019-12-02 | D16: HAVELLS | E16: Buy | F16: 664.5 | G16: 632.7 | H16: 627.5 | I16: 725-735 | J16: Loss of Rs.37/- | K16: =H16-F16 -> -37 | L16: =K16/F16 -> -5.57% | M16: Successful | N16: 2020-01-20 | R16: R
A17: 8 | B17: 2019-12-06 | D17: ONGC | E17: Buy | F17: 127.5 | G17: 122 | H17: 132.5 | I17: 140 | J17: Part Profit of Rs.5/- | K17: =H17-F17 -> 5 | L17: =K17/F17 -> 3.92% | M17: Successful | N17: 2020-01-03 | O17: =VLOOKUP(D17,Sheet2!A87:M1726,6,0) -> 122.75 | R17: H
A18: 9 | B18: 2019-12-23 | D18: CANBK | E18: Sell | F18: 227 | G18: 238.3 | H18: 216 | I18: 216-213 | J18: Profit of Rs.11/- | K18: =F18-H18 -> 11 | L18: =K18/F18 -> 4.85% | M18: Successful | N18: 2020-01-06 | R18: R
A19: 10 | B19: 2019-12-24 | D19: SBIN | E19: Sell | F19: 334 | G19: 351.3 | H19: 317 | I19: 305-300 | J19: Profit of Rs.17/- | K19: =F19-H19 -> 17 | L19: 5.09% | M19: Successful | N19: 2020-01-07 | R19: R
A20: 11 | B20: 2019-12-30 | D20: EIHOTEL | E20: Buy | F20: 140 | G20: 132 | H20: 147.5 | I20: 152-156 | J20: Profit of Rs.7.50/- | K20: =H20-F20 -> 7.5 | L20: =K20/F20 -> 5.36% | M20: Successful | N20: 2020-01-09 | R20: H
A21: 12 | B21: 2020-01-01 | D21: DCBBANK | E21: Buy | F21: 174 | G21: 164 | H21: 185.5 | I21: 195-200 | J21: Profit of Rs.11.50/- | K21: =H21-F21 -> 11.5 | L21: =K21/F21 -> 6.61% | M21: Successful | N21: 2020-01-07 | O21: =VLOOKUP(D21,Sheet2!A91:M1730,6,0) -> 182.95 | R21: H
A22: 13 | B22: 2020-01-02 | D22: TVTODAY | E22: Buy | F22: 244 | G22: 228 | H22: 258 | I22: 270-280 | J22: Profit of Rs.14/- | K22: =H22-F22 -> 14 | L22: =K22/F22 -> 5.74% | M22: Successful | N22: 2020-01-02 | R22: H
A23: 14 | B23: 2020-01-02 | D23: VGUARD | E23: Buy | F23: 213 | G23: 199 | H23: 225 | I23: 230-240 | J23: Profit of Rs.12/- | K23: =H23-F23 -> 12 | L23: =K23/F23 -> 5.63% | M23: Successful | N23: 2020-01-14 | R23: H
A24: 15 | B24: 2020-01-03 | D24: L&TFH | E24: Buy{} | F24: 119.5 | G24: 125.3 | H24: 113 | I24: 110-107 | J24: Profit of Rs.6.5/- | K24: =F24-H24 -> 6.5 | L24: =K24/F24 -> 5.44% | M24: Successful | N24: 2020-01-06 | R24: R
A25: 16 | B25: 2020-01-03 | D25: INDIGO | E25: Buy | F25: 1345 | G25: 1275 | H25: 1425 | I25: 1460-1500 | J25: Profit of Rs.80/- | K25: =H25-F25 -> 80 | L25: 5.95% | M25: Successful | N25: 2020-01-10 | R25: R
A26: 17 | B26: 2020-01-07 | D26: ITC | E26: Buy | F26: 236-238 | G26: 222.2 | I26: 255-260 | J26: Open | O26: =VLOOKUP(D26,Sheet2!A99:M1738,6,0) -> 238.45 | R26: R
A27: 18 | B27: 2020-01-08 | D27: POWERGRID | E27: Buy | F27: 190 | G27: 179.7 | H27: 196.5 | I27: 208-212 | J27: Profit of Rs.6.50/- | K27: =H27-F27 -> 6.5 | L27: =K27/F27 -> 3.42% | M27: Successful | N27: 2020-01-17 | R27: R
A28: 19 | B28: 2020-01-08 | D28: SBIN | E28: Buy | F28: 313.5 | G28: 295 | H28: 327.5 | I28: 340-350 | J28: Profit of Rs.14/- | K28: =H28-F28 -> 14 | L28: =K28/F28 -> 4.47% | M28: Successful | N28: 2020-01-09 | R28: H
A29: 20 | B29: 2020-01-16 | D29: HEXAWARE | E29: Buy | F29: 335 | G29: 318 | H29: 344.95 | I29: 360-370 | J29: Part Profit of Rs.5.95/- | K29: 9.95 | L29: 2.97% | M29: Successful | N29: 2020-01-21 | O29: =VLOOKUP(D29,Sheet2!A99:M1738,6,0) -> 341.45 | R29: H
A30: 21 | B30: 2020-01-20 | D30: IOC | E30: Buy | F30: 116.50-118.50 | G30: 114 | I30: 130 | J30: Open | O30: =VLOOKUP(D30,Sheet2!A103:M1742,6,0) -> 114.8 | R30: H
A37: CLBS = Closing Basis ***
A38: Dividend adjusted <> | F38: Reinitiated $
A39: Part book {} | F39: Revised stoploss #
B41: Momentum Call
A42: Sr.no | B42: Date | D42: Company | E42: Rec | F42: Rec Price | G42: Stop Loss | H42: Call Closed At | I42: Target | J42: Remark | K42: Profit / Loss per Share/Lot | L42: Gain / Loss % | M42: Gain / Loss per Lot | N42: Lot | O42: Status | P42: Closed Date
A43: 1 | B43: 2019-12-19 | D43: FINPIPE | E43: Buy | F43: 547.5 | G43: 529 | H43: 549 | I43: 590-600 | J43: Profit of Rs.1.5/- | K43: =H43-F43 -> 1.5 | L43: =K43/F43 -> 0.27% | O43: Neutral | P43: 2020-01-03 | R43: H
A44: 2 | B44: 2019-12-23 | D44: RALLIS | E44: Buy | F44: 169 | G44: 164 | H44: 173 | I44: 180-182 | J44: Profit of Rs.4/- | K44: =H44-F44 -> 4 | L44: =K44/F44 -> 2.37% | O44: Successful | P44: 2020-01-01 | R44: H
A45: 3 | B45: 2019-12-23 | D45: MOTHERSUMI | E45: Sell | F45: 147.5 | G45: 152.3 | H45: 144.5 | I45: 140-138 | J45: Profit of Rs.3/- | K45: =F45-H45 -> 3 | L45: 2.03% | O45: Successful | P45: 2020-01-06 | R45: R
A46: 4 | B46: 2019-12-23 | D46: M&M JAN FUT | E46: Buy | F46: 535 | G46: 522 | H46: 542 | I46: 560 | J46: Profit of Rs.7/- | K46: =H46-F46 -> 7 | M46: =N46*K46 -> 7000 | N46: 1000 | O46: Successful | P46: 2020-01-02 | R46: N
A47: 5 | B47: 2019-12-26 | D47: TATASTEEL | E47: Sell | F47: 468.5 | G47: 482 | H47: 483 | I47: 450-440 | J47: Loss of Rs.14.50/- | K47: =F47-H47 -> -14.5 | L47: =K47/F47 -> -3.09% | O47: Unsuccessful | P47: 2020-01-02 | R47: H
A48: 6 | B48: 2019-12-27 | D48: VEDL | E48: Sell | F48: 152 | G48: 156 | H48: 156 | I48: 145-143 | J48: Loss of Rs.4/- | K48: =F48-H48 -> -4 | L48: -2.63% | O48: Unsuccessful | P48: 2020-01-02 | R48: H
A49: 7 | B49: 2019-12-30 | D49: MARICO | E49: Buy | F49: 339.5 | G49: 329 | H49: 346.5 | I49: 355-360 | J49: Profit of Rs.7/- | K49: =H49-F49 -> 7 | L49: =K49/F49 -> 2.06% | O49: Successful | P49: 2020-01-01 | R49: H
A50: 8 | B50: 2019-12-30 | D50: CENTURYTEX JAN FUT | E50: Buy | F50: 484 | G50: 464 | H50: 496 | I50: 520 | J50: Profit of Rs.12/- | K50: 12 | M50: =N50*K50 -> 7200 | N50: 600 | O50: Successful | P50: 2020-01-02 | R50: N
A51: 9 | B51: 2019-12-31 | D51: LT JAN FUT | E51: Buy | F51: 1312 | G51: 1276 | H51: 1331.5 | I51: 1350-1360 | J51: Profit of Rs.19.50/- | K51: =H51-F51 -> 19.5 | M51: =N51*K51 -> 7312.5 | N51: 375 | O51: Successful | P51: 2020-01-02 | R51: N
A52: 10 | B52: 2019-12-31 | D52: HINDALCO | E52: Sell | F52: 218.5 | G52: 226.3 | H52: 214 | I52: 210-208 | J52: Profit of Rs.4.5/- | K52: =F52-H52 -> 4.5 | L52: =K52/F52 -> 2.06% | O52: Successful | P52: 2020-01-01 | R52: R
A53: 11 | B53: 2019-12-31 | D53: BIOCON | E53: Sell | F53: 293.5 | G53: 302.3 | H53: 302.3 | I53: 278-275 | J53: Loss of Rs.8.80/- | K53: =F53-H53 -> -8.8 | L53: -3.00% | O53: Unsuccessful | P53: 2020-01-03 | R53: R
A54: 12 | B54: 2019-12-31 | D54: GAIL | E54: Buy | F54: 120.5 | G54: 116.7 | H54: 123 | I54: 126-128 | J54: Profit of Rs.2.50/- | K54: =H54-F54 -> 2.5 | L54: =K54/F54 -> 2.07% | O54: Successful | P54: 2020-01-02 | R54: R
A55: 13 | B55: 2019-12-31 | D55: ACC JAN FUT | E55: Buy | F55: 1464 | G55: 1433 | H55: 1482 | I55: 1520 | J55: Profit of Rs.18/- | K55: =H55-F55 -> 18 | M55: =N55*K55 -> 7200 | N55: 400 | O55: Successful | P55: 2020-01-02 | R55: N
A56: 14 | B56: 2020-01-01 | D56: KOTAKBANK JAN FUT | E56: Buy | F56: 1701 | G56: 1674.4 | H56: 1670 | I56: 1750 | J56: Loss of Rs.31/- | K56: -31 | M56: =N56*K56 -> -12400 | N56: 400 | O56: Unsuccessful | P56: 2020-01-03 | R56: R
A57: 15 | B57: 2020-01-01 | D57: JUSTDIAL | E57: Buy | F57: 576.5 | G57: 557.7 | H57: 557.7 | I57: 605-615 | J57: Loss of Rs.18.80/- | K57: =H57-F57 -> -18.8 | L57: =K57/F57 -> -3.26% | O57: Unsuccessful | P57: 2020-01-02 | R57: R
A58: 16 | B58: 2020-01-02 | D58: CESC JAN FUT | E58: Buy | F58: 753 | G58: 736 | H58: 736 | I58: 790 | J58: Loss of Rs.17/- | K58: =H58-F58 -> -17 | M58: =N58*K58 -> -13600 | N58: 800 | O58: Unsuccessful | P58: 2020-01-06 | R58: N
A59: 17 | B59: 2020-01-02 | D59: UJJIVAN JAN FUT | E59: Sell | F59: 352 | G59: 360.6 | H59: 347.5 | I59: 340 | J59: Profit of Rs.4.5/- | K59: =F59-H59 -> 4.5 | M59: =N59*K59 -> 7650 | N59: 1700 | O59: Successful | P59: 2020-01-03 | R59: R
A60: 18 | B60: 2020-01-02 | D60: HINDALCO | E60: Sell | F60: 218.5 | G60: 226.3 | H60: 212.5 | I60: 210-208 | J60: Profit of Rs.6/- | K60: =F60-H60 -> 6 | L60: =K60/F60 -> 2.75% | O60: Successful | P60: 2020-01-06 | R60: R
A61: 19 | B61: 2020-01-02 | D61: GHCL | E61: Buy | F61: 183.5 | G61: 177 | H61: 188.5 | I61: 193-197 | J61: Profit of Rs.5/- | K61: =H61-F61 -> 5 | L61: =K61/F61 -> 2.72% | O61: Successful | P61: 2020-01-03 | R61: H
A62: 20 | B62: 2020-01-02 | D62: ICICIPRULI JAN FUT | E62: Buy | F62: 487.5 | G62: 479 | H62: 479 | I62: 505 | J62: Loss of Rs.8.5/- | K62: -8.5 | M62: =N62*K62 -> -12750 | N62: 1500 | O62: Unsuccessful | P62: 2020-01-06 | R62: N
A63: 21 | B63: 2020-01-02 | D63: UBL JAN FUT | E63: Buy | F63: 1282.5 | G63: 1264 | H63: 1292.5 | I63: 1320 | J63: Profit of Rs.10/- | K63: =H63-F63 -> 10 | M63: 7000 | N63: 700 | O63: Successful | P63: 2020-01-03 | R63: N
A64: 22 | B64: 2020-01-03 | D64: AXISBANK JAN FUT | E64: Buy | F64: 757.5 | G64: 747 | H64: 748 | I64: 778 | J64: Loss of Rs.9.5/- | K64: -9.5 | M64: -11400 | N64: 1200 | O64: Unsuccessful | P64: 2020-01-03 | R64: N
A65: 23 | B65: 2020-01-03 | D65: COLPAL JAN FUT | E65: Buy | F65: 1469 | G65: 1453 | H65: 1453 | I65: 1500 | J65: Loss of Rs.16/- | K65: =H65-F65 -> -16 | M65: -11200 | N65: 700 | O65: Unsuccessful | P65: 2020-01-06 | R65: N
A66: 24 | B66: 2020-01-06 | D66: NIFTY JAN FUT | E66: Buy | F66: 12072.5 | G66: 11977.7 | H66: 12145 | I66: 12200 | J66: Profit of Rs.72.50/- | K66: 72.5 | M66: 5437.5 | N66: 75 | O66: Successful | P66: 2020-01-07 | R66: R
A67: 25 | B67: 2020-01-07 | D67: COLPAL JAN FUT | E67: Buy | F67: 1446.5 | G67: 1418 | H67: 1458 | I67: 1490-1500 | J67: Profit of Rs.11.50/- | K67: 11.5 | M67: 8050 | N67: 700 | O67: Successful | P67: 2020-01-07 | R67: N
A68: 26 | B68: 2020-01-07 | D68: M&M JAN FUT | E68: Buy | F68: 530.5 | G68: 518 | H68: 537.5 | I68: 550 | J68: Profit of Rs.7/- | K68: 7 | M68: 7000 | N68: 1000 | O68: Successful | P68: 2020-01-09 | R68: N
A69: 27 | B69: 2020-01-07 | D69: ACC | E69: Buy | F69: 1450 | G69: 1399 | H69: 1483 | I69: 1520-1550 | J69: Profit of Rs.33/- | K69: 33 | L69: =K69/F69 -> 2.28% | O69: Successful | P69: 2020-01-09 | R69: H
A70: 28 | B70: 2020-01-07 | D70: AMARAJABAT JAN FUT | E70: Buy | F70: 735 | G70: 720 | H70: 749 | I70: 760 | J70: Profit of Rs.14/- | K70: =H70-F70 -> 14 | M70: =N70*K70 -> 11200 | N70: 800 | O70: Successful | P70: 2020-01-09 | R70: N
A71: 29 | B71: 2020-01-07 | D71: BPCL | E71: Sell | F71: 464 | G71: 477.7 | H71: 450 | I71: 440-435 | J71: Profit of Rs.14/- | K71: =F71-H71 -> 14 | L71: =K71/F71 -> 3.02% | O71: Successful | P71: 2020-01-08 | R71: R
A72: 30 | B72: 2020-01-07 | D72: AMBUJACEM JAN FUT | E72: Buy | F72: 200 | G72: 195 | H72: 202.5 | I72: 210 | J72: Profit of Rs.2.50/- | K72: =H72-F72 -> 2.5 | M72: =N72*K72 -> 6250 | N72: 2500 | O72: Successful | P72: 2020-01-08 | R72: N
A73: 31 | B73: 2020-01-08 | D73: MCDOWELL-N | E73: Buy | F73: 568 | G73: 548.7 | H73: 580 | I73: 590-600 | J73: Profit of Rs.12/- | K73: 12 | L73: =K73/F73 -> 2.11% | O73: Successful | P73: 2020-01-09 | R73: R
A74: 32 | B74: 2020-01-08 | D74: NIFTY JAN FUT | E74: Buy | F74: 12010 | G74: 11918.7 | H74: 12052.5 | I74: 12200 | J74: Profit of Rs.42.50/- | K74: =H74-F74 -> 42.5 | M74: =N74*K74 -> 3187.5 | N74: 75 | O74: Successful | P74: 2020-01-08 | R74: R
A75: 33 | B75: 2020-01-08 | D75: COLPAL JAN FUT | E75: Buy | F75: 1448 | G75: 1430 | H75: 1460 | I75: 1485 | J75: Profit of Rs.12/- | K75: 12 | M75: 8400 | N75: 700 | O75: Successful | P75: 2020-01-08 | R75: N
A76: 34 | B76: 2020-01-08 | D76: IGL | E76: Buy | F76: 413.5 | G76: 397.6 | H76: 422.5 | I76: 435-440 | J76: Profit of Rs.9/- | K76: 9 | L76: =K76/F76 -> 2.18% | O76: Successful | P76: 2020-01-09 | R76: R
A77: 35 | B77: 2020-01-09 | D77: GHCL | E77: Buy | F77: 194.5 | G77: 187 | H77: 189 | I77: 203-207 | J77: Loss of Rs.5.50/- | K77: -5.5 | L77: -2.83% | O77: Unsuccessful | P77: 2020-01-10 | R77: H
A78: 36 | B78: 2020-01-09 | D78: UBL JAN FUT | E78: Buy | F78: 1271 | G78: 1253 | H78: 1281.5 | I78: 1300 | J78: Profit of Rs.10.50/- | K78: =H78-F78 -> 10.5 | M78: =N78*K78 -> 7350 | N78: 700 | O78: Successful | P78: 2020-01-09 | R78: N
A79: 37 | B79: 2020-01-09 | D79: ASIANPAINT JAN FUT | E79: Buy | F79: 1753.5 | G79: 1730 | H79: 1765.5 | I79: 1795 | J79: Profit of Rs.12/- | K79: =H79-F79 -> 12 | M79: =N79*K79 -> 7200 | N79: 600 | O79: Successful | P79: 2020-01-09 | R79: N
A80: 38 | B80: 2020-01-09 | D80: CONCOR | E80: Buy | F80: 558-561 | G80: 539 | I80: 595-600 | J80: Open | R80: H
A81: 39 | B81: 2020-01-09 | D81: INDHOTEL | E81: Buy | F81: 139.5 | G81: 136.5 | H81: 143.5 | I81: 145-148 | J81: Profit of Rs.4/- | K81: =H81-F81 -> 4 | L81: =K81/F81 -> 2.87% | O81: Successful | P81: 2020-01-17 | R81: H
A82: 40 | B82: 2020-01-09 | D82: MARICO JAN FUT | E82: Buy | F82: 335.5 | G82: 226 | H82: 342 | I82: 350-355 | J82: Profit of Rs.6.50/- | K82: =H82-F82 -> 6.5 | M82: =N82*K82 -> 8450 | N82: 1300 | O82: Successful | P82: 2020-01-13 | R82: N
A83: 41 | B83: 2020-01-09 | D83: COLPAL JAN FUT | E83: Buy | F83: 1462.5 | G83: 1443 | H83: 1473 | I83: 1500 | J83: Profit of Rs.10.5/- | K83: 10.5 | M83: 7350 | N83: 700 | O83: Successful | P83: 2020-01-13 | R83: N
A84: 42 | B84: 2020-01-09 | D84: APOLLOHOSP JAN FUT | E84: Buy | F84: 1490 | G84: 1465 | H84: 1504 | I84: 1540 | J84: Profit of Rs.14/- | K84: =H84-F84 -> 14 | M84: =N84*K84 -> 7000 | N84: 500 | O84: Successful | P84: 2020-01-10 | R84: N
A85: 43 | B85: 2020-01-10 | D85: MOTHERSUMI | E85: Sell | F85: 148.5 | G85: 153.3 | H85: 145.25 | I85: 141-139 | J85: Profit of Rs.3.25/- | K85: =F85-H85 -> 3.25 | L85: =K85/F85 -> 2.19% | O85: Successful | P85: 2020-01-13 | R85: R
A86: 44 | B86: 2020-01-10 | D86: AXISBANK JAN FUT | E86: Sell | F86: 742 | G86: 751.7 | H86: 751 | I86: 725 | J86: Loss of Rs.9/- | K86: =F86-H86 -> -9 | M86: =N86*K86 -> -10800 | N86: 1200 | O86: Unsuccessful | P86: 2020-01-10 | R86: R
A87: 45 | B87: 2020-01-10 | D87: CROMPTON | E87: Buy$ | F87: 242.5 | G87: 235 | H87: 247.5 | I87: 255-260 | J87: Profit of Rs.5/- | K87: =H87-F87 -> 5 | L87: =K87/F87 -> 2.06% | O87: Successful | P87: 2020-01-15 | R87: H
A88: 46 | B88: 2020-01-10 | D88: INFRATEL JAN FUT | E88: Sell | F88: 254 | G88: 261 | H88: 249.5 | I88: 240 | J88: Profit of Rs.4.50/- | K88: =F88-H88 -> 4.5 | M88: =N88*K88 -> 9000 | N88: 2000 | O88: Successful | P88: 2020-01-10 | R88: N
A89: 47 | B89: 2020-01-10 | D89: NIFTY JAN FUT | E89: Sell | F89: 12325 | G89: 12456.7 | H89: 12270 | I89: 12100 | J89: Profit of Rs.55/- | K89: =F89-H89 -> 55 | M89: =N89*K89 -> 4125 | N89: 75 | O89: Successful | P89: 2020-01-10 | R89: R
A90: 48 | B90: 2020-01-10 | D90: ACC | E90: Buy | F90: 1505 | G90: 1470 | H90: 1505 | I90: 1570-1580 | J90: Neutral | K90: =F90-H90 -> 0 | L90: =K90/F90 -> 0.00% | O90: Neutral | P90: 2020-01-21 | R90: H
A91: 50 | B91: 2020-01-13 | D91: TATASTEEL | E91: Sell | F91: 491 | G91: 505.6 | H91: 505.6 | I91: 470-464 | J91: Loss of Rs.14.60/- | K91: =F91-H91 -> -14.6 | L91: =K91/F91 -> -2.97% | O91: Unsuccessful | P91: 2020-01-14 | R91: R
A92: 51 | B92: 2020-01-13 | D92: AMARAJABAT JAN FUT | E92: Buy | F92: 738.5 | G92: 722 | H92: 749 | I92: 765 | J92: Profit of Rs.10.50/- | K92: =H92-F92 -> 10.5 | M92: =N92*K92 -> 8400 | N92: 800 | O92: Successful | P92: 2020-01-14 | R92: N
A93: 52 | B93: 2020-01-13 | D93: NIFTY JAN FUT | E93: Sell | F93: 12360 | G93: 12470.7 | H93: 12292.5 | I93: 12150 | J93: Profit of Rs.67.50/- | K93: =F93-H93 -> 67.5 | M93: 5062.5 | N93: 75 | O93: Successful | P93: 2020-01-20 | R93: R
A94: 53 | B94: 2020-01-13 | D94: MUTHOOTFIN | E94: Sell | F94: 759 | G94: 782 | H94: 748 | I94: 730-720 | J94: Profit of Rs.11/- | K94: =F94-H94 -> 11 | L94: =K94/F94 -> 1.45% | O94: Successful | P94: 2020-01-13 | R94: H
A95: 54 | B95: 2020-01-13 | D95: HCLTECH | E95: Sell | F95: 590 | G95: 606.6 | H95: 593 | I95: 560-555 | J95: Loss of Rs.3/- | K95: =F95-H95 -> -3 | L95: -0.51% | O95: Neutral | P95: 2020-01-16 | R95: R
A96: 55 | B96: 2020-01-13 | D96: TVSMOTOR | E96: Sell | F96: 470 | G96: 483 | H96: 482.5 | I96: 450-445 | J96: Loss of Rs.12.50/- | K96: =F96-H96 -> -12.5 | L96: =K96/F96 -> -2.66% | O96: Unsuccessful | P96: 2020-01-15 | R96: H
A97: 56 | B97: 2020-01-13 | D97: APOLLOHOSP JAN FUT | E97: Buy | F97: 1489 | G97: 1463 | H97: 1504.5 | I97: 1530 | J97: Profit of Rs.15.50/- | K97: =H97-F97 -> 15.5 | M97: =N97*K97 -> 7750 | N97: 500 | O97: Successful | P97: 2020-01-14 | R97: N
A98: 57 | B98: 2020-01-13 | D98: MCDOWELL-N | E98: Buy | F98: 583-585 | G98: 568 | I98: 610-620 | J98: Open | R98: H
A99: 58 | B99: 2020-01-14 | D99: JUBLFOOD JAN FUT | E99: Sell | F99: 1740 | G99: 1766.6 | H99: 1722 | I99: 1700-1680 | J99: Profit of Rs.18/- | K99: =F99-H99 -> 18 | M99: =N99*K99 -> 9000 | N99: 500 | O99: Successful | P99: 2020-01-14 | R99: R
A100: 59 | B100: 2020-01-14 | D100: CESC JAN FUT | E100: Buy | F100: 739 | G100: 724 | H100: 749 | I100: 765 | J100: Profit of Rs.10/- | K100: =H100-F100 -> 10 | M100: 8000 | N100: 800 | O100: Successful | P100: 2020-01-15 | R100: N
A101: 60 | B101: 2020-01-14 | D101: ZEEL | E101: Buy | F101: 269 | G101: 260.2 | H101: 274.5 | I101: 284-288 | J101: Profit of Rs.5.50/- | K101: 5.5 | L101: =K101/F101 -> 2.04% | O101: Successful | P101: 2020-01-16 | R101: R
A102: 61 | B102: 2020-01-14 | D102: GRASIM JAN FUT | E102: Buy | F102: 764 | G102: 747 | H102: 744 | I102: 790 | J102: Loss of Rs.20/- | K102: -20 | M102: =N102*K102 -> -15000 | N102: 750 | O102: Unsuccessful | P102: 2020-01-17 | R102: N
A103: 62 | B103: 2020-01-15 | D103: TORNTPOWER | E103: Sell | F103: 298.5 | G103: 306 | H103: 306.5 | I103: 290-285 | J103: Loss of Rs.8/- | K103: =F103-H103 -> -8 | L103: =K103/F103 -> -2.68% | O103: Unsuccessful | P103: 2020-01-16 | R103: H
A104: 63 | B104: 2020-01-15 | D104: INFRATEL JAN FUT | E104: Sell | F104: 249.5 | G104: 256 | H104: 246.25 | I104: 237 | J104: Profit of Rs.3.25/- | K104: =F104-H104 -> 3.25 | M104: =N104*K104 -> 6500 | N104: 2000 | O104: Successful | P104: 2020-01-15 | R104: N
A105: 64 | B105: 2020-01-15 | D105: UPL JAN FUT | E105: Buy | F105: 589 | G105: 575 | H105: 597 | I105: 610-620 | J105: Profit of Rs.8/- | K105: =H105-F105 -> 8 | M105: 7200 | N105: 900 | O105: Successful | P105: 2020-01-17 | R105: N
A106: 65 | B106: 2020-01-15 | D106: ACC JAN FUT | E106: Buy | F106: 1500 | G106: 1470 | H106: 1520 | I106: 1550 | J106: Profit of Rs.20/- | K106: =H106-F106 -> 20 | M106: =N106*K106 -> 8000 | N106: 400 | O106: Successful | P106: 2020-01-15 | R106: N
A107: 66 | B107: 2020-01-16 | D107: BANKNIFTY JAN FUT | E107: Sell | F107: 31990 | G107: 32456 | H107: 31750 | I107: 31300-31200 | J107: Profit of Rs.240/- | K107: =F107-H107 -> 240 | M107: 4800 | N107: 20 | O107: Successful | P107: 2020-01-16 | R107: R
A108: 67 | B108: 2020-01-17 | D108: ACC JAN FUT | E108: Buy | F108: 1502.5 | G108: 1470 | H108: 1522 | I108: 1550 | J108: Profit of Rs.19.50/- | K108: =H108-F108 -> 19.5 | M108: =N108*K108 -> 7800 | N108: 400 | O108: Successful | P108: 2020-01-17 | R108: N
A109: 68 | B109: 2020-01-17 | D109: HDFCLIFE | E109: Buy | F109: 605-608 | G109: 588 | I109: 635-645 | J109: Open | R109: R
A110: 69 | B110: 2020-01-17 | D110: BATAINDIA JAN FUT | E110: Sell | F110: 1798.5 | G110: 1823.4 | H110: 1784 | I110: 1760-1750 | J110: Profit of Rs.14.50/- | K110: =F110-H110 -> 14.5 | M110: =N110*K110 -> 7975 | N110: 550 | O110: Successful | P110: 2020-01-21 | R110: R
A111: 70 | B111: 2020-01-17 | D111: LT JAN FUT | E111: Buy | F111: 1322-1324 | G111: 1290 | I111: 1360-1370 | J111: Open | R111: N
A112: 71 | B112: 2020-01-17 | D112: ICICIPRULI JAN FUT | E112: Buy | F112: 489.5 | G112: 480 | H112: 485 | I112: 510 | J112: Loss of Rs.4.50/- | K112: =H112-F112 -> -4.5 | M112: =N112*K112 -> -6750 | N112: 1500 | O112: Unsuccessful | P112: 2020-01-17 | R112: N
A113: 72 | B113: 2020-01-17 | D113: APOLLOTYRE | E113: Sell | F113: 182.35 | G113: 188.3 | H113: 178 | I113: 173-171 | J113: Profit of Rs.4.35/- | K113: =F113-H113 -> 4.35 | L113: =K113/F113 -> 2.39% | O113: Successful | P113: 2020-01-20 | R113: R
A114: 73 | B114: 2020-01-20 | D114: UBL JAN FUT | E114: Buy | F114: 1302 | G114: 1285 | H114: 1285 | I114: 1340 | J114: Loss of Rs.17/- | K114: =H114-F114 -> -17 | M114: =N114*K114 -> -11900 | N114: 700 | O114: Unsuccessful | P114: 2020-01-21 | R114: N
A115: 74 | B115: 2020-01-20 | D115: DLF | E115: Sell | F115: 260-261 | G115: 268.9 | I115: 258-254 | J115: Open | R115: R
A116: 75 | B116: 2020-01-20 | D116: EXIDEIND | E116: Sell | F116: 198.5 | G116: 205.3 | H116: 194.5 | I116: 190-187 | J116: Profit of Rs.4/- | K116: =F116-H116 -> 4 | L116: =K116/F116 -> 2.02% | O116: Successful | P116: 2020-01-20 | R116: R
A117: 76 | B117: 2020-01-21 | D117: INFRATEL JAN FUT | E117: Sell | F117: 233.5 | G117: 239.3 | H117: 239.3 | I117: 225-222 | J117: Loss of Rs.5.80/- | K117: =F117-H117 -> -5.8 | M117: =N117*K117 -> -11600 | N117: 2000 | O117: Unsuccessful | P117: 2020-01-21
A118: 77 | B118: 2020-01-21 | D118: SUNPHARMA | E118: Sell | F118: 451-452 | G118: 464.7 | I118: 427-422 | J118: Open
A119: 78 | B119: 2020-01-21 | D119: ADANIPORTS | E119: Buy | F119: 380-382 | G119: 368.6 | I119: 399-404 | J119: Open
A120: 79 | B120: 2020-01-21 | D120: HINDUNILVR JAN FUT | E120: Sell | F120: 2070-2075 | G120: 2111.3 | I120: 2000 | J120: Open
A121: 80 | B121: 2020-01-21 | D121: UJJIVAN | E121: Buy | F121: 331-333 | G121: 319 | I121: 355 | J121: Open
A122: 81
A123: 82
A124: 83
A125: 84
A128: CLBS = Closing Basis ***
A129: Dividend adjusted <> | F129: Reinitiated $
F130: Revised stoploss #
A132: Master Trade High Risk
A133: Sr.no | B133: Date | D133: Company | E133: Rec | F133: Rec Price | G133: Stop Loss | H133: Call Closed At | I133: Target | J133: Remark | K133: Profit / Loss per share | L133: Gain / Loss per Lot | M133: Lot | N133: Status | O133: Closed Date
A134: 1 | B134: 2019-12-27 | D134: NIFTY JAN FUT | E134: Sell | F134: 12250 | G134: 12375 | H134: 12147.5 | I134: 12000 | J134: Profit of Rs.102.5/- | K134: =F134-H134 -> 102.5 | L134: =K134*M134 -> 7687.5 | M134: 75 | N134: Successful | O134: 2020-01-06 | R134: R
A135: 2 | B135: 2020-01-07 | D135: HAVELLS JAN FUT | E135: Buy | F135: 654 | G135: 638.5 | H135: 638 | I135: 675 | J135: Loss of Rs. 12/- | K135: =H135-F135 -> -16 | L135: =-12*M135 -> -12000 | M135: 1000 | N135: UnSuccessful | O135: 2020-01-08 | R135: N
D136: HAVELLS JAN 670 CE | E136: Sell | F136: 12.5 | H136: 8.5 | K136: =F136-H136 -> 4 | R136: N
A137: 3 | B137: 2020-01-13 | D137: HDFC JAN FUT | E137: Sell | F137: 2458-2462 | G137: 2520 | I137: 2400-2380 | J137: Open | R137: H
D138: HDFC JAN 2400 PE | E138: Sell | F138: 23-25 | R138: H
A143: Master Trade Medium Risk
A144: Sr.no | B144: Date | D144: Company | E144: Rec | F144: Rec Price | G144: Stop Loss | H144: Call Closed At | I144: Target | J144: Remark | K144: Profit/ Loss per lot | L144: Gain / Loss per Lot | M144: Lot | N144: Status | O144: Closed Date
A145: 1 | B145: 2019-12-27 | D145: NIFTY 30 JAN 12200 PE | E145: Buy | F145: 122 | H145: 205 | J145: Profit of Rs. 25.50/- | K145: =H145-F145 -> 83 | L145: =25.5*M145 -> 1912.5 | M145: 75 | N145: Successful | O145: 2020-01-06 | R145: H
D146: NIFTY 30 JAN 12050 PE | E146: Sell | F146: 80 | H146: 137.5 | K146: =F146-H146 -> -57.5 | R146: H
A147: 2 | B147: 2020-01-01 | D147: ICICIBANK JAN 520 PE | E147: Buy | F147: 5.95 | G147: 2.5 | H147: 6.95 | I147: 12 | J147: Profit of Rs.1/- | K147: 1 | L147: =K147*M147 -> 1375 | M147: 1375 | N147: Successful | O147: 2020-01-01 | R147: H
A148: 3 | B148: 2020-01-02 | D148: ICICIBANK JAN 520 PE | E148: Buy | F148: 5.8 | G148: 2.5 | H148: 6.9 | I148: 12 | J148: Profit of Rs.1.1/- | K148: =H148-F148 -> 1.1 | L148: =K148*M148 -> 1512.5 | M148: 1375 | N148: Successful | O148: 2020-01-03 | R148: H
A149: 4 | B149: 2020-01-02 | D149: LT JAN 1340 CE | E149: Buy | F149: 28-30 | J149: Open | R149: H
D150: LT JAN 1360 CE | E150: Sell | F150: 21-23 | R150: H
A151: 5 | B151: 2020-01-03 | D151: ACC JAN 1500 CE | E151: Buy | F151: 33 | G151: 19 | H151: 19 | I151: 50-60 | J151: Loss of Rs.14/- | K151: =H151-F151 -> -14 | L151: =K151*M151 -> -5600 | M151: 400 | N151: UnSuccessful | O151: 2020-01-06 | R151: H
A152: 6 | B152: 2020-01-04 | D152: DABUR JAN 465 CE | E152: Buy | F152: 7.50 | G152: 3.25 | H152: 8.75 | I152: 12 | J152: Profit of Rs.1.25/- | K152: 1.25 | L152: 1562.5 | M152: 1250 | N152: Successful | O152: 2020-01-09 | R152: H
A153: 7 | B153: 2020-01-08 | D153: MARICO JAN 340 CE | E153: Buy | F153: 5.5 | G153: 2.5 | H153: 7 | I153: 10 | J153: Profit of Rs.1.50/- | K153: 1.5 | L153: 1950 | M153: 1300 | N153: Successful | O153: 2020-01-09 | R153: H
A154: 8 | B154: 2020-01-09 | D154: NIFTY 16 JAN 12100 PE | E154: Buy | F154: 39 | G154: 14 | H154: 14 | I154: 70-80 | J154: Loss of Rs.25/- | K154: =H154-F154 -> -25 | L154: =K154*M154 -> -1875 | M154: 75 | N154: UnSuccessful | O154: 2020-01-13 | R154: H
A155: 9 | B155: 2020-01-09 | D155: M&M JAN 560 CE | E155: Buy | F155: 6 | G155: 2 | H155: 7.25 | I155: 12 | J155: Profit of Rs.1.25/- | K155: =H155-F155 -> 1.25 | L155: =K155*M155 -> 1250 | M155: 1000 | N155: Successful | O155: 2020-01-10 | R155: H
A156: 10 | B156: 2020-01-10 | D156: ICICIPRULI JAN 500 CE | E156: Buy | F156: 8.25 | G156: 4.5 | H156: 9.25 | I156: 13-15 | J156: Profit of Rs.1/- | K156: =H156-F156 -> 1 | L156: =K156*M156 -> 1500 | M156: 1500 | N156: Successful | O156: 2020-01-13 | R156: N
A157: 11 | B157: 2020-01-10 | D157: AMBUJACEM JAN 215 CE | E157: Buy | F157: 4.6 | G157: 2.5 | H157: 2.8 | I157: 7-8 | J157: Loss of Rs.1.80/- | K157: -1.8 | L157: -4500 | M157: 2500 | N157: UnSuccessful | O157: 2020-01-15 | R157: N
A158: 12 | B158: 2020-01-13 | D158: NIFTY 30-JAN 12300 CE | E158: Sell | F158: 157 | H158: 92.50 | J158: Profit of Rs.18/- | K158: =F158-H158 -> 64.5 | L158: =18*M158 -> 1350 | M158: 75 | N158: Successful | O158: 2020-01-20 | R158: H
D159: NIFTY 30-JAN 12400 CE | E159: Buy | F159: 99 | H159: 52.50 | K159: =H159-F159 -> -46.5 | R159: H
A160: 13 | B160: 2020-01-15 | D160: TATASTEEL 490 JAN PE | E160: Buy | F160: 9.5 | H160: 9.75 | J160: Profit of Rs.1/- | K160: 0.25 | L160: 1000 | M160: 1000 | N160: Successful | O160: 2020-01-20 | R160: H
D161: TATASTEEL JAN 480 PE | E161: Sell | F161: 6.50 | H161: 5.75 | K161: =F161-H161 -> 0.75 | R161: H
A162: 14 | B162: 2020-01-17 | D162: HDFCBANK JAN 1300 CE | E162: Buy | F162: 15.50 | G162: 9 | H162: 9 | I162: 24-26 | J162: Loss of Rs.6.50/- | K162: =H162-F162 -> -6.5 | L162: =K162*M162 -> -3250 | M162: 500 | N162: UnSuccessful | O162: 2020-01-20 | R162: H
A165: Techno -Funda (positional)
A166: Sr.no | B166: Date | D166: Company | E166: Rec | F166: Rec Price | G166: Stop Loss*** | H166: Call Closed At | I166: Target | J166: Remark | K166: Profit / Loss per Share | L166: Gain / Loss % | M166: Status | N166: Closed Date | O166: NSE Closed Price
A167: 1 | B167: 2019-11-27 | D167: JKLAKSHMI | E167: Buy | F167: 286 | G167: 258 | H167: 308.5 | I167: 330-350 | J167: Profit of Rs.22.50/- | K167: =H167-F167 -> 22.5 | L167: =K167/F167 -> 7.87% | M167: Successful | N167: 2020-01-07 | O167: =VLOOKUP(D167,Sheet2!A173:M1812,6,0) -> 341.2 | R167: H
A168: 2 | B168: 2020-01-07 | D168: FINPIPE | E168: Buy | F168: 543 | G168: 495 | H168: 574.5 | I168: 630-650 | J168: Part Profit of Rs.31.5/- | K168: 31.5 | L168: 5.80% | M168: Successful | N168: 2020-01-10 | O168: =VLOOKUP(D168,Sheet2!A204:M1843,6,0) -> 560.4 | R168: H
A170: CLBS = Closing Basis *** | F170: Reinitiated $
A171: Dividend adjusted <> | F171: Revised stoploss #
B176: Investment Idea
A177: Sr.no | B177: Date | D177: Company | E177: Rec | F177: Rec Price | G177: Point of Review | H177: Close Rate | I177: Target | J177: Remark | K177: Profit / Loss per Share | L177: Gain / Loss % | M177: Status | N177: Closed Date
A178: 1 | B178: 2013-11-01 | D178: L&T Finance Holding | E178: Accu | F178: 82.00 | G178: - | H178: 100 | I178: 100.00 | J178: Target Achieved | K178: =H178-F178 -> 18.00 | L178: =K178/F178 -> 21.95% | M178: Successful | N178: 2016-10-14
A179: 2 | B179: 2014-06-04 | D179: Finolex Inds | E179: Buy | F179: 257.00 | G179: - | H179: 300 | I179: 300.00 | J179: Target Achieved | K179: 43.00 | L179: 16.73% | M179: Successful | N179: 2014-07-02
A180: 3 | B180: 2014-07-08 | D180: JK Cement | E180: Buy | F180: 393.00 | G180: - | H180: 468 | I180: 468.00 | J180: Target Achieved | K180: 75.00 | L180: 19.08% | M180: Successful | N180: 2014-08-12
A181: 4 | B181: 2014-08-06 | D181: Finolex Cables | E181: Buy | F181: 205.00 | G181: - | H181: 275 | I181: 250.00 | J181: Target Achieved | K181: 70.00 | L181: 34.15% | M181: Successful | N181: 2014-11-19
A182: 5 | B182: 2014-09-04 | D182: Exide Inds | E182: Buy | F182: 162.00 | G182: - | H182: 190 | I182: 190.00 | J182: Target Achieved | K182: 28.00 | L182: 17.28% | M182: Successful | N182: 2015-01-02
A183: 6 | B183: 2014-09-04 | D183: Deepak Nitrite | E183: Buy | F183: 75.00 | G183: - | H183: 91.5 | I183: 95-100 | J183: Profit of Rs.16.50/- | K183: 16.50 | L183: 22.00% | M183: Successful | N183: 2014-11-11
A184: 7 | B184: 2014-10-01 | D184: Mercks | E184: Buy | F184: 850.00 | G184: - | H184: 982.5 | I184: 1050.00 | J184: Profit of Rs.132.50/- | K184: 132.50 | L184: 15.59% | M184: Successful | N184: 2015-02-04
A185: 8 | B185: 2014-10-01 | D185: Grindwell Norton | E185: Buy | F185: 475.00 | G185: - | H185: 515 | I185: 600.00 | J185: Profit of Rs.40/- | K185: 40.00 | L185: 8.42% | M185: Successful | N185: 2014-10-27
A186: 9 | B186: 2014-10-01 | D186: Snowman Logistics | E186: Buy | F186: 86.00 | G186: - | H186: 99 | I186: 140.00 | J186: Profit of Rs.13.00/- | K186: 13.00 | L186: 15.12% | M186: Successful | N186: 2014-10-27
A187: 10 | B187: 2014-10-14 | D187: Birla Corp | E187: Buy | F187: 496.60 | G187: - | H187: 621 | I187: 580.00 | J187: Target Achieved | K187: 124.40 | L187: 25.05% | M187: Successful | N187: 2016-08-23
A188: 11 | B188: 2014-10-14 | D188: Ultratech Cem | E188: Buy | F188: 2481.90 | G188: - | H188: 2840 | I188: 2870.00 | J188: Profit of Rs.358.10/- | K188: 358.10 | L188: 14.43% | M188: Successful | N188: 2015-01-13
A189: 12 | B189: 2014-10-16 | D189: Sintex Inds | E189: Buy | F189: 84.50 | G189: - | H189: 93 | I189: 110.00 | J189: Profit of Rs.8.50/- | K189: 8.50 | L189: 10.06% | M189: Successful | N189: 2014-10-27
A190: 13 | B190: 2014-10-16 | D190: HSIL | E190: Buy | F190: 401.00 | G190: - | H190: 428 | I190: 450.00 | J190: Profit of Rs.27.00/- | K190: 27.00 | L190: 6.73% | M190: Successful | N190: 2015-01-16
A191: 14 | B191: 2014-10-16 | D191: Eveready Inds | E191: Buy | F191: 101.00 | G191: - | H191: 112 | I191: 120.00 | J191: Profit of Rs.11.00/- | K191: 11.00 | L191: 10.89% | M191: Successful | N191: 2014-10-27
A192: 15 | B192: 2014-11-11 | D192: Pennar Inds | E192: Buy | F192: 59.00 | G192: - | H192: 76 | I192: 76.00 | J192: Target Achieved | K192: 17.00 | L192: 28.81% | M192: Successful | N192: 2017-10-24
A193: 16 | B193: 2014-11-11 | D193: Snowman Logistics | E193: Buy | F193: 99.00 | G193: - | H193: 120 | I193: 120.00 | J193: Profit of Rs.21/- | K193: 21.00 | L193: 21.21% | M193: Successful | N193: 2014-11-17
A194: 17 | B194: 2014-11-13 | D194: Dharamsi Morarji Chem | E194: Buy | F194: 22.00 | G194: - | H194: 33.55 | I194: 32.00 | J194: Profit of Rs 11.55/- | K194: 11.55 | L194: 52.50% | M194: Successful | N194: 2015-07-03
A195: 18 | B195: 2014-12-03 | D195: Tatachem | E195: Buy | F195: 440.00 | G195: - | H195: 520 | I195: 520.00 | J195: Profit of Rs 80.00/- | K195: 80.00 | L195: 18.18% | M195: Successful | N195: 2015-07-23
A196: 19 | B196: 2014-12-03 | D196: Advanta | E196: Buy | F196: 360.00 | G196: - | H196: 427 | I196: 425.00 | J196: Profit of Rs.67.00/- | K196: 67.00 | L196: 18.61% | M196: Successful | N196: 2015-02-23
A197: 20 | B197: 2015-01-08 | D197: GDL | E197: Buy | F197: 360.00 | G197: - | H197: 455 | I197: 420.00 | J197: Profit of Rs.95.00/- | K197: 95.00 | L197: 26.39% | M197: Successful | N197: 2015-01-20
A198: 21 | B198: 2015-01-08 | D198: NRB Bearing | E198: Buy | F198: 130.00 | H198: 175.5 | I198: 165.00 | J198: Profit of Rs 45.50/- | K198: 45.50 | L198: 35.00% | M198: Successful | N198: 2017-12-19
A199: 22 | B199: 2015-02-05 | D199: GSFC | E199: Accu | F199: 98.00 | H199: 120 | I199: 120.00 | J199: Target Achieved | K199: 22.00 | L199: 22.45% | M199: Successful | N199: 2017-01-18
A200: 23 | B200: 2015-02-05 | D200: Sundrmfast | E200: Accu | F200: 196.00 | H200: 262 | I200: 255.00 | J200: Target Achieved | K200: 66.00 | L200: 33.67% | M200: Successful | N200: 2016-08-17
A201: 24 | B201: 2015-03-04 | D201: GPPL | E201: Accu | F201: 235 | H201: 77.00 | I201: 280-285 | J201: Loss of Rs.158/- | K201: -158.00 | L201: -67.23% | M201: Unsuccessful | N201: 2019-02-26
A202: 25 | B202: 2015-03-04 | D202: ORIENTCEM | E202: Accu | F202: 185.00 | H202: 224 | I202: 220-225 | J202: Target Achieved | K202: 39.00 | L202: 21.08% | M202: Successful | N202: 2016-10-04
A203: 26 | B203: 2015-03-27 | D203: PFS | E203: Accu | F203: 49.5 | H203: 15.85 | I203: 67.00 | J203: Loss of Rs.33.65/- | K203: -33.65 | L203: -68% | M203: Unsuccessful | N203: 2019-06-11
A204: 27 | B204: 2015-03-30 | D204: Walchandnagar Ind Ltd | E204: Accu | F204: 183.50 | H204: 219 | I204: 218.00 | J204: Profit of Rs.35.50/- | K204: 35.50 | L204: 19.35% | M204: Successful | N204: 2015-04-09
A205: 28 | B205: 2015-04-20 | D205: Kalpataru Power Transmission Ltd | E205: Accu | F205: =(227+237)/2 -> 232.00 | H205: 298 | I205: 298.00 | J205: Target Achieved | K205: 66.00 | L205: 28.45% | M205: Successful | N205: 2017-03-29
A206: 29 | B206: 2015-05-04 | D206: Mastek Ltd | E206: Buy | F206: 385.00 | H206: =212.5+331 -> 543.5 | I206: 510.00 | J206: Profit of Rs 158.50/- | K206: 158.50 | L206: 41.17% | M206: Successful | N206: 2015-08-19
A207: 30 | B207: 2015-05-04 | D207: Suprajit Eng | E207: Buy | F207: 115.50 | H207: 146 | I207: 142.00 | J207: Profit of Rs 30.50/- | K207: 30.50 | L207: 26.41% | M207: Successful | N207: 2015-07-17
A208: 31 | B208: 2015-05-27 | D208: TCI | E208: Buy | F208: 237.50 | H208: 279.5 | I208: 278.00 | J208: Target Achieved | K208: 42.00 | L208: 17.68% | M208: Successful | N208: 2015-08-06
A209: 32 | B209: 2015-06-19 | D209: HSIL | E209: Accu | F209: 340.00 | H209: 448 | I209: 448.00 | J209: Target Achieved | K209: 108.00 | L209: 31.76% | M209: Successful | N209: 2017-10-10
A210: 33 | B210: 2015-07-06 | D210: Capital First | E210: Accu | F210: 390.00 | H210: 460 | I210: 460.00 | J210: Target Achieved | K210: =H210-F210 -> 70.00 | L210: =K210/F210 -> 17.95% | M210: Successful | N210: 2016-04-18
A211: 34 | B211: 2015-07-10 | D211: Dolphin OffShore | E211: Accu | F211: 122.5 | H211: 61.00 | I211: 172.00 | J211: Loss of Rs.61.50/- | K211: -61.50 | L211: -50.20% | M211: Unsuccessful | N211: 2018-08-21
A212: 35 | B212: 2015-08-03 | D212: Allcargo logistics | E212: Accu | F212: 297.50 | H212: 350 | I212: 360.00 | J212: Profit of Rs 52.50/- | K212: 52.50 | L212: 17.65% | M212: Successful | N212: 2015-08-16
A213: 36 | B213: 2015-08-03 | D213: Camline Fine | E213: Accu | F213: 115.50 | H213: 149 | I213: 140.00 | J213: Profit of Rs 33.50/- | K213: 33.50 | L213: 29.00% | M213: Successful | N213: 2017-01-05
A214: 37 | B214: 2015-09-04 | D214: TCI | E214: Accu | F214: 226.00 | H214: 292 | I214: 292.00 | J214: Target Achieved | K214: 66.00 | L214: 29.20% | M214: Successful | N214: 2015-10-09
A215: 38 | B215: 2015-09-07 | D215: Kalpataru Power Transmission Ltd | E215: Accu | F215: 232.50 | H215: 312.5 | I215: 310.00 | J215: Target Achieved | K215: 80.00 | L215: 34.41% | M215: Successful | N215: 2017-03-29
A216: 39 | B216: 2015-09-21 | D216: LLOYD ELECTRIC & ENG LTD | E216: Accu | F216: 196.50 | H216: 238 | I216: 238.00 | J216: Target Achieved | K216: 41.50 | L216: 21.12% | M216: Successful | N216: 2015-10-14
A217: 40 | B217: 2015-09-24 | D217: L&T Finance Holding | E217: Accu | F217: 65.00 | H217: 82 | I217: 82.00 | J217: Target Achieved | K217: 17.00 | L217: 26.15% | M217: Successful | N217: 2016-07-27
A218: 41 | B218: 2015-10-14 | D218: KEC International ltd | E218: Accu | F218: 144.00 | H218: 182.5 | I218: 181.00 | J218: Target Achieved | K218: 38.50 | L218: 26.74% | M218: Successful | N218: 2017-03-23
A219: 42 | B219: 2015-10-14 | D219: Gruh Finance | E219: Accu | F219: 264.00 | H219: 311 | I219: 311.00 | J219: Target Achieved | K219: 47.00 | L219: 17.80% | M219: Successful | N219: 2016-08-22
A220: 43 | B220: 2015-11-10 | D220: Pidilitind | E220: Buy | F220: 549.50 | H220: 630 | I220: 630.00 | J220: Target Achieved | K220: 80.50 | L220: 14.65% | M220: Successful | N220: 2016-02-19
A221: 44 | B221: 2015-12-04 | D221: Zensar Technology | E221: Accu | F221: 1027.50 | H221: 1315 | I221: 1250.00 | J221: Target Achieved | K221: 287.50 | L221: 27.98% | M221: Successful | N221: 2018-05-24
A222: 45 | B222: 2015-12-29 | D222: Vinati Organics Ltd | E222: Accu | F222: 465.00 | H222: 540 | I222: 540.00 | J222: Target Achieved | K222: 75.00 | L222: 16.13% | M222: Successful | N222: 2016-06-09
A223: 46 | B223: 2016-01-11 | D223: GSFC | E223: Buy | F223: 81.00 | H223: 110 | I223: 110.00 | J223: Target Achieved | K223: 29.00 | L223: 35.80% | M223: Successful | N223: 2017-01-10
A224: 47 | B224: 2016-01-13 | D224: SSWL | E224: Buy | F224: 417.50 | H224: 547 | I224: 535.00 | J224: Target Achieved | K224: 129.50 | L224: 31.02% | M224: Successful | N224: 2016-07-27
A225: 48 | B225: 2016-02-08 | D225: Persistent System Ltd | E225: Accu | F225: 650.00 | H225: 800 | I225: 800.00 | J225: Target Achieved | K225: 150.00 | L225: 23.08% | M225: Successful | N225: 2018-02-23
... 105 more rows

Sheet Sheet2 (hidden)
A1: SYMBOL | B1: SERIES | C1: OPEN | D1: HIGH | E1: LOW | F1: CLOSE | G1: LAST | H1: PREVCLOSE | I1: TOTTRDQTY | J1: TOTTRDVAL | K1: TIMESTAMP | L1: TOTALTRADES | M1: ISIN | N1: ISIN
A2: 20MICRONS | B2: EQ | C2: 34.35 | D2: 35.5 | E2: 33.3 | F2: 34.25 | G2: 34.3 | H2: 34.35 | I2: 18479 | J2: 635892.25 | K2: 2020-01-21 | L2: 204 | M2: INE144J01027
A3: 21STCENMGM | B3: EQ | C3: 14.75 | D3: 15.3 | E3: 14.7 | F3: 15 | G3: 15 | H3: 15 | I3: 2745 | J3: 40509.6 | K3: 2020-01-21 | L3: 23 | M3: INE253B01015
A4: 3IINFOTECH | B4: EQ | C4: 2.5 | D4: 2.55 | E4: 2.45 | F4: 2.45 | G4: 2.45 | H4: 2.5 | I4: 802128 | J4: 1992372.95 | K4: 2020-01-21 | L4: 602 | M4: INE748C01020
A5: 3MINDIA | B5: EQ | C5: 22004.6 | D5: 22302.3 | E5: 21999.95 | F5: 22119.65 | G5: 22051.05 | H5: 22273.9 | I5: 4571 | J5: 100677845.5 | K5: 2020-01-21 | L5: 520 | M5: INE470A01017
A6: 3PLAND | B6: EQ | C6: 7.2 | D6: 7.2 | E6: 7 | F6: 7 | G6: 7 | H6: 6.9 | I6: 1150 | J6: 8270 | K6: 2020-01-21 | L6: 7 | M6: INE105C01023
A7: 5PAISA | B7: EQ | C7: 198 | D7: 199 | E7: 192.95 | F7: 197.05 | G7: 196.2 | H7: 199.2 | I7: 7505 | J7: 1477265.95 | K7: 2020-01-21 | L7: 247 | M7: INE618L01018
A8: 63MOONS | B8: EQ | C8: 111.4 | D8: 114.3 | E8: 110.25 | F8: 112.25 | G8: 111.75 | H8: 112.25 | I8: 179454 | J8: 20186706.65 | K8: 2020-01-21 | L8: 3150 | M8: INE111B01023
A9: A2ZINFRA | B9: EQ | C9: 7.85 | D9: 7.85 | E9: 7.55 | F9: 7.6 | G9: 7.65 | H9: 7.75 | I9: 164826 | J9: 1266728.05 | K9: 2020-01-21 | L9: 304 | M9: INE619I01012
A10: AARTIDRUGS | B10: EQ | C10: 615 | D10: 628.65 | E10: 607.6 | F10: 610.25 | G10: 609.05 | H10: 616.95 | I10: 6529 | J10: 4024607.35 | K10: 2020-01-21 | L10: 646 | M10: INE767A01016
A11: AARTIIND | B11: EQ | C11: 862.5 | D11: 869.8 | E11: 855.25 | F11: 864.7 | G11: 862.5 | H11: 863.9 | I11: 77697 | J11: 67070302.4 | K11: 2020-01-21 | L11: 4183 | M11: INE769A01020
A12: AARVEEDEN | B12: EQ | C12: 14.65 | D12: 14.7 | E12: 14 | F12: 14.35 | G12: 14.5 | H12: 14.3 | I12: 2023 | J12: 28740.05 | K12: 2020-01-21 | L12: 55 | M12: INE273D01019
A13: AAVAS | B13: EQ | C13: 1990 | D13: 2018.85 | E13: 1951 | F13: 1957.65 | G13: 1956.7 | H13: 2006.5 | I13: 37482 | J13: 74661229.7 | K13: 2020-01-21 | L13: 4420 | M13: INE216P01012
A14: ABAN | B14: EQ | C14: 26.25 | D14: 26.95 | E14: 26.25 | F14: 26.3 | G14: 26.25 | H14: 26.75 | I14: 24742 | J14: 657408.7 | K14: 2020-01-21 | L14: 284 | M14: INE421A01028
A15: ABB | B15: EQ | C15: 1290 | D15: 1319.45 | E15: 1286 | F15: 1310.15 | G15: 1311 | H15: 1290.6 | I15: 37591 | J15: 49243447.8 | K15: 2020-01-21 | L15: 2047 | M15: INE117A01022
A16: ABBOTINDIA | B16: EQ | C16: 12660.6 | D16: 12750 | E16: 12580 | F16: 12713.15 | G16: 12715 | H16: 12643.4 | I16: 6644 | J16: 84370670.85 | K16: 2020-01-21 | L16: 1204 | M16: INE358A01014
A17: ABCAPITAL | B17: EQ | C17: 107.25 | D17: 108.8 | E17: 105.8 | F17: 106.2 | G17: 106 | H17: 107.95 | I17: 1372187 | J17: 147209191.2 | K17: 2020-01-21 | L17: 13465 | M17: INE674K01013
A18: ABFRL | B18: EQ | C18: 231.9 | D18: 233.75 | E18: 229 | F18: 229.4 | G18: 229.15 | H18: 230.95 | I18: 186185 | J18: 42991789.85 | K18: 2020-01-21 | L18: 4802 | M18: INE647O01011
A19: ABSLBANETF | B19: EQ | C19: 310.25 | D19: 310.25 | E19: 309.9 | F19: 309.9 | G19: 309.9 | H19: 311.49 | I19: 10 | J19: 3101.8 | K19: 2020-01-21 | L19: 3 | M19: INF209KB1O58
A20: ABSLNN50ET | B20: EQ | C20: 289.71 | D20: 289.71 | E20: 289.71 | F20: 289.71 | G20: 289.71 | H20: 290.98 | I20: 5 | J20: 1448.55 | K20: 2020-01-21 | L20: 1 | M20: INF209KB1B87
A21: ACC | B21: EQ | C21: 1494.95 | D21: 1509.4 | E21: 1487 | F21: 1496.1 | G21: 1500 | H21: 1497.55 | I21: 359320 | J21: 538769675.5 | K21: 2020-01-21 | L21: 12520 | M21: INE012A01025
A22: ACCELYA | B22: EQ | C22: 1039.55 | D22: 1130 | E22: 1035.05 | F22: 1073.35 | G22: 1070 | H22: 1039.55 | I22: 6668 | J22: 7232051.45 | K22: 2020-01-21 | L22: 1032 | M22: INE793A01012
A23: ACE | B23: EQ | C23: 87.05 | D23: 90.25 | E23: 87 | F23: 88.35 | G23: 88.15 | H23: 87.75 | I23: 151358 | J23: 13418102.85 | K23: 2020-01-21 | L23: 2761 | M23: INE731H01025
A24: ADANIENT | B24: EQ | C24: 224.35 | D24: 227 | E24: 220.5 | F24: 224.25 | G24: 223.65 | H24: 226.55 | I24: 2813526 | J24: 630368841.2 | K24: 2020-01-21 | L24: 19279 | M24: INE423A01024
A25: ADANIGAS | B25: EQ | C25: 171.35 | D25: 172.55 | E25: 169.2 | F25: 169.8 | G25: 169.85 | H25: 172.05 | I25: 646295 | J25: 110345924.4 | K25: 2020-01-21 | L25: 6623 | M25: INE399L01023
A26: ADANIGREEN | B26: EQ | C26: 199 | D26: 207 | E26: 192 | F26: 202.25 | G26: 200.2 | H26: 198.05 | I26: 3506909 | J26: 708534848.4 | K26: 2020-01-21 | L26: 39015 | M26: INE364U01010
A27: ADANIPORTS | B27: EQ | C27: 378.8 | D27: 382 | E27: 375.3 | F27: 379.95 | G27: 379.7 | H27: 380.05 | I27: 2005178 | J27: 759275668.4 | K27: 2020-01-21 | L27: 28978 | M27: INE742F01042
A28: ADANIPOWER | B28: EQ | C28: 62.9 | D28: 63.55 | E28: 62.4 | F28: 62.75 | G28: 62.65 | H28: 63.35 | I28: 4651073 | J28: 292905962.6 | K28: 2020-01-21 | L28: 11527 | M28: INE814H01011
A29: ADANITRANS | B29: EQ | C29: 338 | D29: 345.4 | E29: 330 | F29: 332.7 | G29: 333.8 | H29: 339.05 | I29: 108524 | J29: 36621992.3 | K29: 2020-01-21 | L29: 2739 | M29: INE931S01010
A30: ADFFOODS | B30: EQ | C30: 295.5 | D30: 305 | E30: 293.3 | F30: 302.15 | G30: 300 | H30: 295.8 | I30: 36802 | J30: 11085726.1 | K30: 2020-01-21 | L30: 982 | M30: INE982B01019
A31: ADHUNIKIND | B31: EQ | C31: 45.25 | D31: 45.9 | E31: 42.95 | F31: 43.6 | G31: 44.35 | H31: 44.75 | I31: 2523 | J31: 109919.95 | K31: 2020-01-21 | L31: 112 | M31: INE452L01012
A32: ADLABS | B32: BE | C32: 4.15 | D32: 4.15 | E32: 3.9 | F32: 4 | G32: 4 | H32: 4 | I32: 25864 | J32: 103961.85 | K32: 2020-01-21 | L32: 79 | M32: INE172N01012
A33: ADORWELD | B33: EQ | C33: 337 | D33: 339.45 | E33: 326 | F33: 332.6 | G33: 329 | H33: 339 | I33: 5453 | J33: 1823959.2 | K33: 2020-01-21 | L33: 166 | M33: INE045A01017
A34: ADROITINFO | B34: BE | C34: 6 | D34: 6 | E34: 6 | F34: 6 | G34: 6 | H34: 6.05 | I34: 19 | J34: 114 | K34: 2020-01-21 | L34: 2 | M34: INE737B01033
A35: ADSL | B35: BE | C35: 18.75 | D35: 20.55 | E35: 18.75 | F35: 20.15 | G35: 20 | H35: 19.6 | I35: 30095 | J35: 605664.25 | K35: 2020-01-21 | L35: 113 | M35: INE102I01027
A36: ADVANIHOTR | B36: EQ | C36: 52.1 | D36: 53.85 | E36: 52.1 | F36: 53.55 | G36: 53.6 | H36: 52.9 | I36: 823 | J36: 43958.85 | K36: 2020-01-21 | L36: 77 | M36: INE199C01026
A37: ADVENZYMES | B37: EQ | C37: 179.05 | D37: 185 | E37: 175.45 | F37: 183.15 | G37: 183 | H37: 179.05 | I37: 100591 | J37: 18340336.95 | K37: 2020-01-21 | L37: 2527 | M37: INE837H01020
A38: AEGISCHEM | B38: EQ | C38: 210 | D38: 211.5 | E38: 203.55 | F38: 208.2 | G38: 210 | H38: 209.75 | I38: 203830 | J38: 42255640.75 | K38: 2020-01-21 | L38: 8312 | M38: INE208C01025
A39: AFFLE | B39: EQ | C39: 1554 | D39: 1564.9 | E39: 1505 | F39: 1513.7 | G39: 1515 | H39: 1556.2 | I39: 104373 | J39: 159454873.6 | K39: 2020-01-21 | L39: 8289 | M39: INE00WC01019
A40: AGARIND | B40: EQ | C40: 91 | D40: 101.45 | E40: 85 | F40: 93.1 | G40: 93.9 | H40: 92.25 | I40: 59507 | J40: 5627646.95 | K40: 2020-01-21 | L40: 1240 | M40: INE204E01012
A41: AGCNET | B41: EQ | C41: 222.9 | D41: 222.9 | E41: 222.9 | F41: 222.9 | G41: 222.9 | H41: 212.3 | I41: 3959 | J41: 882461.1 | K41: 2020-01-21 | L41: 55 | M41: INE676A01019
A42: AGRITECH | B42: EQ | C42: 46 | D42: 47.2 | E42: 45.25 | F42: 45.8 | G42: 45.35 | H42: 46.5 | I42: 13384 | J42: 619697.25 | K42: 2020-01-21 | L42: 451 | M42: INE449G01018
A43: AGROPHOS | B43: EQ | C43: 35.35 | D43: 35.35 | E43: 35.35 | F43: 35.35 | G43: 35.35 | H43: 37.2 | I43: 1968 | J43: 69568.8 | K43: 2020-01-21 | L43: 48 | M43: INE740V01019
A44: AHLEAST | B44: EQ | C44: 177.5 | D44: 179.8 | E44: 173.1 | F44: 179.05 | G44: 179.4 | H44: 175.4 | I44: 829 | J44: 146407.7 | K44: 2020-01-21 | L44: 399 | M44: INE926K01017
A45: AHLUCONT | B45: EQ | C45: 300 | D45: 305 | E45: 297.55 | F45: 299.25 | G45: 298 | H45: 298 | I45: 4068 | J45: 1221494.15 | K45: 2020-01-21 | L45: 153 | M45: INE758C01029
A46: AHLWEST | B46: EQ | C46: 356 | D46: 356 | E46: 341 | F46: 353.6 | G46: 353.7 | H46: 347.45 | I46: 942 | J46: 327983.7 | K46: 2020-01-21 | L46: 181 | M46: INE915K01010
A47: AIAENG | B47: EQ | C47: 1671.95 | D47: 1800 | E47: 1663 | F47: 1789.85 | G47: 1789.5 | H47: 1674.4 | I47: 190310 | J47: 328160265.8 | K47: 2020-01-21 | L47: 9352 | M47: INE212H01026
A48: AIONJSW | B48: EQ | C48: 14.45 | D48: 15.5 | E48: 14.35 | F48: 14.4 | G48: 14.55 | H48: 15.1 | I48: 268681 | J48: 3895595.75 | K48: 2020-01-21 | L48: 569 | M48: INE743C01021
A49: AIRAN | B49: EQ | C49: 11.7 | D49: 12.2 | E49: 11.35 | F49: 12.1 | G49: 12.15 | H49: 11.7 | I49: 5607 | J49: 66725.15 | K49: 2020-01-21 | L49: 90 | M49: INE645W01026
A50: AJANTPHARM | B50: EQ | C50: 1203 | D50: 1210.5 | E50: 1170 | F50: 1179.85 | G50: 1173 | H50: 1195.6 | I50: 201808 | J50: 240387968.1 | K50: 2020-01-21 | L50: 11214 | M50: INE031B01049
A51: AJMERA | B51: EQ | C51: 151.05 | D51: 153.45 | E51: 150 | F51: 150.85 | G51: 151.3 | H51: 153.4 | I51: 58541 | J51: 8852899.55 | K51: 2020-01-21 | L51: 1563 | M51: INE298G01027
A52: AKASH | B52: BE | C52: 82 | D52: 86.95 | E52: 82 | F52: 84.8 | G52: 85 | H52: 84.1 | I52: 473 | J52: 40024.1 | K52: 2020-01-21 | L52: 21 | M52: INE737W01013
A53: AKSHARCHEM | B53: EQ | C53: 248.65 | D53: 254 | E53: 246.65 | F53: 251.3 | G53: 253.9 | H53: 248.65 | I53: 5376 | J53: 1345489.7 | K53: 2020-01-21 | L53: 218 | M53: INE542B01011
A54: AKSHOPTFBR | B54: EQ | C54: 8.4 | D54: 9.15 | E54: 8.2 | F54: 9.15 | G54: 9.15 | H54: 8.35 | I54: 827901 | J54: 7365323.45 | K54: 2020-01-21 | L54: 1593 | M54: INE523B01011
A55: AKZOINDIA | B55: EQ | C55: 2031.05 | D55: 2045 | E55: 2010 | F55: 2019.05 | G55: 2020 | H55: 2038.5 | I55: 5632 | J55: 11438461.95 | K55: 2020-01-21 | L55: 1387 | M55: INE133A01011
A56: ALANKIT | B56: EQ | C56: 14.2 | D56: 14.2 | E56: 13.5 | F56: 13.75 | G56: 13.75 | H56: 13.95 | I56: 123311 | J56: 1705823.95 | K56: 2020-01-21 | L56: 350 | M56: INE914E01040
A57: ALBERTDAVD | B57: EQ | C57: 450.5 | D57: 458 | E57: 443.15 | F57: 453.6 | G57: 458 | H57: 460.6 | I57: 5546 | J57: 2499931.9 | K57: 2020-01-21 | L57: 397 | M57: INE155C01010
A58: ALBK | B58: EQ | C58: 18.7 | D58: 18.85 | E58: 18.5 | F58: 18.65 | G58: 18.55 | H58: 18.8 | I58: 754684 | J58: 14112679 | K58: 2020-01-21 | L58: 1766 | M58: INE428A01015
A59: ALCHEM | B59: BE | C59: 1.45 | D59: 1.55 | E59: 1.45 | F59: 1.55 | G59: 1.55 | H59: 1.5 | I59: 19941 | J59: 30712.55 | K59: 2020-01-21 | L59: 39 | M59: INE964B01033
A60: ALEMBICLTD | B60: EQ | C60: 56.55 | D60: 57.5 | E60: 56.05 | F60: 56.55 | G60: 56.3 | H60: 56.85 | I60: 62554 | J60: 3554022.05 | K60: 2020-01-21 | L60: 1540 | M60: INE426A01027
A61: ALICON | B61: EQ | C61: 435 | D61: 444 | E61: 425.25 | F61: 437.9 | G61: 439.95 | H61: 437.65 | I61: 2088 | J61: 909362.45 | K61: 2020-01-21 | L61: 237 | M61: INE062D01024
A62: ALKALI | B62: EQ | C62: 44.5 | D62: 46 | E62: 43.35 | F62: 44.45 | G62: 44.7 | H62: 43.85 | I62: 8118 | J62: 360188.15 | K62: 2020-01-21 | L62: 181 | M62: INE773I01017
A63: ALKEM | B63: EQ | C63: 2359.95 | D63: 2374.05 | E63: 2321.55 | F63: 2356.85 | G63: 2350 | H63: 2359.35 | I63: 127081 | J63: 299341479.1 | K63: 2020-01-21 | L63: 5248 | M63: INE540L01014
A64: ALKYLAMINE | B64: EQ | C64: 1270 | D64: 1300 | E64: 1270 | F64: 1298.3 | G64: 1295 | H64: 1272.5 | I64: 10480 | J64: 13555077.4 | K64: 2020-01-21 | L64: 879 | M64: INE150B01021
A65: ALLCARGO | B65: EQ | C65: 103 | D65: 103.95 | E65: 101.75 | F65: 102.1 | G65: 102.15 | H65: 102.95 | I65: 64741 | J65: 6646584.05 | K65: 2020-01-21 | L65: 1507 | M65: INE418H01029
A66: ALLSEC | B66: EQ | C66: 321 | D66: 327.95 | E66: 314 | F66: 315.5 | G66: 316 | H66: 319.6 | I66: 3801 | J66: 1209653.05 | K66: 2020-01-21 | L66: 167 | M66: INE835G01018
A67: ALMONDZ | B67: EQ | C67: 12.5 | D67: 12.85 | E67: 12.5 | F67: 12.85 | G67: 12.85 | H67: 12.25 | I67: 3251 | J67: 41634.45 | K67: 2020-01-21 | L67: 16 | M67: INE326B01027
A68: ALOKTEXT | B68: BE | C68: 2.7 | D68: 2.8 | E68: 2.7 | F68: 2.8 | G68: 2.8 | H68: 2.7 | I68: 2557243 | J68: 7051322.1 | K68: 2020-01-21 | L68: 645 | M68: INE270A01011
A69: ALPA | B69: EQ | C69: 21 | D69: 21 | E69: 19.8 | F69: 19.85 | G69: 19.85 | H69: 20.65 | I69: 29326 | J69: 590673 | K69: 2020-01-21 | L69: 261 | M69: INE385I01010
A70: ALPHAGEO | B70: EQ | C70: 228.55 | D70: 234.8 | E70: 221.65 | F70: 223.55 | G70: 222.5 | H70: 230.25 | I70: 34344 | J70: 7807895.25 | K70: 2020-01-21 | L70: 1546 | M70: INE137C01018
A71: ALPSINDUS | B71: BE | C71: 1.45 | D71: 1.45 | E71: 1.45 | F71: 1.45 | G71: 1.45 | H71: 1.5 | I71: 4346 | J71: 6301.7 | K71: 2020-01-21 | L71: 4 | M71: INE093B01015
A72: AMARAJABAT | B72: EQ | C72: 769 | D72: 779.5 | E72: 766.75 | F72: 775.1 | G72: 777.1 | H72: 779.6 | I72: 434317 | J72: 335498414.6 | K72: 2020-01-21 | L72: 16606 | M72: INE885A01032
A73: AMBER | B73: EQ | C73: 1289.25 | D73: 1346 | E73: 1275 | F73: 1320.55 | G73: 1307 | H73: 1290.25 | I73: 80658 | J73: 105512743.8 | K73: 2020-01-21 | L73: 4383 | M73: INE371P01015
A74: AMBIKCO | B74: EQ | C74: 842 | D74: 843.5 | E74: 834.5 | F74: 836.85 | G74: 840 | H74: 839.5 | I74: 21470 | J74: 18020753.95 | K74: 2020-01-21 | L74: 366 | M74: INE540G01014
A75: AMBUJACEM | B75: EQ | C75: 206 | D75: 209.9 | E75: 205.7 | F75: 207.6 | G75: 207.85 | H75: 207.05 | I75: 3142796 | J75: 653827781 | K75: 2020-01-21 | L75: 19722 | M75: INE079A01024
A76: AMDIND | B76: EQ | C76: 16.9 | D76: 17.3 | E76: 16.55 | F76: 16.95 | G76: 17.05 | H76: 16.9 | I76: 2828 | J76: 47413.8 | K76: 2020-01-21 | L76: 41 | M76: INE005I01014
A77: AMJLAND | B77: EQ | C77: 21.1 | D77: 22.8 | E77: 20.2 | F77: 20.8 | G77: 20.8 | H77: 21.5 | I77: 20139 | J77: 423963.35 | K77: 2020-01-21 | L77: 234 | M77: INE606A01024
A78: AMRUTANJAN | B78: EQ | C78: 497 | D78: 509 | E78: 485 | F78: 491 | G78: 492 | H78: 497.75 | I78: 54983 | J78: 27302135.9 | K78: 2020-01-21 | L78: 2852 | M78: INE098F01031
A79: ANANTRAJ | B79: EQ | C79: 36.75 | D79: 37.7 | E79: 36.75 | F79: 36.85 | G79: 36.8 | H79: 37 | I79: 268221 | J79: 9959343.7 | K79: 2020-01-21 | L79: 2845 | M79: INE242C01024
A80: ANDHRABANK | B80: EQ | C80: 17.3 | D80: 17.35 | E80: 17 | F80: 17.05 | G80: 17.1 | H80: 17.2 | I80: 422058 | J80: 7223292.35 | K80: 2020-01-21 | L80: 2018 | M80: INE434A01013
A81: ANDHRACEMT | B81: EQ | C81: 2.1 | D81: 2.1 | E81: 2 | F81: 2.05 | G81: 2.1 | H81: 2.05 | I81: 37059 | J81: 76156.2 | K81: 2020-01-21 | L81: 78 | M81: INE666E01012
A82: ANDHRSUGAR | B82: EQ | C82: 348.5 | D82: 354.85 | E82: 337 | F82: 344 | G82: 345 | H82: 351.15 | I82: 67521 | J82: 23402714.35 | K82: 2020-01-21 | L82: 2460 | M82: INE715B01013
A83: ANIKINDS | B83: EQ | C83: 10.6 | D83: 10.75 | E83: 10 | F83: 10.75 | G83: 10.75 | H83: 10.25 | I83: 17770 | J83: 186688.85 | K83: 2020-01-21 | L83: 67 | M83: INE087B01017
A84: ANKITMETAL | B84: BE | C84: 0.5 | D84: 0.55 | E84: 0.45 | F84: 0.55 | G84: 0.55 | H84: 0.5 | I84: 6870 | J84: 3196.2 | K84: 2020-01-21 | L84: 24 | M84: INE106I01010
A85: ANSALAPI | B85: EQ | C85: 5.25 | D85: 5.5 | E85: 5.2 | F85: 5.35 | G85: 5.4 | H85: 5.35 | I85: 6544 | J85: 34749.75 | K85: 2020-01-21 | L85: 36 | M85: INE436A01026
A86: ANSALHSG | B86: BE | C86: 5.6 | D86: 5.8 | E86: 5.5 | F86: 5.7 | G86: 5.7 | H86: 5.6 | I86: 11267 | J86: 63862.3 | K86: 2020-01-21 | L86: 43 | M86: INE880B01015
A87: ANTGRAPHIC | B87: BE | C87: 0.6 | D87: 0.65 | E87: 0.6 | F87: 0.65 | G87: 0.65 | H87: 0.65 | I87: 26934 | J87: 16910.5 | K87: 2020-01-21 | L87: 19 | M87: INE414B01021
A88: ANUP | B88: EQ | C88: 580.55 | D88: 587.2 | E88: 550 | F88: 555.25 | G88: 550.25 | H88: 580.55 | I88: 28031 | J88: 15779538.9 | K88: 2020-01-21 | L88: 1210 | M88: INE294Z01018
A89: APARINDS | B89: EQ | C89: 430.85 | D89: 435.9 | E89: 424 | F89: 429.45 | G89: 431 | H89: 433.85 | I89: 49617 | J89: 21327683.95 | K89: 2020-01-21 | L89: 1002 | M89: INE372A01015
A90: APCL | B90: EQ | C90: 163 | D90: 164 | E90: 155.75 | F90: 159.55 | G90: 158.55 | H90: 159.65 | I90: 5696 | J90: 917870.5 | K90: 2020-01-21 | L90: 244 | M90: INE071F01012
A91: APCOTEXIND | B91: EQ | C91: 163.9 | D91: 169.5 | E91: 163.05 | F91: 164.8 | G91: 164.8 | H91: 163.9 | I91: 19703 | J91: 3277774.35 | K91: 2020-01-21 | L91: 573 | M91: INE116A01032
A92: APEX | B92: EQ | C92: 404 | D92: 416.4 | E92: 399 | F92: 412.2 | G92: 412.65 | H92: 404.9 | I92: 531528 | J92: 218241447.4 | K92: 2020-01-21 | L92: 13498 | M92: INE346W01013
A93: APLAPOLLO | B93: EQ | C93: 1923 | D93: 2022.1 | E93: 1923 | F93: 1994.8 | G93: 1993.4 | H93: 1943.4 | I93: 52625 | J93: 105388987 | K93: 2020-01-21 | L93: 4443 | M93: INE702C01019
A94: APLLTD | B94: EQ | C94: 597.4 | D94: 601 | E94: 585.1 | F94: 599.6 | G94: 598 | H94: 598.4 | I94: 668657 | J94: 400908036 | K94: 2020-01-21 | L94: 4175 | M94: INE901L01018
A95: APOLLO | B95: EQ | C95: 76.3 | D95: 78.85 | E95: 76.25 | F95: 76.85 | G95: 76.6 | H95: 78.2 | I95: 34520 | J95: 2661986.55 | K95: 2020-01-21 | L95: 694 | M95: INE713T01010
A96: APOLLOHOSP | B96: EQ | C96: 1629.85 | D96: 1642.5 | E96: 1621 | F96: 1626.2 | G96: 1627.3 | H96: 1629.55 | I96: 317357 | J96: 517958834.3 | K96: 2020-01-21 | L96: 14834 | M96: INE437A01024
A97: APOLLOPIPE | B97: EQ | C97: 392.55 | D97: 406.9 | E97: 388.35 | F97: 394.45 | G97: 394.8 | H97: 396.15 | I97: 10072 | J97: 3985966.9 | K97: 2020-01-21 | L97: 809 | M97: INE126J01016
A98: APOLLOTYRE | B98: EQ | C98: 173.3 | D98: 175.8 | E98: 171.95 | F98: 174.85 | G98: 174.65 | H98: 174 | I98: 1515394 | J98: 263589776.1 | K98: 2020-01-21 | L98: 10608 | M98: INE438A01022
A99: APOLSINHOT | B99: EQ | C99: 746 | D99: 746 | E99: 730.1 | F99: 730.5 | G99: 730.15 | H99: 730.15 | I99: 193 | J99: 141339.15 | K99: 2020-01-21 | L99: 70 | M99: INE451F01024
A100: APTECHT | B100: EQ | C100: 172.9 | D100: 177.9 | E100: 171.7 | F100: 175.45 | G100: 175.3 | H100: 173 | I100: 260963 | J100: 45907346.45 | K100: 2020-01-21 | L100: 4643 | M100: INE266F01018
A101: ARCHIDPLY | B101: EQ | C101: 30.95 | D101: 33.2 | E101: 30.4 | F101: 32.05 | G101: 32 | H101: 31.65 | I101: 27721 | J101: 896629.7 | K101: 2020-01-21 | L101: 416 | M101: INE877I01016
A102: ARCHIES | B102: EQ | C102: 18.5 | D102: 19.4 | E102: 18.2 | F102: 19.3 | G102: 19.35 | H102: 18.5 | I102: 73276 | J102: 1397809.4 | K102: 2020-01-21 | L102: 420 | M102: INE731A01020
A103: ARCOTECH | B103: BE | C103: 2.2 | D103: 2.3 | E103: 2.2 | F103: 2.2 | G103: 2.2 | H103: 2.3 | I103: 30659 | J103: 67574.45 | K103: 2020-01-21 | L103: 23 | M103: INE574I01035
A104: ARENTERP | B104: EQ | C104: 9.45 | D104: 9.45 | E104: 9.45 | F104: 9.45 | G104: 9.45 | H104: 9.45 | I104: 50 | J104: 472.5 | K104: 2020-01-21 | L104: 1 | M104: INE610C01014
A105: ARIES | B105: EQ | C105: 73 | D105: 73.15 | E105: 72.2 | F105: 72.7 | G105: 72.55 | H105: 73.85 | I105: 28488 | J105: 2068349.5 | K105: 2020-01-21 | L105: 1303 | M105: INE298I01015
A106: ARIHANT | B106: EQ | C106: 21.95 | D106: 21.95 | E106: 20.2 | F106: 20.6 | G106: 20.8 | H106: 21 | I106: 2887 | J106: 59905.1 | K106: 2020-01-21 | L106: 71 | M106: INE413D01011
A107: ARIHANTSUP | B107: EQ | C107: 29 | D107: 29.3 | E107: 28.25 | F107: 29.25 | G107: 29.3 | H107: 28.8 | I107: 783 | J107: 22702.55 | K107: 2020-01-21 | L107: 21 | M107: INE643K01018
A108: ARMANFIN | B108: EQ | C108: 750 | D108: 772.8 | E108: 724.05 | F108: 753.55 | G108: 752 | H108: 759.7 | I108: 6639 | J108: 4960497.45 | K108: 2020-01-21 | L108: 396 | M108: INE109C01017
A109: AROGRANITE | B109: EQ | C109: 42.55 | D109: 42.7 | E109: 39.55 | F109: 39.8 | G109: 39.8 | H109: 41.35 | I109: 8769 | J109: 351331.6 | K109: 2020-01-21 | L109: 294 | M109: INE210C01013
A110: ARROWGREEN | B110: EQ | C110: 50.25 | D110: 53 | E110: 50.25 | F110: 51.7 | G110: 51.5 | H110: 51.8 | I110: 4012 | J110: 208236.65 | K110: 2020-01-21 | L110: 170 | M110: INE570D01018
A111: ARROWTEX | B111: BE | C111: 10.25 | D111: 10.25 | E111: 9.5 | F111: 10 | G111: 10.1 | H111: 9.85 | I111: 5375 | J111: 53645.55 | K111: 2020-01-21 | L111: 39 | M111: INE933J01015
A112: ARSHIYA | B112: EQ | C112: 17.45 | D112: 17.6 | E112: 16.55 | F112: 17.1 | G112: 17.35 | H112: 17.5 | I112: 8578 | J112: 147666.1 | K112: 2020-01-21 | L112: 65 | M112: INE968D01022
A113: ARSSINFRA | B113: EQ | C113: 22.2 | D113: 22.2 | E113: 21 | F113: 21.05 | G113: 21 | H113: 21.2 | I113: 6201 | J113: 131987.25 | K113: 2020-01-21 | L113: 69 | M113: INE267I01010
A114: ARVIND | B114: EQ | C114: 43 | D114: 44.45 | E114: 42.5 | F114: 43.9 | G114: 44 | H114: 43.2 | I114: 1375390 | J114: 59662426.65 | K114: 2020-01-21 | L114: 5204 | M114: INE034A01011
A115: ARVINDFASN | B115: EQ | C115: 396.15 | D115: 422.05 | E115: 392 | F115: 417.2 | G115: 421 | H115: 401.1 | I115: 32298 | J115: 13213439.2 | K115: 2020-01-21 | L115: 1520 | M115: INE955V01021
A116: ARVSMART | B116: EQ | C116: 91.75 | D116: 92.8 | E116: 89.45 | F116: 90.5 | G116: 90 | H116: 91.65 | I116: 7379 | J116: 668444.45 | K116: 2020-01-21 | L116: 315 | M116: INE034S01021
A117: ASAHIINDIA | B117: EQ | C117: 240.15 | D117: 245.95 | E117: 238 | F117: 239.85 | G117: 238.4 | H117: 243.25 | I117: 9866 | J117: 2378361.15 | K117: 2020-01-21 | L117: 524 | M117: INE439A01020
A118: ASAHISONG | B118: EQ | C118: 163.2 | D118: 163.7 | E118: 156.4 | F118: 159.45 | G118: 159 | H118: 163.25 | I118: 12079 | J118: 1944365.1 | K118: 2020-01-21 | L118: 402 | M118: INE228I01012
A119: ASAL | B119: EQ | C119: 34.85 | D119: 35.55 | E119: 34.4 | F119: 34.65 | G119: 34.4 | H119: 35.4 | I119: 6590 | J119: 229292.1 | K119: 2020-01-21 | L119: 93 | M119: INE900C01027
A120: ASHAPURMIN | B120: EQ | C120: 33.75 | D120: 34.55 | E120: 33 | F120: 34.3 | G120: 34.55 | H120: 34.2 | I120: 32844 | J120: 1121147.6 | K120: 2020-01-21 | L120: 151 | M120: INE348A01023
A121: ASHIANA | B121: EQ | C121: 116.65 | D121: 117.45 | E121: 114.95 | F121: 116.2 | G121: 116.8 | H121: 116.7 | I121: 30524 | J121: 3534303.15 | K121: 2020-01-21 | L121: 277 | M121: INE365D01021
A122: ASHIMASYN | B122: EQ | C122: 8.65 | D122: 8.65 | E122: 8.25 | F122: 8.5 | G122: 8.6 | H122: 8.45 | I122: 7441 | J122: 62271.75 | K122: 2020-01-21 | L122: 66 | M122: INE440A01010
A123: ASHOKA | B123: EQ | C123: 117.4 | D123: 121 | E123: 114.1 | F123: 119 | G123: 120.6 | H123: 118.55 | I123: 2108894 | J123: 250080677.2 | K123: 2020-01-21 | L123: 13417 | M123: INE442H01029
A124: ASHOKLEY | B124: EQ | C124: 84.2 | D124: 86.65 | E124: 83.6 | F124: 86.3 | G124: 86.15 | H124: 84.8 | I124: 22562935 | J124: 1928415530 | K124: 2020-01-21 | L124: 81942 | M124: INE208A01029
A125: ASIANHOTNR | B125: EQ | C125: 86.75 | D125: 86.75 | E125: 83.15 | F125: 83.95 | G125: 84 | H125: 85.05 | I125: 5938 | J125: 504472.5 | K125: 2020-01-21 | L125: 164 | M125: INE363A01022
A126: ASIANPAINT | B126: EQ | C126: 1839.95 | D126: 1842.55 | E126: 1793.85 | F126: 1810.75 | G126: 1809 | H126: 1848.75 | I126: 2101561 | J126: 3805838776 | K126: 2020-01-21 | L126: 79182 | M126: INE021A01026
A127: ASIANTILES | B127: EQ | C127: 218 | D127: 220.9 | E127: 215.2 | F127: 219.75 | G127: 218 | H127: 218.25 | I127: 24158 | J127: 5284684.95 | K127: 2020-01-21 | L127: 1284 | M127: INE022I01019
A128: ASPINWALL | B128: EQ | C128: 155.25 | D128: 169 | E128: 152 | F128: 158.35 | G128: 159.85 | H128: 155.05 | I128: 10109 | J128: 1640431.65 | K128: 2020-01-21 | L128: 293 | M128: INE991I01015
A129: ASTEC | B129: EQ | C129: 480 | D129: 482.25 | E129: 465 | F129: 474.7 | G129: 470 | H129: 476.6 | I129: 10308 | J129: 4864997.65 | K129: 2020-01-21 | L129: 391 | M129: INE563J01010
A130: ASTERDM | B130: EQ | C130: 162.95 | D130: 165.55 | E130: 162.2 | F130: 163.65 | G130: 163.5 | H130: 162.8 | I130: 258075 | J130: 42335387.5 | K130: 2020-01-21 | L130: 5752 | M130: INE914M01019
A131: ASTRAL | B131: EQ | C131: 1108.95 | D131: 1109.3 | E131: 1082.6 | F131: 1094.3 | G131: 1093 | H131: 1102.3 | I131: 115530 | J131: 126599478.3 | K131: 2020-01-21 | L131: 9910 | M131: INE006I01046
A132: ASTRAMICRO | B132: EQ | C132: 86.8 | D132: 88.3 | E132: 86.15 | F132: 86.55 | G132: 86.8 | H132: 86.8 | I132: 42112 | J132: 3658894.4 | K132: 2020-01-21 | L132: 639 | M132: INE386C01029
A133: ASTRAZEN | B133: EQ | C133: 2500 | D133: 2570 | E133: 2485.4 | F133: 2548.45 | G133: 2566 | H133: 2491.2 | I133: 11564 | J133: 29256251.1 | K133: 2020-01-21 | L133: 1641 | M133: INE203A01020
A134: ASTRON | B134: EQ | C134: 38.9 | D134: 39 | E134: 38 | F134: 38.55 | G134: 38.2 | H134: 38.85 | I134: 34585 | J134: 1331582.55 | K134: 2020-01-21 | L134: 391 | M134: INE646X01014
A135: ATFL | B135: EQ | C135: 699.65 | D135: 713 | E135: 681.1 | F135: 706.95 | G135: 713 | H135: 699.65 | I135: 11252 | J135: 7779178.35 | K135: 2020-01-21 | L135: 958 | M135: INE209A01019
A136: ATLANTA | B136: EQ | C136: 6.45 | D136: 6.45 | E136: 6.15 | F136: 6.25 | G136: 6.25 | H136: 6.45 | I136: 16595 | J136: 103146.85 | K136: 2020-01-21 | L136: 79 | M136: INE285H01022
A137: ATLASCYCLE | B137: BE | C137: 51 | D137: 53.5 | E137: 51 | F137: 52.25 | G137: 52.5 | H137: 52.85 | I137: 357 | J137: 18901.35 | K137: 2020-01-21 | L137: 13 | M137: INE446A01025
A138: ATUL | B138: EQ | C138: 4340 | D138: 4379.95 | E138: 4305.25 | F138: 4362.2 | G138: 4378 | H138: 4346.05 | I138: 4871 | J138: 21119550.85 | K138: 2020-01-21 | L138: 1378 | M138: INE100A01010
A139: ATULAUTO | B139: EQ | C139: 258 | D139: 298.45 | E139: 256 | F139: 280.9 | G139: 281.4 | H139: 254.1 | I139: 904836 | J139: 258084911.3 | K139: 2020-01-21 | L139: 26806 | M139: INE951D01028
A140: AUBANK | B140: EQ | C140: 884 | D140: 892 | E140: 875.5 | F140: 888.35 | G140: 889.95 | H140: 885.9 | I140: 255520 | J140: 226624125.1 | K140: 2020-01-21 | L140: 7539 | M140: INE949L01017
A141: AURIONPRO | B141: EQ | C141: 59.15 | D141: 61.35 | E141: 59 | F141: 60.15 | G141: 60.45 | H141: 59.6 | I141: 13987 | J141: 842113.95 | K141: 2020-01-21 | L141: 411 | M141: INE132H01018
A142: AUROPHARMA | B142: EQ | C142: 481 | D142: 495.4 | E142: 472 | F142: 493.2 | G142: 494.5 | H142: 482.95 | I142: 3371672 | J142: 1650952996 | K142: 2020-01-21 | L142: 49523 | M142: INE406A01037
A143: AUSOMENT | B143: BE | C143: 37.4 | D143: 37.4 | E143: 36.8 | F143: 37.05 | G143: 36.85 | H143: 37.4 | I143: 126 | J143: 4669.85 | K143: 2020-01-21 | L143: 4 | M143: INE218C01016
A144: AUTOAXLES | B144: EQ | C144: 864.5 | D144: 864.5 | E144: 841.3 | F144: 849.65 | G144: 844 | H144: 865.7 | I144: 3521 | J144: 3015643.25 | K144: 2020-01-21 | L144: 315 | M144: INE449A01011
A145: AUTOIND | B145: BE | C145: 25.7 | D145: 26 | E145: 24.55 | F145: 25.8 | G145: 25.9 | H145: 25.5 | I145: 5928 | J145: 151990.85 | K145: 2020-01-21 | L145: 54 | M145: INE718H01014
A146: AUTOLITIND | B146: EQ | C146: 26.6 | D146: 27.8 | E146: 25.25 | F146: 25.5 | G146: 25.45 | H146: 26.2 | I146: 33888 | J146: 902427.6 | K146: 2020-01-21 | L146: 525 | M146: INE448A01013
A147: AVADHSUGAR | B147: EQ | C147: 331.1 | D147: 337.7 | E147: 321.45 | F147: 323.55 | G147: 324 | H147: 334.4 | I147: 147883 | J147: 48681579.15 | K147: 2020-01-21 | L147: 4117 | M147: INE349W01017
A148: AVANTIFEED | B148: EQ | C148: 679.5 | D148: 711.4 | E148: 659 | F148: 699.15 | G148: 698.5 | H148: 690.55 | I148: 2179510 | J148: 1510027637 | K148: 2020-01-21 | L148: 61339 | M148: INE871C01038
A149: AVTNPL | B149: EQ | C149: 34.4 | D149: 34.4 | E149: 33.4 | F149: 34 | G149: 34 | H149: 33.8 | I149: 70538 | J149: 2392134.95 | K149: 2020-01-21 | L149: 412 | M149: INE488D01021
A150: AXISBANK | B150: EQ | C150: 726.35 | D150: 729.6 | E150: 716.05 | F150: 717.6 | G150: 717.45 | H150: 727.2 | I150: 8242803 | J150: 5955091235 | K150: 2020-01-21 | L150: 104303 | M150: INE238A01034
A151: AXISCADES | B151: EQ | C151: 55.15 | D151: 64.35 | E151: 54.9 | F151: 61.8 | G151: 61.5 | H151: 55.2 | I151: 539599 | J151: 32893901.4 | K151: 2020-01-21 | L151: 5457 | M151: INE555B01013
A152: AXISGOLD | B152: EQ | C152: 3516 | D152: 3543.85 | E152: 3487 | F152: 3492.95 | G152: 3491.1 | H152: 3511.35 | I152: 443 | J152: 1556525.65 | K152: 2020-01-21 | L152: 105 | M152: INF846K01347
A153: AXISNIFTY | B153: EQ | C153: 1264.6 | D153: 1264.6 | E153: 1253.57 | F153: 1260 | G153: 1260 | H153: 1265.75 | I153: 93 | J153: 117300.19 | K153: 2020-01-21 | L153: 12 | M153: INF846K01ZL0
A154: AYMSYNTEX | B154: EQ | C154: 33 | D154: 33.5 | E154: 31 | F154: 32.95 | G154: 32.6 | H154: 32.9 | I154: 11860 | J154: 385293.1 | K154: 2020-01-21 | L154: 71 | M154: INE193B01039
A155: BAGFILMS | B155: BE | C155: 1.9 | D155: 2 | E155: 1.9 | F155: 1.9 | G155: 2 | H155: 1.95 | I155: 39208 | J155: 75941.1 | K155: 2020-01-21 | L155: 51 | M155: INE116D01028
A156: BAJAJ-AUTO | B156: EQ | C156: 3096 | D156: 3119 | E156: 3085.5 | F156: 3097.05 | G156: 3093 | H156: 3103.7 | I156: 215722 | J156: 669226501.1 | K156: 2020-01-21 | L156: 15113 | M156: INE917I01010
A157: BAJAJCON | B157: EQ | C157: 236.8 | D157: 237.95 | E157: 231.35 | F157: 232.55 | G157: 232.45 | H157: 236.8 | I157: 120681 | J157: 28178200.45 | K157: 2020-01-21 | L157: 2800 | M157: INE933K01021
A158: BAJAJELEC | B158: EQ | C158: 397.9 | D158: 397.9 | E158: 385 | F158: 388.05 | G158: 387.25 | H158: 396.15 | I158: 101319 | J158: 39735056.35 | K158: 2020-01-21 | L158: 3109 | M158: INE193E01025
A159: BAJAJFINSV | B159: EQ | C159: 9583.95 | D159: 9625 | E159: 9508.2 | F159: 9534.3 | G159: 9572.45 | H159: 9572.75 | I159: 174507 | J159: 1670347638 | K159: 2020-01-21 | L159: 22520 | M159: INE918I01018
A160: BAJAJHIND | B160: EQ | C160: 6.8 | D160: 6.85 | E160: 6.7 | F160: 6.85 | G160: 6.85 | H160: 6.8 | I160: 900682 | J160: 6119029.5 | K160: 2020-01-21 | L160: 1087 | M160: INE306A01021
A161: BAJAJHLDNG | B161: EQ | C161: 3383 | D161: 3383 | E161: 3362 | F161: 3370.25 | G161: 3379 | H161: 3375.75 | I161: 44703 | J161: 150587829.8 | K161: 2020-01-21 | L161: 1427 | M161: INE118A01012
A162: BAJFINANCE | B162: EQ | C162: 4149.95 | D162: 4186.1 | E162: 4117.05 | F162: 4138.6 | G162: 4135 | H162: 4152.6 | I162: 897922 | J162: 3723393632 | K162: 2020-01-21 | L162: 62449 | M162: INE296A01024
A163: BALAJITELE | B163: EQ | C163: 52.7 | D163: 53 | E163: 51.9 | F163: 52.5 | G163: 52.95 | H163: 52.35 | I163: 30835 | J163: 1620244.55 | K163: 2020-01-21 | L163: 273 | M163: INE794B01026
A164: BALAMINES | B164: EQ | C164: 437.9 | D164: 475.25 | E164: 426.3 | F164: 470.05 | G164: 475 | H164: 443.4 | I164: 96281 | J164: 44173311.7 | K164: 2020-01-21 | L164: 3849 | M164: INE050E01027
A165: BALAXI | B165: EQ | C165: 66.3 | D165: 73.9 | E165: 66.1 | F165: 70.4 | G165: 69.05 | H165: 71.95 | I165: 16887 | J165: 1180532.15 | K165: 2020-01-21 | L165: 167 | M165: INE618N01014
A166: BALKRISHNA | B166: BE | C166: 19 | D166: 19 | E166: 18.05 | F166: 18.15 | G166: 18.1 | H166: 18.45 | I166: 5880 | J166: 107697.25 | K166: 2020-01-21 | L166: 20 | M166: INE875R01011
A167: BALKRISIND | B167: EQ | C167: 1101 | D167: 1108 | E167: 1087.3 | F167: 1089.95 | G167: 1089.1 | H167: 1106.25 | I167: 355584 | J167: 389954153.2 | K167: 2020-01-21 | L167: 10460 | M167: INE787D01026
A168: BALLARPUR | B168: BE | C168: 0.5 | D168: 0.55 | E168: 0.45 | F168: 0.5 | G168: 0.55 | H168: 0.5 | I168: 647477 | J168: 322700.9 | K168: 2020-01-21 | L168: 167 | M168: INE294A01037
A169: BALMLAWRIE | B169: EQ | C169: 126 | D169: 126.3 | E169: 124 | F169: 124.35 | G169: 124.1 | H169: 125.4 | I169: 50836 | J169: 6342191.75 | K169: 2020-01-21 | L169: 903 | M169: INE164A01016
A170: BALPHARMA | B170: EQ | C170: 45 | D170: 46.3 | E170: 45 | F170: 45.4 | G170: 45.35 | H170: 45.65 | I170: 3555 | J170: 162048.4 | K170: 2020-01-21 | L170: 78 | M170: INE083D01012
A171: BALRAMCHIN | B171: EQ | C171: 184 | D171: 187.4 | E171: 183 | F171: 183.5 | G171: 183.45 | H171: 186.55 | I171: 625559 | J171: 115616378.9 | K171: 2020-01-21 | L171: 7970 | M171: INE119A01028
A172: BANARBEADS | B172: EQ | C172: 34.65 | D172: 37.25 | E172: 34.25 | F172: 35.6 | G172: 36 | H172: 35.55 | I172: 1755 | J172: 62073.6 | K172: 2020-01-21 | L172: 39 | M172: INE655B01011
A173: BANARISUG | B173: EQ | C173: 1451.35 | D173: 1498 | E173: 1431.15 | F173: 1444.05 | G173: 1440.1 | H173: 1479.25 | I173: 642 | J173: 938207.25 | K173: 2020-01-21 | L173: 252 | M173: INE459A01010
A174: BANCOINDIA | B174: EQ | C174: 109 | D174: 109.8 | E174: 106.7 | F174: 107 | G174: 107 | H174: 109.35 | I174: 33753 | J174: 3629174.85 | K174: 2020-01-21 | L174: 522 | M174: INE213C01025
A175: BANDHANBNK | B175: EQ | C175: 481 | D175: 483.9 | E175: 476 | F175: 476.75 | G175: 477 | H175: 483.7 | I175: 1253858 | J175: 600494266.2 | K175: 2020-01-21 | L175: 34512 | M175: INE545U01014
A176: BANG | B176: EQ | C176: 22.95 | D176: 23.8 | E176: 22.35 | F176: 23.3 | G176: 23.35 | H176: 22.5 | I176: 6159 | J176: 142260.3 | K176: 2020-01-21 | L176: 251 | M176: INE863I01016
A177: BANKBARODA | B177: EQ | C177: 94.7 | D177: 95.7 | E177: 94.1 | F177: 94.75 | G177: 94.8 | H177: 94.7 | I177: 16440135 | J177: 1559897603 | K177: 2020-01-21 | L177: 39772 | M177: INE028A01039
A178: BANKBEES | B178: EQ | C178: 318 | D178: 318.4 | E178: 315.7 | F178: 316.42 | G178: 316.5 | H178: 318 | I178: 85599 | J178: 27108834.81 | K178: 2020-01-21 | L178: 2753 | M178: INF204KB15I9
A179: BANKINDIA | B179: EQ | C179: 66.8 | D179: 67.75 | E179: 66.7 | F179: 67.35 | G179: 67.25 | H179: 67.05 | I179: 1239835 | J179: 83438792.65 | K179: 2020-01-21 | L179: 8231 | M179: INE084A01016
A180: BANSWRAS | B180: BE | C180: 123 | D180: 123 | E180: 118.25 | F180: 119.75 | G180: 118.25 | H180: 121.45 | I180: 5945 | J180: 717525.5 | K180: 2020-01-21 | L180: 55 | M180: INE629D01012
A181: BARTRONICS | B181: BE | C181: 1.35 | D181: 1.35 | E181: 1.25 | F181: 1.3 | G181: 1.25 | H181: 1.3 | I181: 5060 | J181: 6707.8 | K181: 2020-01-21 | L181: 17 | M181: INE855F01034
A182: BASF | B182: EQ | C182: 1031 | D182: 1052 | E182: 1005.55 | F182: 1011.3 | G182: 1009.9 | H182: 1046.35 | I182: 37876 | J182: 38869615.2 | K182: 2020-01-21 | L182: 3176 | M182: INE373A01013
A183: BASML | B183: EQ | C183: 143.8 | D183: 143.8 | E183: 135.4 | F183: 137.7 | G183: 136.5 | H183: 141 | I183: 1395 | J183: 192396.4 | K183: 2020-01-21 | L183: 39 | M183: INE186H01014
A184: BATAINDIA | B184: EQ | C184: 1782 | D184: 1799 | E184: 1757.65 | F184: 1788.35 | G184: 1782.95 | H184: 1792.6 | I184: 491307 | J184: 875881998.6 | K184: 2020-01-21 | L184: 22925 | M184: INE176A01028
A185: BAYERCROP | B185: EQ | C185: 4169.85 | D185: 4212.95 | E185: 4133 | F185: 4174.5 | G185: 4179 | H185: 4139.6 | I185: 7758 | J185: 32404211.05 | K185: 2020-01-21 | L185: 2012 | M185: INE462A01022
A186: BBL | B186: EQ | C186: 872.85 | D186: 884.5 | E186: 856.1 | F186: 860.15 | G186: 857.1 | H186: 871.15 | I186: 5670 | J186: 4936060.95 | K186: 2020-01-21 | L186: 890 | M186: INE464A01028
A187: BBTC | B187: EQ | C187: 1121.7 | D187: 1144 | E187: 1116.55 | F187: 1134.55 | G187: 1138 | H187: 1129.9 | I187: 75686 | J187: 85882907.15 | K187: 2020-01-21 | L187: 3263 | M187: INE050A01025
A188: BCG | B188: BE | C188: 5.9 | D188: 5.9 | E188: 5.65 | F188: 5.65 | G188: 5.75 | H188: 5.9 | I188: 180854 | J188: 1036156.85 | K188: 2020-01-21 | L188: 271 | M188: INE425B01027
A189: BCP | B189: BE | C189: 19.7 | D189: 20.45 | E189: 19.7 | F189: 20.25 | G189: 20.3 | H189: 19.9 | I189: 70749 | J189: 1416524.2 | K189: 2020-01-21 | L189: 69 | M189: INE905P01028
A190: BDL | B190: EQ | C190: 303 | D190: 311 | E190: 301 | F190: 305.6 | G190: 304.5 | H190: 306.2 | I190: 104860 | J190: 32109229 | K190: 2020-01-21 | L190: 3776 | M190: INE171Z01018
A191: BEARDSELL | B191: BE | C191: 9.55 | D191: 9.7 | E191: 9.1 | F191: 9.7 | G191: 9.7 | H191: 9.55 | I191: 2015 | J191: 18501.4 | K191: 2020-01-21 | L191: 9 | M191: INE520H01022
A192: BEDMUTHA | B192: BE | C192: 15.9 | D192: 17.05 | E192: 15.85 | F192: 17.05 | G192: 17.05 | H192: 16.45 | I192: 559 | J192: 8882.15 | K192: 2020-01-21 | L192: 6 | M192: INE844K01012
A193: BEL | B193: EQ | C193: 104 | D193: 106 | E193: 103.85 | F193: 105.05 | G193: 104.95 | H193: 105 | I193: 5708875 | J193: 598719743.9 | K193: 2020-01-21 | L193: 29516 | M193: INE263A01024
A194: BEML | B194: EQ | C194: 980 | D194: 1019.25 | E194: 977 | F194: 999.6 | G194: 1003 | H194: 992.1 | I194: 594417 | J194: 595263383.8 | K194: 2020-01-21 | L194: 18183 | M194: INE258A01016
A195: BEPL | B195: EQ | C195: 51.9 | D195: 53.2 | E195: 50.55 | F195: 52.3 | G195: 52.4 | H195: 52.05 | I195: 633652 | J195: 32987570.25 | K195: 2020-01-21 | L195: 4911 | M195: INE922A01025
A196: BERGEPAINT | B196: EQ | C196: 564.6 | D196: 565 | E196: 547 | F196: 549.45 | G196: 547.9 | H196: 567.15 | I196: 2284062 | J196: 1259977407 | K196: 2020-01-21 | L196: 44879 | M196: INE463A01038
A197: BFINVEST | B197: EQ | C197: 324.8 | D197: 331.65 | E197: 322.1 | F197: 324.65 | G197: 327.45 | H197: 325.9 | I197: 50039 | J197: 16378821.55 | K197: 2020-01-21 | L197: 1765 | M197: INE878K01010
A198: BFUTILITIE | B198: EQ | C198: 338 | D198: 347.4 | E198: 335.1 | F198: 342.55 | G198: 343.25 | H198: 339.8 | I198: 167282 | J198: 57313211.3 | K198: 2020-01-21 | L198: 3977 | M198: INE243D01012
A199: BGLOBAL | B199: BE | C199: 1.35 | D199: 1.35 | E199: 1.35 | F199: 1.35 | G199: 1.35 | H199: 1.35 | I199: 1882 | J199: 2540.7 | K199: 2020-01-21 | L199: 9 | M199: INE224M01013
A200: BGRENERGY | B200: EQ | C200: 38.5 | D200: 39.4 | E200: 37.95 | F200: 38.1 | G200: 38.15 | H200: 38.7 | I200: 134312 | J200: 5170836.7 | K200: 2020-01-21 | L200: 1064 | M200: INE661I01014
... 1484 more rows

Sheet Sheet1 (hidden)

Sheet Sheet3 (hidden)

Sheet Sheet4 (hidden)

Sheet Sheet5 (hidden)
